Workbook

Sheet Main
J2: Min: | O2: Max:
E3: Where does it pay to know Excel? | J3: =Control!E16 -> 11873.55259 | O3: =Control!E15 -> 99016.17437
G47: data source: | H47: Chandoo salary survey (http://chandoo.org/wp/2012/06/25/excel-salary-data-contest/)
G48: choropleth template: | H48: Clearly and Simply (http://www.clearlyandsimply.com/clearly_and_simply/2009/06/choropleth-maps-with-excel.html)

Sheet Data (hidden)
B2: Data
B4: No. | C4: Country | D4: Abbreviation | E4: Salary for All | F4: Salary for Analyst | G4: Salary for Mgr | K4: Selection
B5: 1 | C5: Afghanistan | D5: AFG | E5: =IF(ISNA(VLOOKUP(D5,Pivot!$D$4:$E$30,2,0)),MIN(Pivot!$E$4:$E$30),VLOOKUP(D5,Pivot!$D$4:$E$30,2,0)) -> 11873.55259 | F5: =IF(ISNA(VLOOKUP(D5,Pivot!$F$4:$G$12,2,0)),MIN(Pivot!$F$4:$G$12),VLOOKUP(D5,Pivot!$F$4:$G$12,2,0)) -> 11264.71626 | G5: =IF(ISNA(VLOOKUP(D5,Pivot!$H$4:$I$10,2,0)),MIN(Pivot!$H$4:$I$10),VLOOKUP(D5,Pivot!$H$4:$I$10,2,0)) -> 10382.34181 | K5: =INDEX(E5:I5,1,Control!$C$10) -> 11873.55259
B6: =B5+1 -> 2 | C6: Albania | D6: ALB | E6: =IF(ISNA(VLOOKUP(D6,Pivot!$D$4:$E$30,2,0)),MIN(Pivot!$E$4:$E$30),VLOOKUP(D6,Pivot!$D$4:$E$30,2,0)) -> 11873.55259 | F6: =IF(ISNA(VLOOKUP(D6,Pivot!$F$4:$G$12,2,0)),MIN(Pivot!$F$4:$G$12),VLOOKUP(D6,Pivot!$F$4:$G$12,2,0)) -> 11264.71626 | G6: =IF(ISNA(VLOOKUP(D6,Pivot!$H$4:$I$10,2,0)),MIN(Pivot!$H$4:$I$10),VLOOKUP(D6,Pivot!$H$4:$I$10,2,0)) -> 10382.34181 | K6: =INDEX(E6:I6,1,Control!$C$10) -> 11873.55259
B7: =B6+1 -> 3 | C7: Algeria | D7: DZA | E7: =IF(ISNA(VLOOKUP(D7,Pivot!$D$4:$E$30,2,0)),MIN(Pivot!$E$4:$E$30),VLOOKUP(D7,Pivot!$D$4:$E$30,2,0)) -> 11873.55259 | F7: =IF(ISNA(VLOOKUP(D7,Pivot!$F$4:$G$12,2,0)),MIN(Pivot!$F$4:$G$12),VLOOKUP(D7,Pivot!$F$4:$G$12,2,0)) -> 11264.71626 | G7: =IF(ISNA(VLOOKUP(D7,Pivot!$H$4:$I$10,2,0)),MIN(Pivot!$H$4:$I$10),VLOOKUP(D7,Pivot!$H$4:$I$10,2,0)) -> 10382.34181 | K7: =INDEX(E7:I7,1,Control!$C$10) -> 11873.55259
B8: 4 | C8: Andorra | D8: AND | E8: =IF(ISNA(VLOOKUP(D8,Pivot!$D$4:$E$30,2,0)),MIN(Pivot!$E$4:$E$30),VLOOKUP(D8,Pivot!$D$4:$E$30,2,0)) -> 11873.55259 | F8: =IF(ISNA(VLOOKUP(D8,Pivot!$F$4:$G$12,2,0)),MIN(Pivot!$F$4:$G$12),VLOOKUP(D8,Pivot!$F$4:$G$12,2,0)) -> 11264.71626 | G8: =IF(ISNA(VLOOKUP(D8,Pivot!$H$4:$I$10,2,0)),MIN(Pivot!$H$4:$I$10),VLOOKUP(D8,Pivot!$H$4:$I$10,2,0)) -> 10382.34181 | K8: =INDEX(E8:I8,1,Control!$C$10) -> 11873.55259
B9: 5 | C9: Angola | D9: AGO | E9: =IF(ISNA(VLOOKUP(D9,Pivot!$D$4:$E$30,2,0)),MIN(Pivot!$E$4:$E$30),VLOOKUP(D9,Pivot!$D$4:$E$30,2,0)) -> 11873.55259 | F9: =IF(ISNA(VLOOKUP(D9,Pivot!$F$4:$G$12,2,0)),MIN(Pivot!$F$4:$G$12),VLOOKUP(D9,Pivot!$F$4:$G$12,2,0)) -> 11264.71626 | G9: =IF(ISNA(VLOOKUP(D9,Pivot!$H$4:$I$10,2,0)),MIN(Pivot!$H$4:$I$10),VLOOKUP(D9,Pivot!$H$4:$I$10,2,0)) -> 10382.34181 | K9: =INDEX(E9:I9,1,Control!$C$10) -> 11873.55259
B10: 6 | C10: Antigua and Barbuda | D10: ATG | E10: =IF(ISNA(VLOOKUP(D10,Pivot!$D$4:$E$30,2,0)),MIN(Pivot!$E$4:$E$30),VLOOKUP(D10,Pivot!$D$4:$E$30,2,0)) -> 11873.55259 | F10: =IF(ISNA(VLOOKUP(D10,Pivot!$F$4:$G$12,2,0)),MIN(Pivot!$F$4:$G$12),VLOOKUP(D10,Pivot!$F$4:$G$12,2,0)) -> 11264.71626 | G10: =IF(ISNA(VLOOKUP(D10,Pivot!$H$4:$I$10,2,0)),MIN(Pivot!$H$4:$I$10),VLOOKUP(D10,Pivot!$H$4:$I$10,2,0)) -> 10382.34181 | K10: =INDEX(E10:I10,1,Control!$C$10) -> 11873.55259
B11: 7 | C11: Argentina | D11: ARG | E11: =IF(ISNA(VLOOKUP(D11,Pivot!$D$4:$E$30,2,0)),MIN(Pivot!$E$4:$E$30),VLOOKUP(D11,Pivot!$D$4:$E$30,2,0)) -> 11873.55259 | F11: =IF(ISNA(VLOOKUP(D11,Pivot!$F$4:$G$12,2,0)),MIN(Pivot!$F$4:$G$12),VLOOKUP(D11,Pivot!$F$4:$G$12,2,0)) -> 11264.71626 | G11: =IF(ISNA(VLOOKUP(D11,Pivot!$H$4:$I$10,2,0)),MIN(Pivot!$H$4:$I$10),VLOOKUP(D11,Pivot!$H$4:$I$10,2,0)) -> 10382.34181 | K11: =INDEX(E11:I11,1,Control!$C$10) -> 11873.55259
B12: 8 | C12: Armenia | D12: ARM | E12: =IF(ISNA(VLOOKUP(D12,Pivot!$D$4:$E$30,2,0)),MIN(Pivot!$E$4:$E$30),VLOOKUP(D12,Pivot!$D$4:$E$30,2,0)) -> 11873.55259 | F12: =IF(ISNA(VLOOKUP(D12,Pivot!$F$4:$G$12,2,0)),MIN(Pivot!$F$4:$G$12),VLOOKUP(D12,Pivot!$F$4:$G$12,2,0)) -> 11264.71626 | G12: =IF(ISNA(VLOOKUP(D12,Pivot!$H$4:$I$10,2,0)),MIN(Pivot!$H$4:$I$10),VLOOKUP(D12,Pivot!$H$4:$I$10,2,0)) -> 10382.34181 | K12: =INDEX(E12:I12,1,Control!$C$10) -> 11873.55259
B13: 9 | C13: Australia | D13: AUS | E13: =IF(ISNA(VLOOKUP(D13,Pivot!$D$4:$E$30,2,0)),MIN(Pivot!$E$4:$E$30),VLOOKUP(D13,Pivot!$D$4:$E$30,2,0)) -> 92857.62985 | F13: =IF(ISNA(VLOOKUP(D13,Pivot!$F$4:$G$12,2,0)),MIN(Pivot!$F$4:$G$12),VLOOKUP(D13,Pivot!$F$4:$G$12,2,0)) -> 86525.3942 | G13: =IF(ISNA(VLOOKUP(D13,Pivot!$H$4:$I$10,2,0)),MIN(Pivot!$H$4:$I$10),VLOOKUP(D13,Pivot!$H$4:$I$10,2,0)) -> 95631.0297 | K13: =INDEX(E13:I13,1,Control!$C$10) -> 92857.62985
B14: 10 | C14: Austria | D14: AUT | E14: =IF(ISNA(VLOOKUP(D14,Pivot!$D$4:$E$30,2,0)),MIN(Pivot!$E$4:$E$30),VLOOKUP(D14,Pivot!$D$4:$E$30,2,0)) -> 11873.55259 | F14: =IF(ISNA(VLOOKUP(D14,Pivot!$F$4:$G$12,2,0)),MIN(Pivot!$F$4:$G$12),VLOOKUP(D14,Pivot!$F$4:$G$12,2,0)) -> 11264.71626 | G14: =IF(ISNA(VLOOKUP(D14,Pivot!$H$4:$I$10,2,0)),MIN(Pivot!$H$4:$I$10),VLOOKUP(D14,Pivot!$H$4:$I$10,2,0)) -> 10382.34181 | K14: =INDEX(E14:I14,1,Control!$C$10) -> 11873.55259
B15: 11 | C15: Azerbaijan | D15: AZE | E15: =IF(ISNA(VLOOKUP(D15,Pivot!$D$4:$E$30,2,0)),MIN(Pivot!$E$4:$E$30),VLOOKUP(D15,Pivot!$D$4:$E$30,2,0)) -> 11873.55259 | F15: =IF(ISNA(VLOOKUP(D15,Pivot!$F$4:$G$12,2,0)),MIN(Pivot!$F$4:$G$12),VLOOKUP(D15,Pivot!$F$4:$G$12,2,0)) -> 11264.71626 | G15: =IF(ISNA(VLOOKUP(D15,Pivot!$H$4:$I$10,2,0)),MIN(Pivot!$H$4:$I$10),VLOOKUP(D15,Pivot!$H$4:$I$10,2,0)) -> 10382.34181 | K15: =INDEX(E15:I15,1,Control!$C$10) -> 11873.55259
B16: 12 | C16: Bahamas, The | D16: BHS | E16: =IF(ISNA(VLOOKUP(D16,Pivot!$D$4:$E$30,2,0)),MIN(Pivot!$E$4:$E$30),VLOOKUP(D16,Pivot!$D$4:$E$30,2,0)) -> 11873.55259 | F16: =IF(ISNA(VLOOKUP(D16,Pivot!$F$4:$G$12,2,0)),MIN(Pivot!$F$4:$G$12),VLOOKUP(D16,Pivot!$F$4:$G$12,2,0)) -> 11264.71626 | G16: =IF(ISNA(VLOOKUP(D16,Pivot!$H$4:$I$10,2,0)),MIN(Pivot!$H$4:$I$10),VLOOKUP(D16,Pivot!$H$4:$I$10,2,0)) -> 10382.34181 | K16: =INDEX(E16:I16,1,Control!$C$10) -> 11873.55259
B17: 13 | C17: Bahrain | D17: BHR | E17: =IF(ISNA(VLOOKUP(D17,Pivot!$D$4:$E$30,2,0)),MIN(Pivot!$E$4:$E$30),VLOOKUP(D17,Pivot!$D$4:$E$30,2,0)) -> 11873.55259 | F17: =IF(ISNA(VLOOKUP(D17,Pivot!$F$4:$G$12,2,0)),MIN(Pivot!$F$4:$G$12),VLOOKUP(D17,Pivot!$F$4:$G$12,2,0)) -> 11264.71626 | G17: =IF(ISNA(VLOOKUP(D17,Pivot!$H$4:$I$10,2,0)),MIN(Pivot!$H$4:$I$10),VLOOKUP(D17,Pivot!$H$4:$I$10,2,0)) -> 10382.34181 | K17: =INDEX(E17:I17,1,Control!$C$10) -> 11873.55259
B18: 14 | C18: Bangladesh | D18: BGD | E18: =IF(ISNA(VLOOKUP(D18,Pivot!$D$4:$E$30,2,0)),MIN(Pivot!$E$4:$E$30),VLOOKUP(D18,Pivot!$D$4:$E$30,2,0)) -> 11873.55259 | F18: =IF(ISNA(VLOOKUP(D18,Pivot!$F$4:$G$12,2,0)),MIN(Pivot!$F$4:$G$12),VLOOKUP(D18,Pivot!$F$4:$G$12,2,0)) -> 11264.71626 | G18: =IF(ISNA(VLOOKUP(D18,Pivot!$H$4:$I$10,2,0)),MIN(Pivot!$H$4:$I$10),VLOOKUP(D18,Pivot!$H$4:$I$10,2,0)) -> 10382.34181 | K18: =INDEX(E18:I18,1,Control!$C$10) -> 11873.55259
B19: 15 | C19: Barbados | D19: BRB | E19: =IF(ISNA(VLOOKUP(D19,Pivot!$D$4:$E$30,2,0)),MIN(Pivot!$E$4:$E$30),VLOOKUP(D19,Pivot!$D$4:$E$30,2,0)) -> 11873.55259 | F19: =IF(ISNA(VLOOKUP(D19,Pivot!$F$4:$G$12,2,0)),MIN(Pivot!$F$4:$G$12),VLOOKUP(D19,Pivot!$F$4:$G$12,2,0)) -> 11264.71626 | G19: =IF(ISNA(VLOOKUP(D19,Pivot!$H$4:$I$10,2,0)),MIN(Pivot!$H$4:$I$10),VLOOKUP(D19,Pivot!$H$4:$I$10,2,0)) -> 10382.34181 | K19: =INDEX(E19:I19,1,Control!$C$10) -> 11873.55259
B20: 16 | C20: Belarus | D20: BLR | E20: =IF(ISNA(VLOOKUP(D20,Pivot!$D$4:$E$30,2,0)),MIN(Pivot!$E$4:$E$30),VLOOKUP(D20,Pivot!$D$4:$E$30,2,0)) -> 11873.55259 | F20: =IF(ISNA(VLOOKUP(D20,Pivot!$F$4:$G$12,2,0)),MIN(Pivot!$F$4:$G$12),VLOOKUP(D20,Pivot!$F$4:$G$12,2,0)) -> 11264.71626 | G20: =IF(ISNA(VLOOKUP(D20,Pivot!$H$4:$I$10,2,0)),MIN(Pivot!$H$4:$I$10),VLOOKUP(D20,Pivot!$H$4:$I$10,2,0)) -> 10382.34181 | K20: =INDEX(E20:I20,1,Control!$C$10) -> 11873.55259
B21: 17 | C21: Belgium | D21: BEL | E21: =IF(ISNA(VLOOKUP(D21,Pivot!$D$4:$E$30,2,0)),MIN(Pivot!$E$4:$E$30),VLOOKUP(D21,Pivot!$D$4:$E$30,2,0)) -> 11873.55259 | F21: =IF(ISNA(VLOOKUP(D21,Pivot!$F$4:$G$12,2,0)),MIN(Pivot!$F$4:$G$12),VLOOKUP(D21,Pivot!$F$4:$G$12,2,0)) -> 11264.71626 | G21: =IF(ISNA(VLOOKUP(D21,Pivot!$H$4:$I$10,2,0)),MIN(Pivot!$H$4:$I$10),VLOOKUP(D21,Pivot!$H$4:$I$10,2,0)) -> 10382.34181 | K21: =INDEX(E21:I21,1,Control!$C$10) -> 11873.55259
B22: 18 | C22: Belize | D22: BLZ | E22: =IF(ISNA(VLOOKUP(D22,Pivot!$D$4:$E$30,2,0)),MIN(Pivot!$E$4:$E$30),VLOOKUP(D22,Pivot!$D$4:$E$30,2,0)) -> 11873.55259 | F22: =IF(ISNA(VLOOKUP(D22,Pivot!$F$4:$G$12,2,0)),MIN(Pivot!$F$4:$G$12),VLOOKUP(D22,Pivot!$F$4:$G$12,2,0)) -> 11264.71626 | G22: =IF(ISNA(VLOOKUP(D22,Pivot!$H$4:$I$10,2,0)),MIN(Pivot!$H$4:$I$10),VLOOKUP(D22,Pivot!$H$4:$I$10,2,0)) -> 10382.34181 | K22: =INDEX(E22:I22,1,Control!$C$10) -> 11873.55259
B23: 19 | C23: Benin | D23: BEN | E23: =IF(ISNA(VLOOKUP(D23,Pivot!$D$4:$E$30,2,0)),MIN(Pivot!$E$4:$E$30),VLOOKUP(D23,Pivot!$D$4:$E$30,2,0)) -> 11873.55259 | F23: =IF(ISNA(VLOOKUP(D23,Pivot!$F$4:$G$12,2,0)),MIN(Pivot!$F$4:$G$12),VLOOKUP(D23,Pivot!$F$4:$G$12,2,0)) -> 11264.71626 | G23: =IF(ISNA(VLOOKUP(D23,Pivot!$H$4:$I$10,2,0)),MIN(Pivot!$H$4:$I$10),VLOOKUP(D23,Pivot!$H$4:$I$10,2,0)) -> 10382.34181 | K23: =INDEX(E23:I23,1,Control!$C$10) -> 11873.55259
B24: 20 | C24: Bhutan | D24: BTN | E24: =IF(ISNA(VLOOKUP(D24,Pivot!$D$4:$E$30,2,0)),MIN(Pivot!$E$4:$E$30),VLOOKUP(D24,Pivot!$D$4:$E$30,2,0)) -> 11873.55259 | F24: =IF(ISNA(VLOOKUP(D24,Pivot!$F$4:$G$12,2,0)),MIN(Pivot!$F$4:$G$12),VLOOKUP(D24,Pivot!$F$4:$G$12,2,0)) -> 11264.71626 | G24: =IF(ISNA(VLOOKUP(D24,Pivot!$H$4:$I$10,2,0)),MIN(Pivot!$H$4:$I$10),VLOOKUP(D24,Pivot!$H$4:$I$10,2,0)) -> 10382.34181 | K24: =INDEX(E24:I24,1,Control!$C$10) -> 11873.55259
B25: 21 | C25: Bolivia | D25: BOL | E25: =IF(ISNA(VLOOKUP(D25,Pivot!$D$4:$E$30,2,0)),MIN(Pivot!$E$4:$E$30),VLOOKUP(D25,Pivot!$D$4:$E$30,2,0)) -> 11873.55259 | F25: =IF(ISNA(VLOOKUP(D25,Pivot!$F$4:$G$12,2,0)),MIN(Pivot!$F$4:$G$12),VLOOKUP(D25,Pivot!$F$4:$G$12,2,0)) -> 11264.71626 | G25: =IF(ISNA(VLOOKUP(D25,Pivot!$H$4:$I$10,2,0)),MIN(Pivot!$H$4:$I$10),VLOOKUP(D25,Pivot!$H$4:$I$10,2,0)) -> 10382.34181 | K25: =INDEX(E25:I25,1,Control!$C$10) -> 11873.55259
B26: 22 | C26: Bosnia and Herzegovina | D26: BIH | E26: =IF(ISNA(VLOOKUP(D26,Pivot!$D$4:$E$30,2,0)),MIN(Pivot!$E$4:$E$30),VLOOKUP(D26,Pivot!$D$4:$E$30,2,0)) -> 11873.55259 | F26: =IF(ISNA(VLOOKUP(D26,Pivot!$F$4:$G$12,2,0)),MIN(Pivot!$F$4:$G$12),VLOOKUP(D26,Pivot!$F$4:$G$12,2,0)) -> 11264.71626 | G26: =IF(ISNA(VLOOKUP(D26,Pivot!$H$4:$I$10,2,0)),MIN(Pivot!$H$4:$I$10),VLOOKUP(D26,Pivot!$H$4:$I$10,2,0)) -> 10382.34181 | K26: =INDEX(E26:I26,1,Control!$C$10) -> 11873.55259
B27: 23 | C27: Botswana | D27: BWA | E27: =IF(ISNA(VLOOKUP(D27,Pivot!$D$4:$E$30,2,0)),MIN(Pivot!$E$4:$E$30),VLOOKUP(D27,Pivot!$D$4:$E$30,2,0)) -> 11873.55259 | F27: =IF(ISNA(VLOOKUP(D27,Pivot!$F$4:$G$12,2,0)),MIN(Pivot!$F$4:$G$12),VLOOKUP(D27,Pivot!$F$4:$G$12,2,0)) -> 11264.71626 | G27: =IF(ISNA(VLOOKUP(D27,Pivot!$H$4:$I$10,2,0)),MIN(Pivot!$H$4:$I$10),VLOOKUP(D27,Pivot!$H$4:$I$10,2,0)) -> 10382.34181 | K27: =INDEX(E27:I27,1,Control!$C$10) -> 11873.55259
B28: 24 | C28: Brazil | D28: BRA | E28: =IF(ISNA(VLOOKUP(D28,Pivot!$D$4:$E$30,2,0)),MIN(Pivot!$E$4:$E$30),VLOOKUP(D28,Pivot!$D$4:$E$30,2,0)) -> 44287.98421 | F28: =IF(ISNA(VLOOKUP(D28,Pivot!$F$4:$G$12,2,0)),MIN(Pivot!$F$4:$G$12),VLOOKUP(D28,Pivot!$F$4:$G$12,2,0)) -> 34591.32259 | G28: =IF(ISNA(VLOOKUP(D28,Pivot!$H$4:$I$10,2,0)),MIN(Pivot!$H$4:$I$10),VLOOKUP(D28,Pivot!$H$4:$I$10,2,0)) -> 10382.34181 | K28: =INDEX(E28:I28,1,Control!$C$10) -> 44287.98421
B29: 25 | C29: Bulgaria | D29: BGR | E29: =IF(ISNA(VLOOKUP(D29,Pivot!$D$4:$E$30,2,0)),MIN(Pivot!$E$4:$E$30),VLOOKUP(D29,Pivot!$D$4:$E$30,2,0)) -> 11873.55259 | F29: =IF(ISNA(VLOOKUP(D29,Pivot!$F$4:$G$12,2,0)),MIN(Pivot!$F$4:$G$12),VLOOKUP(D29,Pivot!$F$4:$G$12,2,0)) -> 11264.71626 | G29: =IF(ISNA(VLOOKUP(D29,Pivot!$H$4:$I$10,2,0)),MIN(Pivot!$H$4:$I$10),VLOOKUP(D29,Pivot!$H$4:$I$10,2,0)) -> 10382.34181 | K29: =INDEX(E29:I29,1,Control!$C$10) -> 11873.55259
B30: 26 | C30: Burkina Faso | D30: BFA | E30: =IF(ISNA(VLOOKUP(D30,Pivot!$D$4:$E$30,2,0)),MIN(Pivot!$E$4:$E$30),VLOOKUP(D30,Pivot!$D$4:$E$30,2,0)) -> 11873.55259 | F30: =IF(ISNA(VLOOKUP(D30,Pivot!$F$4:$G$12,2,0)),MIN(Pivot!$F$4:$G$12),VLOOKUP(D30,Pivot!$F$4:$G$12,2,0)) -> 11264.71626 | G30: =IF(ISNA(VLOOKUP(D30,Pivot!$H$4:$I$10,2,0)),MIN(Pivot!$H$4:$I$10),VLOOKUP(D30,Pivot!$H$4:$I$10,2,0)) -> 10382.34181 | K30: =INDEX(E30:I30,1,Control!$C$10) -> 11873.55259
B31: 27 | C31: Burma | D31: MMR | E31: =IF(ISNA(VLOOKUP(D31,Pivot!$D$4:$E$30,2,0)),MIN(Pivot!$E$4:$E$30),VLOOKUP(D31,Pivot!$D$4:$E$30,2,0)) -> 11873.55259 | F31: =IF(ISNA(VLOOKUP(D31,Pivot!$F$4:$G$12,2,0)),MIN(Pivot!$F$4:$G$12),VLOOKUP(D31,Pivot!$F$4:$G$12,2,0)) -> 11264.71626 | G31: =IF(ISNA(VLOOKUP(D31,Pivot!$H$4:$I$10,2,0)),MIN(Pivot!$H$4:$I$10),VLOOKUP(D31,Pivot!$H$4:$I$10,2,0)) -> 10382.34181 | K31: =INDEX(E31:I31,1,Control!$C$10) -> 11873.55259
B32: 28 | C32: Burundi | D32: BDI | E32: =IF(ISNA(VLOOKUP(D32,Pivot!$D$4:$E$30,2,0)),MIN(Pivot!$E$4:$E$30),VLOOKUP(D32,Pivot!$D$4:$E$30,2,0)) -> 11873.55259 | F32: =IF(ISNA(VLOOKUP(D32,Pivot!$F$4:$G$12,2,0)),MIN(Pivot!$F$4:$G$12),VLOOKUP(D32,Pivot!$F$4:$G$12,2,0)) -> 11264.71626 | G32: =IF(ISNA(VLOOKUP(D32,Pivot!$H$4:$I$10,2,0)),MIN(Pivot!$H$4:$I$10),VLOOKUP(D32,Pivot!$H$4:$I$10,2,0)) -> 10382.34181 | K32: =INDEX(E32:I32,1,Control!$C$10) -> 11873.55259
B33: 29 | C33: Cambodia | D33: KHM | E33: =IF(ISNA(VLOOKUP(D33,Pivot!$D$4:$E$30,2,0)),MIN(Pivot!$E$4:$E$30),VLOOKUP(D33,Pivot!$D$4:$E$30,2,0)) -> 11873.55259 | F33: =IF(ISNA(VLOOKUP(D33,Pivot!$F$4:$G$12,2,0)),MIN(Pivot!$F$4:$G$12),VLOOKUP(D33,Pivot!$F$4:$G$12,2,0)) -> 11264.71626 | G33: =IF(ISNA(VLOOKUP(D33,Pivot!$H$4:$I$10,2,0)),MIN(Pivot!$H$4:$I$10),VLOOKUP(D33,Pivot!$H$4:$I$10,2,0)) -> 10382.34181 | K33: =INDEX(E33:I33,1,Control!$C$10) -> 11873.55259
B34: 30 | C34: Cameroon | D34: CMR | E34: =IF(ISNA(VLOOKUP(D34,Pivot!$D$4:$E$30,2,0)),MIN(Pivot!$E$4:$E$30),VLOOKUP(D34,Pivot!$D$4:$E$30,2,0)) -> 11873.55259 | F34: =IF(ISNA(VLOOKUP(D34,Pivot!$F$4:$G$12,2,0)),MIN(Pivot!$F$4:$G$12),VLOOKUP(D34,Pivot!$F$4:$G$12,2,0)) -> 11264.71626 | G34: =IF(ISNA(VLOOKUP(D34,Pivot!$H$4:$I$10,2,0)),MIN(Pivot!$H$4:$I$10),VLOOKUP(D34,Pivot!$H$4:$I$10,2,0)) -> 10382.34181 | K34: =INDEX(E34:I34,1,Control!$C$10) -> 11873.55259
B35: 31 | C35: Canada | D35: CAN | E35: =IF(ISNA(VLOOKUP(D35,Pivot!$D$4:$E$30,2,0)),MIN(Pivot!$E$4:$E$30),VLOOKUP(D35,Pivot!$D$4:$E$30,2,0)) -> 89799.52684 | F35: =IF(ISNA(VLOOKUP(D35,Pivot!$F$4:$G$12,2,0)),MIN(Pivot!$F$4:$G$12),VLOOKUP(D35,Pivot!$F$4:$G$12,2,0)) -> 63558.64134 | G35: =IF(ISNA(VLOOKUP(D35,Pivot!$H$4:$I$10,2,0)),MIN(Pivot!$H$4:$I$10),VLOOKUP(D35,Pivot!$H$4:$I$10,2,0)) -> 70334.47567 | K35: =INDEX(E35:I35,1,Control!$C$10) -> 89799.52684
B36: 32 | C36: Cape Verde | D36: CPV | E36: =IF(ISNA(VLOOKUP(D36,Pivot!$D$4:$E$30,2,0)),MIN(Pivot!$E$4:$E$30),VLOOKUP(D36,Pivot!$D$4:$E$30,2,0)) -> 11873.55259 | F36: =IF(ISNA(VLOOKUP(D36,Pivot!$F$4:$G$12,2,0)),MIN(Pivot!$F$4:$G$12),VLOOKUP(D36,Pivot!$F$4:$G$12,2,0)) -> 11264.71626 | G36: =IF(ISNA(VLOOKUP(D36,Pivot!$H$4:$I$10,2,0)),MIN(Pivot!$H$4:$I$10),VLOOKUP(D36,Pivot!$H$4:$I$10,2,0)) -> 10382.34181 | K36: =INDEX(E36:I36,1,Control!$C$10) -> 11873.55259
B37: 33 | C37: Central African Republic | D37: CAF | E37: =IF(ISNA(VLOOKUP(D37,Pivot!$D$4:$E$30,2,0)),MIN(Pivot!$E$4:$E$30),VLOOKUP(D37,Pivot!$D$4:$E$30,2,0)) -> 11873.55259 | F37: =IF(ISNA(VLOOKUP(D37,Pivot!$F$4:$G$12,2,0)),MIN(Pivot!$F$4:$G$12),VLOOKUP(D37,Pivot!$F$4:$G$12,2,0)) -> 11264.71626 | G37: =IF(ISNA(VLOOKUP(D37,Pivot!$H$4:$I$10,2,0)),MIN(Pivot!$H$4:$I$10),VLOOKUP(D37,Pivot!$H$4:$I$10,2,0)) -> 10382.34181 | K37: =INDEX(E37:I37,1,Control!$C$10) -> 11873.55259
B38: 34 | C38: Chad | D38: TCD | E38: =IF(ISNA(VLOOKUP(D38,Pivot!$D$4:$E$30,2,0)),MIN(Pivot!$E$4:$E$30),VLOOKUP(D38,Pivot!$D$4:$E$30,2,0)) -> 11873.55259 | F38: =IF(ISNA(VLOOKUP(D38,Pivot!$F$4:$G$12,2,0)),MIN(Pivot!$F$4:$G$12),VLOOKUP(D38,Pivot!$F$4:$G$12,2,0)) -> 11264.71626 | G38: =IF(ISNA(VLOOKUP(D38,Pivot!$H$4:$I$10,2,0)),MIN(Pivot!$H$4:$I$10),VLOOKUP(D38,Pivot!$H$4:$I$10,2,0)) -> 10382.34181 | K38: =INDEX(E38:I38,1,Control!$C$10) -> 11873.55259
B39: 35 | C39: Chile | D39: CHL | E39: =IF(ISNA(VLOOKUP(D39,Pivot!$D$4:$E$30,2,0)),MIN(Pivot!$E$4:$E$30),VLOOKUP(D39,Pivot!$D$4:$E$30,2,0)) -> 11873.55259 | F39: =IF(ISNA(VLOOKUP(D39,Pivot!$F$4:$G$12,2,0)),MIN(Pivot!$F$4:$G$12),VLOOKUP(D39,Pivot!$F$4:$G$12,2,0)) -> 11264.71626 | G39: =IF(ISNA(VLOOKUP(D39,Pivot!$H$4:$I$10,2,0)),MIN(Pivot!$H$4:$I$10),VLOOKUP(D39,Pivot!$H$4:$I$10,2,0)) -> 10382.34181 | K39: =INDEX(E39:I39,1,Control!$C$10) -> 11873.55259
B40: 36 | C40: China | D40: CHN | E40: =IF(ISNA(VLOOKUP(D40,Pivot!$D$4:$E$30,2,0)),MIN(Pivot!$E$4:$E$30),VLOOKUP(D40,Pivot!$D$4:$E$30,2,0)) -> 11873.55259 | F40: =IF(ISNA(VLOOKUP(D40,Pivot!$F$4:$G$12,2,0)),MIN(Pivot!$F$4:$G$12),VLOOKUP(D40,Pivot!$F$4:$G$12,2,0)) -> 11264.71626 | G40: =IF(ISNA(VLOOKUP(D40,Pivot!$H$4:$I$10,2,0)),MIN(Pivot!$H$4:$I$10),VLOOKUP(D40,Pivot!$H$4:$I$10,2,0)) -> 10382.34181 | K40: =INDEX(E40:I40,1,Control!$C$10) -> 11873.55259
B41: 37 | C41: Colombia | D41: COL | E41: =IF(ISNA(VLOOKUP(D41,Pivot!$D$4:$E$30,2,0)),MIN(Pivot!$E$4:$E$30),VLOOKUP(D41,Pivot!$D$4:$E$30,2,0)) -> 11873.55259 | F41: =IF(ISNA(VLOOKUP(D41,Pivot!$F$4:$G$12,2,0)),MIN(Pivot!$F$4:$G$12),VLOOKUP(D41,Pivot!$F$4:$G$12,2,0)) -> 11264.71626 | G41: =IF(ISNA(VLOOKUP(D41,Pivot!$H$4:$I$10,2,0)),MIN(Pivot!$H$4:$I$10),VLOOKUP(D41,Pivot!$H$4:$I$10,2,0)) -> 10382.34181 | K41: =INDEX(E41:I41,1,Control!$C$10) -> 11873.55259
B42: 38 | C42: Comoros | D42: COM | E42: =IF(ISNA(VLOOKUP(D42,Pivot!$D$4:$E$30,2,0)),MIN(Pivot!$E$4:$E$30),VLOOKUP(D42,Pivot!$D$4:$E$30,2,0)) -> 11873.55259 | F42: =IF(ISNA(VLOOKUP(D42,Pivot!$F$4:$G$12,2,0)),MIN(Pivot!$F$4:$G$12),VLOOKUP(D42,Pivot!$F$4:$G$12,2,0)) -> 11264.71626 | G42: =IF(ISNA(VLOOKUP(D42,Pivot!$H$4:$I$10,2,0)),MIN(Pivot!$H$4:$I$10),VLOOKUP(D42,Pivot!$H$4:$I$10,2,0)) -> 10382.34181 | K42: =INDEX(E42:I42,1,Control!$C$10) -> 11873.55259
B43: 39 | C43: Congo, Democratic Republic of the | D43: COD | E43: =IF(ISNA(VLOOKUP(D43,Pivot!$D$4:$E$30,2,0)),MIN(Pivot!$E$4:$E$30),VLOOKUP(D43,Pivot!$D$4:$E$30,2,0)) -> 11873.55259 | F43: =IF(ISNA(VLOOKUP(D43,Pivot!$F$4:$G$12,2,0)),MIN(Pivot!$F$4:$G$12),VLOOKUP(D43,Pivot!$F$4:$G$12,2,0)) -> 11264.71626 | G43: =IF(ISNA(VLOOKUP(D43,Pivot!$H$4:$I$10,2,0)),MIN(Pivot!$H$4:$I$10),VLOOKUP(D43,Pivot!$H$4:$I$10,2,0)) -> 10382.34181 | K43: =INDEX(E43:I43,1,Control!$C$10) -> 11873.55259
B44: 40 | C44: Congo, Republic of the | D44: COG | E44: =IF(ISNA(VLOOKUP(D44,Pivot!$D$4:$E$30,2,0)),MIN(Pivot!$E$4:$E$30),VLOOKUP(D44,Pivot!$D$4:$E$30,2,0)) -> 11873.55259 | F44: =IF(ISNA(VLOOKUP(D44,Pivot!$F$4:$G$12,2,0)),MIN(Pivot!$F$4:$G$12),VLOOKUP(D44,Pivot!$F$4:$G$12,2,0)) -> 11264.71626 | G44: =IF(ISNA(VLOOKUP(D44,Pivot!$H$4:$I$10,2,0)),MIN(Pivot!$H$4:$I$10),VLOOKUP(D44,Pivot!$H$4:$I$10,2,0)) -> 10382.34181 | K44: =INDEX(E44:I44,1,Control!$C$10) -> 11873.55259
B45: 41 | C45: Costa Rica | D45: CRI | E45: =IF(ISNA(VLOOKUP(D45,Pivot!$D$4:$E$30,2,0)),MIN(Pivot!$E$4:$E$30),VLOOKUP(D45,Pivot!$D$4:$E$30,2,0)) -> 11873.55259 | F45: =IF(ISNA(VLOOKUP(D45,Pivot!$F$4:$G$12,2,0)),MIN(Pivot!$F$4:$G$12),VLOOKUP(D45,Pivot!$F$4:$G$12,2,0)) -> 11264.71626 | G45: =IF(ISNA(VLOOKUP(D45,Pivot!$H$4:$I$10,2,0)),MIN(Pivot!$H$4:$I$10),VLOOKUP(D45,Pivot!$H$4:$I$10,2,0)) -> 10382.34181 | K45: =INDEX(E45:I45,1,Control!$C$10) -> 11873.55259
B46: 42 | C46: Cote d'Ivoire | D46: CIV | E46: =IF(ISNA(VLOOKUP(D46,Pivot!$D$4:$E$30,2,0)),MIN(Pivot!$E$4:$E$30),VLOOKUP(D46,Pivot!$D$4:$E$30,2,0)) -> 11873.55259 | F46: =IF(ISNA(VLOOKUP(D46,Pivot!$F$4:$G$12,2,0)),MIN(Pivot!$F$4:$G$12),VLOOKUP(D46,Pivot!$F$4:$G$12,2,0)) -> 11264.71626 | G46: =IF(ISNA(VLOOKUP(D46,Pivot!$H$4:$I$10,2,0)),MIN(Pivot!$H$4:$I$10),VLOOKUP(D46,Pivot!$H$4:$I$10,2,0)) -> 10382.34181 | K46: =INDEX(E46:I46,1,Control!$C$10) -> 11873.55259
B47: 43 | C47: Croatia | D47: HRV | E47: =IF(ISNA(VLOOKUP(D47,Pivot!$D$4:$E$30,2,0)),MIN(Pivot!$E$4:$E$30),VLOOKUP(D47,Pivot!$D$4:$E$30,2,0)) -> 11873.55259 | F47: =IF(ISNA(VLOOKUP(D47,Pivot!$F$4:$G$12,2,0)),MIN(Pivot!$F$4:$G$12),VLOOKUP(D47,Pivot!$F$4:$G$12,2,0)) -> 11264.71626 | G47: =IF(ISNA(VLOOKUP(D47,Pivot!$H$4:$I$10,2,0)),MIN(Pivot!$H$4:$I$10),VLOOKUP(D47,Pivot!$H$4:$I$10,2,0)) -> 10382.34181 | K47: =INDEX(E47:I47,1,Control!$C$10) -> 11873.55259
B48: 44 | C48: Cuba | D48: CUB | E48: =IF(ISNA(VLOOKUP(D48,Pivot!$D$4:$E$30,2,0)),MIN(Pivot!$E$4:$E$30),VLOOKUP(D48,Pivot!$D$4:$E$30,2,0)) -> 11873.55259 | F48: =IF(ISNA(VLOOKUP(D48,Pivot!$F$4:$G$12,2,0)),MIN(Pivot!$F$4:$G$12),VLOOKUP(D48,Pivot!$F$4:$G$12,2,0)) -> 11264.71626 | G48: =IF(ISNA(VLOOKUP(D48,Pivot!$H$4:$I$10,2,0)),MIN(Pivot!$H$4:$I$10),VLOOKUP(D48,Pivot!$H$4:$I$10,2,0)) -> 10382.34181 | K48: =INDEX(E48:I48,1,Control!$C$10) -> 11873.55259
B49: 45 | C49: Cyprus | D49: CYP | E49: =IF(ISNA(VLOOKUP(D49,Pivot!$D$4:$E$30,2,0)),MIN(Pivot!$E$4:$E$30),VLOOKUP(D49,Pivot!$D$4:$E$30,2,0)) -> 11873.55259 | F49: =IF(ISNA(VLOOKUP(D49,Pivot!$F$4:$G$12,2,0)),MIN(Pivot!$F$4:$G$12),VLOOKUP(D49,Pivot!$F$4:$G$12,2,0)) -> 11264.71626 | G49: =IF(ISNA(VLOOKUP(D49,Pivot!$H$4:$I$10,2,0)),MIN(Pivot!$H$4:$I$10),VLOOKUP(D49,Pivot!$H$4:$I$10,2,0)) -> 10382.34181 | K49: =INDEX(E49:I49,1,Control!$C$10) -> 11873.55259
B50: 46 | C50: Czech Republic | D50: CZE | E50: =IF(ISNA(VLOOKUP(D50,Pivot!$D$4:$E$30,2,0)),MIN(Pivot!$E$4:$E$30),VLOOKUP(D50,Pivot!$D$4:$E$30,2,0)) -> 11873.55259 | F50: =IF(ISNA(VLOOKUP(D50,Pivot!$F$4:$G$12,2,0)),MIN(Pivot!$F$4:$G$12),VLOOKUP(D50,Pivot!$F$4:$G$12,2,0)) -> 11264.71626 | G50: =IF(ISNA(VLOOKUP(D50,Pivot!$H$4:$I$10,2,0)),MIN(Pivot!$H$4:$I$10),VLOOKUP(D50,Pivot!$H$4:$I$10,2,0)) -> 10382.34181 | K50: =INDEX(E50:I50,1,Control!$C$10) -> 11873.55259
B51: 47 | C51: Denmark | D51: DNK | E51: =IF(ISNA(VLOOKUP(D51,Pivot!$D$4:$E$30,2,0)),MIN(Pivot!$E$4:$E$30),VLOOKUP(D51,Pivot!$D$4:$E$30,2,0)) -> 82525.5254 | F51: =IF(ISNA(VLOOKUP(D51,Pivot!$F$4:$G$12,2,0)),MIN(Pivot!$F$4:$G$12),VLOOKUP(D51,Pivot!$F$4:$G$12,2,0)) -> 11264.71626 | G51: =IF(ISNA(VLOOKUP(D51,Pivot!$H$4:$I$10,2,0)),MIN(Pivot!$H$4:$I$10),VLOOKUP(D51,Pivot!$H$4:$I$10,2,0)) -> 10382.34181 | K51: =INDEX(E51:I51,1,Control!$C$10) -> 82525.5254
B52: 48 | C52: Djibouti | D52: DJI | E52: =IF(ISNA(VLOOKUP(D52,Pivot!$D$4:$E$30,2,0)),MIN(Pivot!$E$4:$E$30),VLOOKUP(D52,Pivot!$D$4:$E$30,2,0)) -> 11873.55259 | F52: =IF(ISNA(VLOOKUP(D52,Pivot!$F$4:$G$12,2,0)),MIN(Pivot!$F$4:$G$12),VLOOKUP(D52,Pivot!$F$4:$G$12,2,0)) -> 11264.71626 | G52: =IF(ISNA(VLOOKUP(D52,Pivot!$H$4:$I$10,2,0)),MIN(Pivot!$H$4:$I$10),VLOOKUP(D52,Pivot!$H$4:$I$10,2,0)) -> 10382.34181 | K52: =INDEX(E52:I52,1,Control!$C$10) -> 11873.55259
B53: 49 | C53: Dominica | D53: DMA | E53: =IF(ISNA(VLOOKUP(D53,Pivot!$D$4:$E$30,2,0)),MIN(Pivot!$E$4:$E$30),VLOOKUP(D53,Pivot!$D$4:$E$30,2,0)) -> 11873.55259 | F53: =IF(ISNA(VLOOKUP(D53,Pivot!$F$4:$G$12,2,0)),MIN(Pivot!$F$4:$G$12),VLOOKUP(D53,Pivot!$F$4:$G$12,2,0)) -> 11264.71626 | G53: =IF(ISNA(VLOOKUP(D53,Pivot!$H$4:$I$10,2,0)),MIN(Pivot!$H$4:$I$10),VLOOKUP(D53,Pivot!$H$4:$I$10,2,0)) -> 10382.34181 | K53: =INDEX(E53:I53,1,Control!$C$10) -> 11873.55259
B54: 50 | C54: Dominican Republic | D54: DOM | E54: =IF(ISNA(VLOOKUP(D54,Pivot!$D$4:$E$30,2,0)),MIN(Pivot!$E$4:$E$30),VLOOKUP(D54,Pivot!$D$4:$E$30,2,0)) -> 11873.55259 | F54: =IF(ISNA(VLOOKUP(D54,Pivot!$F$4:$G$12,2,0)),MIN(Pivot!$F$4:$G$12),VLOOKUP(D54,Pivot!$F$4:$G$12,2,0)) -> 11264.71626 | G54: =IF(ISNA(VLOOKUP(D54,Pivot!$H$4:$I$10,2,0)),MIN(Pivot!$H$4:$I$10),VLOOKUP(D54,Pivot!$H$4:$I$10,2,0)) -> 10382.34181 | K54: =INDEX(E54:I54,1,Control!$C$10) -> 11873.55259
B55: 51 | C55: Ecuador | D55: ECU | E55: =IF(ISNA(VLOOKUP(D55,Pivot!$D$4:$E$30,2,0)),MIN(Pivot!$E$4:$E$30),VLOOKUP(D55,Pivot!$D$4:$E$30,2,0)) -> 11873.55259 | F55: =IF(ISNA(VLOOKUP(D55,Pivot!$F$4:$G$12,2,0)),MIN(Pivot!$F$4:$G$12),VLOOKUP(D55,Pivot!$F$4:$G$12,2,0)) -> 11264.71626 | G55: =IF(ISNA(VLOOKUP(D55,Pivot!$H$4:$I$10,2,0)),MIN(Pivot!$H$4:$I$10),VLOOKUP(D55,Pivot!$H$4:$I$10,2,0)) -> 10382.34181 | K55: =INDEX(E55:I55,1,Control!$C$10) -> 11873.55259
B56: 52 | C56: Egypt | D56: EGY | E56: =IF(ISNA(VLOOKUP(D56,Pivot!$D$4:$E$30,2,0)),MIN(Pivot!$E$4:$E$30),VLOOKUP(D56,Pivot!$D$4:$E$30,2,0)) -> 11873.55259 | F56: =IF(ISNA(VLOOKUP(D56,Pivot!$F$4:$G$12,2,0)),MIN(Pivot!$F$4:$G$12),VLOOKUP(D56,Pivot!$F$4:$G$12,2,0)) -> 11264.71626 | G56: =IF(ISNA(VLOOKUP(D56,Pivot!$H$4:$I$10,2,0)),MIN(Pivot!$H$4:$I$10),VLOOKUP(D56,Pivot!$H$4:$I$10,2,0)) -> 10382.34181 | K56: =INDEX(E56:I56,1,Control!$C$10) -> 11873.55259
B57: 53 | C57: El Salvador | D57: SLV | E57: =IF(ISNA(VLOOKUP(D57,Pivot!$D$4:$E$30,2,0)),MIN(Pivot!$E$4:$E$30),VLOOKUP(D57,Pivot!$D$4:$E$30,2,0)) -> 11873.55259 | F57: =IF(ISNA(VLOOKUP(D57,Pivot!$F$4:$G$12,2,0)),MIN(Pivot!$F$4:$G$12),VLOOKUP(D57,Pivot!$F$4:$G$12,2,0)) -> 11264.71626 | G57: =IF(ISNA(VLOOKUP(D57,Pivot!$H$4:$I$10,2,0)),MIN(Pivot!$H$4:$I$10),VLOOKUP(D57,Pivot!$H$4:$I$10,2,0)) -> 10382.34181 | K57: =INDEX(E57:I57,1,Control!$C$10) -> 11873.55259
B58: 54 | C58: Equatorial Guinea | D58: GNQ | E58: =IF(ISNA(VLOOKUP(D58,Pivot!$D$4:$E$30,2,0)),MIN(Pivot!$E$4:$E$30),VLOOKUP(D58,Pivot!$D$4:$E$30,2,0)) -> 11873.55259 | F58: =IF(ISNA(VLOOKUP(D58,Pivot!$F$4:$G$12,2,0)),MIN(Pivot!$F$4:$G$12),VLOOKUP(D58,Pivot!$F$4:$G$12,2,0)) -> 11264.71626 | G58: =IF(ISNA(VLOOKUP(D58,Pivot!$H$4:$I$10,2,0)),MIN(Pivot!$H$4:$I$10),VLOOKUP(D58,Pivot!$H$4:$I$10,2,0)) -> 10382.34181 | K58: =INDEX(E58:I58,1,Control!$C$10) -> 11873.55259
B59: 55 | C59: Eritrea | D59: ERI | E59: =IF(ISNA(VLOOKUP(D59,Pivot!$D$4:$E$30,2,0)),MIN(Pivot!$E$4:$E$30),VLOOKUP(D59,Pivot!$D$4:$E$30,2,0)) -> 11873.55259 | F59: =IF(ISNA(VLOOKUP(D59,Pivot!$F$4:$G$12,2,0)),MIN(Pivot!$F$4:$G$12),VLOOKUP(D59,Pivot!$F$4:$G$12,2,0)) -> 11264.71626 | G59: =IF(ISNA(VLOOKUP(D59,Pivot!$H$4:$I$10,2,0)),MIN(Pivot!$H$4:$I$10),VLOOKUP(D59,Pivot!$H$4:$I$10,2,0)) -> 10382.34181 | K59: =INDEX(E59:I59,1,Control!$C$10) -> 11873.55259
B60: 56 | C60: Estonia | D60: EST | E60: =IF(ISNA(VLOOKUP(D60,Pivot!$D$4:$E$30,2,0)),MIN(Pivot!$E$4:$E$30),VLOOKUP(D60,Pivot!$D$4:$E$30,2,0)) -> 11873.55259 | F60: =IF(ISNA(VLOOKUP(D60,Pivot!$F$4:$G$12,2,0)),MIN(Pivot!$F$4:$G$12),VLOOKUP(D60,Pivot!$F$4:$G$12,2,0)) -> 11264.71626 | G60: =IF(ISNA(VLOOKUP(D60,Pivot!$H$4:$I$10,2,0)),MIN(Pivot!$H$4:$I$10),VLOOKUP(D60,Pivot!$H$4:$I$10,2,0)) -> 10382.34181 | K60: =INDEX(E60:I60,1,Control!$C$10) -> 11873.55259
B61: 57 | C61: Ethiopia | D61: ETH | E61: =IF(ISNA(VLOOKUP(D61,Pivot!$D$4:$E$30,2,0)),MIN(Pivot!$E$4:$E$30),VLOOKUP(D61,Pivot!$D$4:$E$30,2,0)) -> 11873.55259 | F61: =IF(ISNA(VLOOKUP(D61,Pivot!$F$4:$G$12,2,0)),MIN(Pivot!$F$4:$G$12),VLOOKUP(D61,Pivot!$F$4:$G$12,2,0)) -> 11264.71626 | G61: =IF(ISNA(VLOOKUP(D61,Pivot!$H$4:$I$10,2,0)),MIN(Pivot!$H$4:$I$10),VLOOKUP(D61,Pivot!$H$4:$I$10,2,0)) -> 10382.34181 | K61: =INDEX(E61:I61,1,Control!$C$10) -> 11873.55259
B62: 58 | C62: Fiji | D62: FJI | E62: =IF(ISNA(VLOOKUP(D62,Pivot!$D$4:$E$30,2,0)),MIN(Pivot!$E$4:$E$30),VLOOKUP(D62,Pivot!$D$4:$E$30,2,0)) -> 11873.55259 | F62: =IF(ISNA(VLOOKUP(D62,Pivot!$F$4:$G$12,2,0)),MIN(Pivot!$F$4:$G$12),VLOOKUP(D62,Pivot!$F$4:$G$12,2,0)) -> 11264.71626 | G62: =IF(ISNA(VLOOKUP(D62,Pivot!$H$4:$I$10,2,0)),MIN(Pivot!$H$4:$I$10),VLOOKUP(D62,Pivot!$H$4:$I$10,2,0)) -> 10382.34181 | K62: =INDEX(E62:I62,1,Control!$C$10) -> 11873.55259
B63: 59 | C63: Finland | D63: FIN | E63: =IF(ISNA(VLOOKUP(D63,Pivot!$D$4:$E$30,2,0)),MIN(Pivot!$E$4:$E$30),VLOOKUP(D63,Pivot!$D$4:$E$30,2,0)) -> 11873.55259 | F63: =IF(ISNA(VLOOKUP(D63,Pivot!$F$4:$G$12,2,0)),MIN(Pivot!$F$4:$G$12),VLOOKUP(D63,Pivot!$F$4:$G$12,2,0)) -> 11264.71626 | G63: =IF(ISNA(VLOOKUP(D63,Pivot!$H$4:$I$10,2,0)),MIN(Pivot!$H$4:$I$10),VLOOKUP(D63,Pivot!$H$4:$I$10,2,0)) -> 10382.34181 | K63: =INDEX(E63:I63,1,Control!$C$10) -> 11873.55259
B64: 60 | C64: France | D64: FRA | E64: =IF(ISNA(VLOOKUP(D64,Pivot!$D$4:$E$30,2,0)),MIN(Pivot!$E$4:$E$30),VLOOKUP(D64,Pivot!$D$4:$E$30,2,0)) -> 56952.72505 | F64: =IF(ISNA(VLOOKUP(D64,Pivot!$F$4:$G$12,2,0)),MIN(Pivot!$F$4:$G$12),VLOOKUP(D64,Pivot!$F$4:$G$12,2,0)) -> 11264.71626 | G64: =IF(ISNA(VLOOKUP(D64,Pivot!$H$4:$I$10,2,0)),MIN(Pivot!$H$4:$I$10),VLOOKUP(D64,Pivot!$H$4:$I$10,2,0)) -> 10382.34181 | K64: =INDEX(E64:I64,1,Control!$C$10) -> 56952.72505
B65: 61 | C65: Gabon | D65: GAB | E65: =IF(ISNA(VLOOKUP(D65,Pivot!$D$4:$E$30,2,0)),MIN(Pivot!$E$4:$E$30),VLOOKUP(D65,Pivot!$D$4:$E$30,2,0)) -> 11873.55259 | F65: =IF(ISNA(VLOOKUP(D65,Pivot!$F$4:$G$12,2,0)),MIN(Pivot!$F$4:$G$12),VLOOKUP(D65,Pivot!$F$4:$G$12,2,0)) -> 11264.71626 | G65: =IF(ISNA(VLOOKUP(D65,Pivot!$H$4:$I$10,2,0)),MIN(Pivot!$H$4:$I$10),VLOOKUP(D65,Pivot!$H$4:$I$10,2,0)) -> 10382.34181 | K65: =INDEX(E65:I65,1,Control!$C$10) -> 11873.55259
B66: 62 | C66: Gambia, The | D66: GMB | E66: =IF(ISNA(VLOOKUP(D66,Pivot!$D$4:$E$30,2,0)),MIN(Pivot!$E$4:$E$30),VLOOKUP(D66,Pivot!$D$4:$E$30,2,0)) -> 11873.55259 | F66: =IF(ISNA(VLOOKUP(D66,Pivot!$F$4:$G$12,2,0)),MIN(Pivot!$F$4:$G$12),VLOOKUP(D66,Pivot!$F$4:$G$12,2,0)) -> 11264.71626 | G66: =IF(ISNA(VLOOKUP(D66,Pivot!$H$4:$I$10,2,0)),MIN(Pivot!$H$4:$I$10),VLOOKUP(D66,Pivot!$H$4:$I$10,2,0)) -> 10382.34181 | K66: =INDEX(E66:I66,1,Control!$C$10) -> 11873.55259
B67: 63 | C67: Georgia | D67: GEO | E67: =IF(ISNA(VLOOKUP(D67,Pivot!$D$4:$E$30,2,0)),MIN(Pivot!$E$4:$E$30),VLOOKUP(D67,Pivot!$D$4:$E$30,2,0)) -> 11873.55259 | F67: =IF(ISNA(VLOOKUP(D67,Pivot!$F$4:$G$12,2,0)),MIN(Pivot!$F$4:$G$12),VLOOKUP(D67,Pivot!$F$4:$G$12,2,0)) -> 11264.71626 | G67: =IF(ISNA(VLOOKUP(D67,Pivot!$H$4:$I$10,2,0)),MIN(Pivot!$H$4:$I$10),VLOOKUP(D67,Pivot!$H$4:$I$10,2,0)) -> 10382.34181 | K67: =INDEX(E67:I67,1,Control!$C$10) -> 11873.55259
B68: 64 | C68: Germany | D68: DEU | E68: =IF(ISNA(VLOOKUP(D68,Pivot!$D$4:$E$30,2,0)),MIN(Pivot!$E$4:$E$30),VLOOKUP(D68,Pivot!$D$4:$E$30,2,0)) -> 79637.14702 | F68: =IF(ISNA(VLOOKUP(D68,Pivot!$F$4:$G$12,2,0)),MIN(Pivot!$F$4:$G$12),VLOOKUP(D68,Pivot!$F$4:$G$12,2,0)) -> 11264.71626 | G68: =IF(ISNA(VLOOKUP(D68,Pivot!$H$4:$I$10,2,0)),MIN(Pivot!$H$4:$I$10),VLOOKUP(D68,Pivot!$H$4:$I$10,2,0)) -> 10382.34181 | K68: =INDEX(E68:I68,1,Control!$C$10) -> 79637.14702
B69: 65 | C69: Ghana | D69: GHA | E69: =IF(ISNA(VLOOKUP(D69,Pivot!$D$4:$E$30,2,0)),MIN(Pivot!$E$4:$E$30),VLOOKUP(D69,Pivot!$D$4:$E$30,2,0)) -> 11873.55259 | F69: =IF(ISNA(VLOOKUP(D69,Pivot!$F$4:$G$12,2,0)),MIN(Pivot!$F$4:$G$12),VLOOKUP(D69,Pivot!$F$4:$G$12,2,0)) -> 11264.71626 | G69: =IF(ISNA(VLOOKUP(D69,Pivot!$H$4:$I$10,2,0)),MIN(Pivot!$H$4:$I$10),VLOOKUP(D69,Pivot!$H$4:$I$10,2,0)) -> 10382.34181 | K69: =INDEX(E69:I69,1,Control!$C$10) -> 11873.55259
B70: 66 | C70: Greece | D70: GRC | E70: =IF(ISNA(VLOOKUP(D70,Pivot!$D$4:$E$30,2,0)),MIN(Pivot!$E$4:$E$30),VLOOKUP(D70,Pivot!$D$4:$E$30,2,0)) -> 11873.55259 | F70: =IF(ISNA(VLOOKUP(D70,Pivot!$F$4:$G$12,2,0)),MIN(Pivot!$F$4:$G$12),VLOOKUP(D70,Pivot!$F$4:$G$12,2,0)) -> 11264.71626 | G70: =IF(ISNA(VLOOKUP(D70,Pivot!$H$4:$I$10,2,0)),MIN(Pivot!$H$4:$I$10),VLOOKUP(D70,Pivot!$H$4:$I$10,2,0)) -> 10382.34181 | K70: =INDEX(E70:I70,1,Control!$C$10) -> 11873.55259
B71: =B70+1 -> 67 | C71: Grenada | D71: GRD | E71: =IF(ISNA(VLOOKUP(D71,Pivot!$D$4:$E$30,2,0)),MIN(Pivot!$E$4:$E$30),VLOOKUP(D71,Pivot!$D$4:$E$30,2,0)) -> 11873.55259 | F71: =IF(ISNA(VLOOKUP(D71,Pivot!$F$4:$G$12,2,0)),MIN(Pivot!$F$4:$G$12),VLOOKUP(D71,Pivot!$F$4:$G$12,2,0)) -> 11264.71626 | G71: =IF(ISNA(VLOOKUP(D71,Pivot!$H$4:$I$10,2,0)),MIN(Pivot!$H$4:$I$10),VLOOKUP(D71,Pivot!$H$4:$I$10,2,0)) -> 10382.34181 | K71: =INDEX(E71:I71,1,Control!$C$10) -> 11873.55259
B72: 68 | C72: Guatemala | D72: GTM | E72: =IF(ISNA(VLOOKUP(D72,Pivot!$D$4:$E$30,2,0)),MIN(Pivot!$E$4:$E$30),VLOOKUP(D72,Pivot!$D$4:$E$30,2,0)) -> 11873.55259 | F72: =IF(ISNA(VLOOKUP(D72,Pivot!$F$4:$G$12,2,0)),MIN(Pivot!$F$4:$G$12),VLOOKUP(D72,Pivot!$F$4:$G$12,2,0)) -> 11264.71626 | G72: =IF(ISNA(VLOOKUP(D72,Pivot!$H$4:$I$10,2,0)),MIN(Pivot!$H$4:$I$10),VLOOKUP(D72,Pivot!$H$4:$I$10,2,0)) -> 10382.34181 | K72: =INDEX(E72:I72,1,Control!$C$10) -> 11873.55259
B73: 69 | C73: Guinea | D73: GIN | E73: =IF(ISNA(VLOOKUP(D73,Pivot!$D$4:$E$30,2,0)),MIN(Pivot!$E$4:$E$30),VLOOKUP(D73,Pivot!$D$4:$E$30,2,0)) -> 11873.55259 | F73: =IF(ISNA(VLOOKUP(D73,Pivot!$F$4:$G$12,2,0)),MIN(Pivot!$F$4:$G$12),VLOOKUP(D73,Pivot!$F$4:$G$12,2,0)) -> 11264.71626 | G73: =IF(ISNA(VLOOKUP(D73,Pivot!$H$4:$I$10,2,0)),MIN(Pivot!$H$4:$I$10),VLOOKUP(D73,Pivot!$H$4:$I$10,2,0)) -> 10382.34181 | K73: =INDEX(E73:I73,1,Control!$C$10) -> 11873.55259
B74: 70 | C74: Guinea-Bissau | D74: GNB | E74: =IF(ISNA(VLOOKUP(D74,Pivot!$D$4:$E$30,2,0)),MIN(Pivot!$E$4:$E$30),VLOOKUP(D74,Pivot!$D$4:$E$30,2,0)) -> 11873.55259 | F74: =IF(ISNA(VLOOKUP(D74,Pivot!$F$4:$G$12,2,0)),MIN(Pivot!$F$4:$G$12),VLOOKUP(D74,Pivot!$F$4:$G$12,2,0)) -> 11264.71626 | G74: =IF(ISNA(VLOOKUP(D74,Pivot!$H$4:$I$10,2,0)),MIN(Pivot!$H$4:$I$10),VLOOKUP(D74,Pivot!$H$4:$I$10,2,0)) -> 10382.34181 | K74: =INDEX(E74:I74,1,Control!$C$10) -> 11873.55259
B75: 71 | C75: Guyana | D75: GUY | E75: =IF(ISNA(VLOOKUP(D75,Pivot!$D$4:$E$30,2,0)),MIN(Pivot!$E$4:$E$30),VLOOKUP(D75,Pivot!$D$4:$E$30,2,0)) -> 11873.55259 | F75: =IF(ISNA(VLOOKUP(D75,Pivot!$F$4:$G$12,2,0)),MIN(Pivot!$F$4:$G$12),VLOOKUP(D75,Pivot!$F$4:$G$12,2,0)) -> 11264.71626 | G75: =IF(ISNA(VLOOKUP(D75,Pivot!$H$4:$I$10,2,0)),MIN(Pivot!$H$4:$I$10),VLOOKUP(D75,Pivot!$H$4:$I$10,2,0)) -> 10382.34181 | K75: =INDEX(E75:I75,1,Control!$C$10) -> 11873.55259
B76: 72 | C76: Haiti | D76: HTI | E76: =IF(ISNA(VLOOKUP(D76,Pivot!$D$4:$E$30,2,0)),MIN(Pivot!$E$4:$E$30),VLOOKUP(D76,Pivot!$D$4:$E$30,2,0)) -> 11873.55259 | F76: =IF(ISNA(VLOOKUP(D76,Pivot!$F$4:$G$12,2,0)),MIN(Pivot!$F$4:$G$12),VLOOKUP(D76,Pivot!$F$4:$G$12,2,0)) -> 11264.71626 | G76: =IF(ISNA(VLOOKUP(D76,Pivot!$H$4:$I$10,2,0)),MIN(Pivot!$H$4:$I$10),VLOOKUP(D76,Pivot!$H$4:$I$10,2,0)) -> 10382.34181 | K76: =INDEX(E76:I76,1,Control!$C$10) -> 11873.55259
B77: 73 | C77: Honduras | D77: HND | E77: =IF(ISNA(VLOOKUP(D77,Pivot!$D$4:$E$30,2,0)),MIN(Pivot!$E$4:$E$30),VLOOKUP(D77,Pivot!$D$4:$E$30,2,0)) -> 11873.55259 | F77: =IF(ISNA(VLOOKUP(D77,Pivot!$F$4:$G$12,2,0)),MIN(Pivot!$F$4:$G$12),VLOOKUP(D77,Pivot!$F$4:$G$12,2,0)) -> 11264.71626 | G77: =IF(ISNA(VLOOKUP(D77,Pivot!$H$4:$I$10,2,0)),MIN(Pivot!$H$4:$I$10),VLOOKUP(D77,Pivot!$H$4:$I$10,2,0)) -> 10382.34181 | K77: =INDEX(E77:I77,1,Control!$C$10) -> 11873.55259
B78: 74 | C78: Hungary | D78: HUN | E78: =IF(ISNA(VLOOKUP(D78,Pivot!$D$4:$E$30,2,0)),MIN(Pivot!$E$4:$E$30),VLOOKUP(D78,Pivot!$D$4:$E$30,2,0)) -> 11873.55259 | F78: =IF(ISNA(VLOOKUP(D78,Pivot!$F$4:$G$12,2,0)),MIN(Pivot!$F$4:$G$12),VLOOKUP(D78,Pivot!$F$4:$G$12,2,0)) -> 11264.71626 | G78: =IF(ISNA(VLOOKUP(D78,Pivot!$H$4:$I$10,2,0)),MIN(Pivot!$H$4:$I$10),VLOOKUP(D78,Pivot!$H$4:$I$10,2,0)) -> 10382.34181 | K78: =INDEX(E78:I78,1,Control!$C$10) -> 11873.55259
B79: 75 | C79: Iceland | D79: ISL | E79: =IF(ISNA(VLOOKUP(D79,Pivot!$D$4:$E$30,2,0)),MIN(Pivot!$E$4:$E$30),VLOOKUP(D79,Pivot!$D$4:$E$30,2,0)) -> 11873.55259 | F79: =IF(ISNA(VLOOKUP(D79,Pivot!$F$4:$G$12,2,0)),MIN(Pivot!$F$4:$G$12),VLOOKUP(D79,Pivot!$F$4:$G$12,2,0)) -> 11264.71626 | G79: =IF(ISNA(VLOOKUP(D79,Pivot!$H$4:$I$10,2,0)),MIN(Pivot!$H$4:$I$10),VLOOKUP(D79,Pivot!$H$4:$I$10,2,0)) -> 10382.34181 | K79: =INDEX(E79:I79,1,Control!$C$10) -> 11873.55259
B80: 76 | C80: India | D80: IND | E80: =IF(ISNA(VLOOKUP(D80,Pivot!$D$4:$E$30,2,0)),MIN(Pivot!$E$4:$E$30),VLOOKUP(D80,Pivot!$D$4:$E$30,2,0)) -> 13529.43089 | F80: =IF(ISNA(VLOOKUP(D80,Pivot!$F$4:$G$12,2,0)),MIN(Pivot!$F$4:$G$12),VLOOKUP(D80,Pivot!$F$4:$G$12,2,0)) -> 11264.71626 | G80: =IF(ISNA(VLOOKUP(D80,Pivot!$H$4:$I$10,2,0)),MIN(Pivot!$H$4:$I$10),VLOOKUP(D80,Pivot!$H$4:$I$10,2,0)) -> 15642.54648 | K80: =INDEX(E80:I80,1,Control!$C$10) -> 13529.43089
B81: 77 | C81: Indonesia | D81: IDN | E81: =IF(ISNA(VLOOKUP(D81,Pivot!$D$4:$E$30,2,0)),MIN(Pivot!$E$4:$E$30),VLOOKUP(D81,Pivot!$D$4:$E$30,2,0)) -> 28872.8368 | F81: =IF(ISNA(VLOOKUP(D81,Pivot!$F$4:$G$12,2,0)),MIN(Pivot!$F$4:$G$12),VLOOKUP(D81,Pivot!$F$4:$G$12,2,0)) -> 11264.71626 | G81: =IF(ISNA(VLOOKUP(D81,Pivot!$H$4:$I$10,2,0)),MIN(Pivot!$H$4:$I$10),VLOOKUP(D81,Pivot!$H$4:$I$10,2,0)) -> 10382.34181 | K81: =INDEX(E81:I81,1,Control!$C$10) -> 28872.8368
B82: 78 | C82: Iran | D82: IRN | E82: =IF(ISNA(VLOOKUP(D82,Pivot!$D$4:$E$30,2,0)),MIN(Pivot!$E$4:$E$30),VLOOKUP(D82,Pivot!$D$4:$E$30,2,0)) -> 11873.55259 | F82: =IF(ISNA(VLOOKUP(D82,Pivot!$F$4:$G$12,2,0)),MIN(Pivot!$F$4:$G$12),VLOOKUP(D82,Pivot!$F$4:$G$12,2,0)) -> 11264.71626 | G82: =IF(ISNA(VLOOKUP(D82,Pivot!$H$4:$I$10,2,0)),MIN(Pivot!$H$4:$I$10),VLOOKUP(D82,Pivot!$H$4:$I$10,2,0)) -> 10382.34181 | K82: =INDEX(E82:I82,1,Control!$C$10) -> 11873.55259
B83: 79 | C83: Iraq | D83: IRQ | E83: =IF(ISNA(VLOOKUP(D83,Pivot!$D$4:$E$30,2,0)),MIN(Pivot!$E$4:$E$30),VLOOKUP(D83,Pivot!$D$4:$E$30,2,0)) -> 11873.55259 | F83: =IF(ISNA(VLOOKUP(D83,Pivot!$F$4:$G$12,2,0)),MIN(Pivot!$F$4:$G$12),VLOOKUP(D83,Pivot!$F$4:$G$12,2,0)) -> 11264.71626 | G83: =IF(ISNA(VLOOKUP(D83,Pivot!$H$4:$I$10,2,0)),MIN(Pivot!$H$4:$I$10),VLOOKUP(D83,Pivot!$H$4:$I$10,2,0)) -> 10382.34181 | K83: =INDEX(E83:I83,1,Control!$C$10) -> 11873.55259
B84: 80 | C84: Ireland | D84: IRL | E84: =IF(ISNA(VLOOKUP(D84,Pivot!$D$4:$E$30,2,0)),MIN(Pivot!$E$4:$E$30),VLOOKUP(D84,Pivot!$D$4:$E$30,2,0)) -> 11873.55259 | F84: =IF(ISNA(VLOOKUP(D84,Pivot!$F$4:$G$12,2,0)),MIN(Pivot!$F$4:$G$12),VLOOKUP(D84,Pivot!$F$4:$G$12,2,0)) -> 11264.71626 | G84: =IF(ISNA(VLOOKUP(D84,Pivot!$H$4:$I$10,2,0)),MIN(Pivot!$H$4:$I$10),VLOOKUP(D84,Pivot!$H$4:$I$10,2,0)) -> 10382.34181 | K84: =INDEX(E84:I84,1,Control!$C$10) -> 11873.55259
B85: 81 | C85: Israel | D85: ISR | E85: =IF(ISNA(VLOOKUP(D85,Pivot!$D$4:$E$30,2,0)),MIN(Pivot!$E$4:$E$30),VLOOKUP(D85,Pivot!$D$4:$E$30,2,0)) -> 11873.55259 | F85: =IF(ISNA(VLOOKUP(D85,Pivot!$F$4:$G$12,2,0)),MIN(Pivot!$F$4:$G$12),VLOOKUP(D85,Pivot!$F$4:$G$12,2,0)) -> 11264.71626 | G85: =IF(ISNA(VLOOKUP(D85,Pivot!$H$4:$I$10,2,0)),MIN(Pivot!$H$4:$I$10),VLOOKUP(D85,Pivot!$H$4:$I$10,2,0)) -> 10382.34181 | K85: =INDEX(E85:I85,1,Control!$C$10) -> 11873.55259
B86: 82 | C86: Italy | D86: ITA | E86: =IF(ISNA(VLOOKUP(D86,Pivot!$D$4:$E$30,2,0)),MIN(Pivot!$E$4:$E$30),VLOOKUP(D86,Pivot!$D$4:$E$30,2,0)) -> 47258.85913 | F86: =IF(ISNA(VLOOKUP(D86,Pivot!$F$4:$G$12,2,0)),MIN(Pivot!$F$4:$G$12),VLOOKUP(D86,Pivot!$F$4:$G$12,2,0)) -> 11264.71626 | G86: =IF(ISNA(VLOOKUP(D86,Pivot!$H$4:$I$10,2,0)),MIN(Pivot!$H$4:$I$10),VLOOKUP(D86,Pivot!$H$4:$I$10,2,0)) -> 10382.34181 | K86: =INDEX(E86:I86,1,Control!$C$10) -> 47258.85913
B87: 83 | C87: Jamaica | D87: JAM | E87: =IF(ISNA(VLOOKUP(D87,Pivot!$D$4:$E$30,2,0)),MIN(Pivot!$E$4:$E$30),VLOOKUP(D87,Pivot!$D$4:$E$30,2,0)) -> 11873.55259 | F87: =IF(ISNA(VLOOKUP(D87,Pivot!$F$4:$G$12,2,0)),MIN(Pivot!$F$4:$G$12),VLOOKUP(D87,Pivot!$F$4:$G$12,2,0)) -> 11264.71626 | G87: =IF(ISNA(VLOOKUP(D87,Pivot!$H$4:$I$10,2,0)),MIN(Pivot!$H$4:$I$10),VLOOKUP(D87,Pivot!$H$4:$I$10,2,0)) -> 10382.34181 | K87: =INDEX(E87:I87,1,Control!$C$10) -> 11873.55259
B88: 84 | C88: Japan | D88: JPN | E88: =IF(ISNA(VLOOKUP(D88,Pivot!$D$4:$E$30,2,0)),MIN(Pivot!$E$4:$E$30),VLOOKUP(D88,Pivot!$D$4:$E$30,2,0)) -> 11873.55259 | F88: =IF(ISNA(VLOOKUP(D88,Pivot!$F$4:$G$12,2,0)),MIN(Pivot!$F$4:$G$12),VLOOKUP(D88,Pivot!$F$4:$G$12,2,0)) -> 11264.71626 | G88: =IF(ISNA(VLOOKUP(D88,Pivot!$H$4:$I$10,2,0)),MIN(Pivot!$H$4:$I$10),VLOOKUP(D88,Pivot!$H$4:$I$10,2,0)) -> 10382.34181 | K88: =INDEX(E88:I88,1,Control!$C$10) -> 11873.55259
B89: 85 | C89: Jordan | D89: JOR | E89: =IF(ISNA(VLOOKUP(D89,Pivot!$D$4:$E$30,2,0)),MIN(Pivot!$E$4:$E$30),VLOOKUP(D89,Pivot!$D$4:$E$30,2,0)) -> 11873.55259 | F89: =IF(ISNA(VLOOKUP(D89,Pivot!$F$4:$G$12,2,0)),MIN(Pivot!$F$4:$G$12),VLOOKUP(D89,Pivot!$F$4:$G$12,2,0)) -> 11264.71626 | G89: =IF(ISNA(VLOOKUP(D89,Pivot!$H$4:$I$10,2,0)),MIN(Pivot!$H$4:$I$10),VLOOKUP(D89,Pivot!$H$4:$I$10,2,0)) -> 10382.34181 | K89: =INDEX(E89:I89,1,Control!$C$10) -> 11873.55259
B90: 86 | C90: Kazakhstan | D90: KAZ | E90: =IF(ISNA(VLOOKUP(D90,Pivot!$D$4:$E$30,2,0)),MIN(Pivot!$E$4:$E$30),VLOOKUP(D90,Pivot!$D$4:$E$30,2,0)) -> 11873.55259 | F90: =IF(ISNA(VLOOKUP(D90,Pivot!$F$4:$G$12,2,0)),MIN(Pivot!$F$4:$G$12),VLOOKUP(D90,Pivot!$F$4:$G$12,2,0)) -> 11264.71626 | G90: =IF(ISNA(VLOOKUP(D90,Pivot!$H$4:$I$10,2,0)),MIN(Pivot!$H$4:$I$10),VLOOKUP(D90,Pivot!$H$4:$I$10,2,0)) -> 10382.34181 | K90: =INDEX(E90:I90,1,Control!$C$10) -> 11873.55259
B91: 87 | C91: Kenya | D91: KEN | E91: =IF(ISNA(VLOOKUP(D91,Pivot!$D$4:$E$30,2,0)),MIN(Pivot!$E$4:$E$30),VLOOKUP(D91,Pivot!$D$4:$E$30,2,0)) -> 11873.55259 | F91: =IF(ISNA(VLOOKUP(D91,Pivot!$F$4:$G$12,2,0)),MIN(Pivot!$F$4:$G$12),VLOOKUP(D91,Pivot!$F$4:$G$12,2,0)) -> 11264.71626 | G91: =IF(ISNA(VLOOKUP(D91,Pivot!$H$4:$I$10,2,0)),MIN(Pivot!$H$4:$I$10),VLOOKUP(D91,Pivot!$H$4:$I$10,2,0)) -> 10382.34181 | K91: =INDEX(E91:I91,1,Control!$C$10) -> 11873.55259
B92: 88 | C92: Kiribati | D92: KIR | E92: =IF(ISNA(VLOOKUP(D92,Pivot!$D$4:$E$30,2,0)),MIN(Pivot!$E$4:$E$30),VLOOKUP(D92,Pivot!$D$4:$E$30,2,0)) -> 11873.55259 | F92: =IF(ISNA(VLOOKUP(D92,Pivot!$F$4:$G$12,2,0)),MIN(Pivot!$F$4:$G$12),VLOOKUP(D92,Pivot!$F$4:$G$12,2,0)) -> 11264.71626 | G92: =IF(ISNA(VLOOKUP(D92,Pivot!$H$4:$I$10,2,0)),MIN(Pivot!$H$4:$I$10),VLOOKUP(D92,Pivot!$H$4:$I$10,2,0)) -> 10382.34181 | K92: =INDEX(E92:I92,1,Control!$C$10) -> 11873.55259
B93: 89 | C93: Korea, North | D93: PRK | E93: =IF(ISNA(VLOOKUP(D93,Pivot!$D$4:$E$30,2,0)),MIN(Pivot!$E$4:$E$30),VLOOKUP(D93,Pivot!$D$4:$E$30,2,0)) -> 11873.55259 | F93: =IF(ISNA(VLOOKUP(D93,Pivot!$F$4:$G$12,2,0)),MIN(Pivot!$F$4:$G$12),VLOOKUP(D93,Pivot!$F$4:$G$12,2,0)) -> 11264.71626 | G93: =IF(ISNA(VLOOKUP(D93,Pivot!$H$4:$I$10,2,0)),MIN(Pivot!$H$4:$I$10),VLOOKUP(D93,Pivot!$H$4:$I$10,2,0)) -> 10382.34181 | K93: =INDEX(E93:I93,1,Control!$C$10) -> 11873.55259
B94: 90 | C94: Korea, South | D94: KOR | E94: =IF(ISNA(VLOOKUP(D94,Pivot!$D$4:$E$30,2,0)),MIN(Pivot!$E$4:$E$30),VLOOKUP(D94,Pivot!$D$4:$E$30,2,0)) -> 11873.55259 | F94: =IF(ISNA(VLOOKUP(D94,Pivot!$F$4:$G$12,2,0)),MIN(Pivot!$F$4:$G$12),VLOOKUP(D94,Pivot!$F$4:$G$12,2,0)) -> 11264.71626 | G94: =IF(ISNA(VLOOKUP(D94,Pivot!$H$4:$I$10,2,0)),MIN(Pivot!$H$4:$I$10),VLOOKUP(D94,Pivot!$H$4:$I$10,2,0)) -> 10382.34181 | K94: =INDEX(E94:I94,1,Control!$C$10) -> 11873.55259
B95: 91 | C95: Kuwait | D95: KWT | E95: =IF(ISNA(VLOOKUP(D95,Pivot!$D$4:$E$30,2,0)),MIN(Pivot!$E$4:$E$30),VLOOKUP(D95,Pivot!$D$4:$E$30,2,0)) -> 11873.55259 | F95: =IF(ISNA(VLOOKUP(D95,Pivot!$F$4:$G$12,2,0)),MIN(Pivot!$F$4:$G$12),VLOOKUP(D95,Pivot!$F$4:$G$12,2,0)) -> 11264.71626 | G95: =IF(ISNA(VLOOKUP(D95,Pivot!$H$4:$I$10,2,0)),MIN(Pivot!$H$4:$I$10),VLOOKUP(D95,Pivot!$H$4:$I$10,2,0)) -> 10382.34181 | K95: =INDEX(E95:I95,1,Control!$C$10) -> 11873.55259
B96: 92 | C96: Kyrgyzstan | D96: KGZ | E96: =IF(ISNA(VLOOKUP(D96,Pivot!$D$4:$E$30,2,0)),MIN(Pivot!$E$4:$E$30),VLOOKUP(D96,Pivot!$D$4:$E$30,2,0)) -> 11873.55259 | F96: =IF(ISNA(VLOOKUP(D96,Pivot!$F$4:$G$12,2,0)),MIN(Pivot!$F$4:$G$12),VLOOKUP(D96,Pivot!$F$4:$G$12,2,0)) -> 11264.71626 | G96: =IF(ISNA(VLOOKUP(D96,Pivot!$H$4:$I$10,2,0)),MIN(Pivot!$H$4:$I$10),VLOOKUP(D96,Pivot!$H$4:$I$10,2,0)) -> 10382.34181 | K96: =INDEX(E96:I96,1,Control!$C$10) -> 11873.55259
B97: 93 | C97: Laos | D97: LAO | E97: =IF(ISNA(VLOOKUP(D97,Pivot!$D$4:$E$30,2,0)),MIN(Pivot!$E$4:$E$30),VLOOKUP(D97,Pivot!$D$4:$E$30,2,0)) -> 11873.55259 | F97: =IF(ISNA(VLOOKUP(D97,Pivot!$F$4:$G$12,2,0)),MIN(Pivot!$F$4:$G$12),VLOOKUP(D97,Pivot!$F$4:$G$12,2,0)) -> 11264.71626 | G97: =IF(ISNA(VLOOKUP(D97,Pivot!$H$4:$I$10,2,0)),MIN(Pivot!$H$4:$I$10),VLOOKUP(D97,Pivot!$H$4:$I$10,2,0)) -> 10382.34181 | K97: =INDEX(E97:I97,1,Control!$C$10) -> 11873.55259
B98: 94 | C98: Latvia | D98: LVA | E98: =IF(ISNA(VLOOKUP(D98,Pivot!$D$4:$E$30,2,0)),MIN(Pivot!$E$4:$E$30),VLOOKUP(D98,Pivot!$D$4:$E$30,2,0)) -> 11873.55259 | F98: =IF(ISNA(VLOOKUP(D98,Pivot!$F$4:$G$12,2,0)),MIN(Pivot!$F$4:$G$12),VLOOKUP(D98,Pivot!$F$4:$G$12,2,0)) -> 11264.71626 | G98: =IF(ISNA(VLOOKUP(D98,Pivot!$H$4:$I$10,2,0)),MIN(Pivot!$H$4:$I$10),VLOOKUP(D98,Pivot!$H$4:$I$10,2,0)) -> 10382.34181 | K98: =INDEX(E98:I98,1,Control!$C$10) -> 11873.55259
B99: 95 | C99: Lebanon | D99: LBN | E99: =IF(ISNA(VLOOKUP(D99,Pivot!$D$4:$E$30,2,0)),MIN(Pivot!$E$4:$E$30),VLOOKUP(D99,Pivot!$D$4:$E$30,2,0)) -> 11873.55259 | F99: =IF(ISNA(VLOOKUP(D99,Pivot!$F$4:$G$12,2,0)),MIN(Pivot!$F$4:$G$12),VLOOKUP(D99,Pivot!$F$4:$G$12,2,0)) -> 11264.71626 | G99: =IF(ISNA(VLOOKUP(D99,Pivot!$H$4:$I$10,2,0)),MIN(Pivot!$H$4:$I$10),VLOOKUP(D99,Pivot!$H$4:$I$10,2,0)) -> 10382.34181 | K99: =INDEX(E99:I99,1,Control!$C$10) -> 11873.55259
B100: 96 | C100: Lesotho | D100: LSO | E100: =IF(ISNA(VLOOKUP(D100,Pivot!$D$4:$E$30,2,0)),MIN(Pivot!$E$4:$E$30),VLOOKUP(D100,Pivot!$D$4:$E$30,2,0)) -> 11873.55259 | F100: =IF(ISNA(VLOOKUP(D100,Pivot!$F$4:$G$12,2,0)),MIN(Pivot!$F$4:$G$12),VLOOKUP(D100,Pivot!$F$4:$G$12,2,0)) -> 11264.71626 | G100: =IF(ISNA(VLOOKUP(D100,Pivot!$H$4:$I$10,2,0)),MIN(Pivot!$H$4:$I$10),VLOOKUP(D100,Pivot!$H$4:$I$10,2,0)) -> 10382.34181 | K100: =INDEX(E100:I100,1,Control!$C$10) -> 11873.55259
B101: 97 | C101: Liberia | D101: LBR | E101: =IF(ISNA(VLOOKUP(D101,Pivot!$D$4:$E$30,2,0)),MIN(Pivot!$E$4:$E$30),VLOOKUP(D101,Pivot!$D$4:$E$30,2,0)) -> 11873.55259 | F101: =IF(ISNA(VLOOKUP(D101,Pivot!$F$4:$G$12,2,0)),MIN(Pivot!$F$4:$G$12),VLOOKUP(D101,Pivot!$F$4:$G$12,2,0)) -> 11264.71626 | G101: =IF(ISNA(VLOOKUP(D101,Pivot!$H$4:$I$10,2,0)),MIN(Pivot!$H$4:$I$10),VLOOKUP(D101,Pivot!$H$4:$I$10,2,0)) -> 10382.34181 | K101: =INDEX(E101:I101,1,Control!$C$10) -> 11873.55259
B102: 98 | C102: Libya | D102: LBY | E102: =IF(ISNA(VLOOKUP(D102,Pivot!$D$4:$E$30,2,0)),MIN(Pivot!$E$4:$E$30),VLOOKUP(D102,Pivot!$D$4:$E$30,2,0)) -> 11873.55259 | F102: =IF(ISNA(VLOOKUP(D102,Pivot!$F$4:$G$12,2,0)),MIN(Pivot!$F$4:$G$12),VLOOKUP(D102,Pivot!$F$4:$G$12,2,0)) -> 11264.71626 | G102: =IF(ISNA(VLOOKUP(D102,Pivot!$H$4:$I$10,2,0)),MIN(Pivot!$H$4:$I$10),VLOOKUP(D102,Pivot!$H$4:$I$10,2,0)) -> 10382.34181 | K102: =INDEX(E102:I102,1,Control!$C$10) -> 11873.55259
B103: 99 | C103: Liechtenstein | D103: LIE | E103: =IF(ISNA(VLOOKUP(D103,Pivot!$D$4:$E$30,2,0)),MIN(Pivot!$E$4:$E$30),VLOOKUP(D103,Pivot!$D$4:$E$30,2,0)) -> 11873.55259 | F103: =IF(ISNA(VLOOKUP(D103,Pivot!$F$4:$G$12,2,0)),MIN(Pivot!$F$4:$G$12),VLOOKUP(D103,Pivot!$F$4:$G$12,2,0)) -> 11264.71626 | G103: =IF(ISNA(VLOOKUP(D103,Pivot!$H$4:$I$10,2,0)),MIN(Pivot!$H$4:$I$10),VLOOKUP(D103,Pivot!$H$4:$I$10,2,0)) -> 10382.34181 | K103: =INDEX(E103:I103,1,Control!$C$10) -> 11873.55259
B104: 100 | C104: Lithuania | D104: LTU | E104: =IF(ISNA(VLOOKUP(D104,Pivot!$D$4:$E$30,2,0)),MIN(Pivot!$E$4:$E$30),VLOOKUP(D104,Pivot!$D$4:$E$30,2,0)) -> 11873.55259 | F104: =IF(ISNA(VLOOKUP(D104,Pivot!$F$4:$G$12,2,0)),MIN(Pivot!$F$4:$G$12),VLOOKUP(D104,Pivot!$F$4:$G$12,2,0)) -> 11264.71626 | G104: =IF(ISNA(VLOOKUP(D104,Pivot!$H$4:$I$10,2,0)),MIN(Pivot!$H$4:$I$10),VLOOKUP(D104,Pivot!$H$4:$I$10,2,0)) -> 10382.34181 | K104: =INDEX(E104:I104,1,Control!$C$10) -> 11873.55259
B105: 101 | C105: Luxembourg | D105: LUX | E105: =IF(ISNA(VLOOKUP(D105,Pivot!$D$4:$E$30,2,0)),MIN(Pivot!$E$4:$E$30),VLOOKUP(D105,Pivot!$D$4:$E$30,2,0)) -> 11873.55259 | F105: =IF(ISNA(VLOOKUP(D105,Pivot!$F$4:$G$12,2,0)),MIN(Pivot!$F$4:$G$12),VLOOKUP(D105,Pivot!$F$4:$G$12,2,0)) -> 11264.71626 | G105: =IF(ISNA(VLOOKUP(D105,Pivot!$H$4:$I$10,2,0)),MIN(Pivot!$H$4:$I$10),VLOOKUP(D105,Pivot!$H$4:$I$10,2,0)) -> 10382.34181 | K105: =INDEX(E105:I105,1,Control!$C$10) -> 11873.55259
B106: 102 | C106: Macedonia | D106: MKD | E106: =IF(ISNA(VLOOKUP(D106,Pivot!$D$4:$E$30,2,0)),MIN(Pivot!$E$4:$E$30),VLOOKUP(D106,Pivot!$D$4:$E$30,2,0)) -> 11873.55259 | F106: =IF(ISNA(VLOOKUP(D106,Pivot!$F$4:$G$12,2,0)),MIN(Pivot!$F$4:$G$12),VLOOKUP(D106,Pivot!$F$4:$G$12,2,0)) -> 11264.71626 | G106: =IF(ISNA(VLOOKUP(D106,Pivot!$H$4:$I$10,2,0)),MIN(Pivot!$H$4:$I$10),VLOOKUP(D106,Pivot!$H$4:$I$10,2,0)) -> 10382.34181 | K106: =INDEX(E106:I106,1,Control!$C$10) -> 11873.55259
B107: 103 | C107: Madagascar | D107: MDG | E107: =IF(ISNA(VLOOKUP(D107,Pivot!$D$4:$E$30,2,0)),MIN(Pivot!$E$4:$E$30),VLOOKUP(D107,Pivot!$D$4:$E$30,2,0)) -> 11873.55259 | F107: =IF(ISNA(VLOOKUP(D107,Pivot!$F$4:$G$12,2,0)),MIN(Pivot!$F$4:$G$12),VLOOKUP(D107,Pivot!$F$4:$G$12,2,0)) -> 11264.71626 | G107: =IF(ISNA(VLOOKUP(D107,Pivot!$H$4:$I$10,2,0)),MIN(Pivot!$H$4:$I$10),VLOOKUP(D107,Pivot!$H$4:$I$10,2,0)) -> 10382.34181 | K107: =INDEX(E107:I107,1,Control!$C$10) -> 11873.55259
B108: 104 | C108: Malawi | D108: MWI | E108: =IF(ISNA(VLOOKUP(D108,Pivot!$D$4:$E$30,2,0)),MIN(Pivot!$E$4:$E$30),VLOOKUP(D108,Pivot!$D$4:$E$30,2,0)) -> 11873.55259 | F108: =IF(ISNA(VLOOKUP(D108,Pivot!$F$4:$G$12,2,0)),MIN(Pivot!$F$4:$G$12),VLOOKUP(D108,Pivot!$F$4:$G$12,2,0)) -> 11264.71626 | G108: =IF(ISNA(VLOOKUP(D108,Pivot!$H$4:$I$10,2,0)),MIN(Pivot!$H$4:$I$10),VLOOKUP(D108,Pivot!$H$4:$I$10,2,0)) -> 10382.34181 | K108: =INDEX(E108:I108,1,Control!$C$10) -> 11873.55259
B109: 105 | C109: Malaysia | D109: MYS | E109: =IF(ISNA(VLOOKUP(D109,Pivot!$D$4:$E$30,2,0)),MIN(Pivot!$E$4:$E$30),VLOOKUP(D109,Pivot!$D$4:$E$30,2,0)) -> 24996.13322 | F109: =IF(ISNA(VLOOKUP(D109,Pivot!$F$4:$G$12,2,0)),MIN(Pivot!$F$4:$G$12),VLOOKUP(D109,Pivot!$F$4:$G$12,2,0)) -> 11264.71626 | G109: =IF(ISNA(VLOOKUP(D109,Pivot!$H$4:$I$10,2,0)),MIN(Pivot!$H$4:$I$10),VLOOKUP(D109,Pivot!$H$4:$I$10,2,0)) -> 10382.34181 | K109: =INDEX(E109:I109,1,Control!$C$10) -> 24996.13322
B110: 106 | C110: Maldives | D110: MDV | E110: =IF(ISNA(VLOOKUP(D110,Pivot!$D$4:$E$30,2,0)),MIN(Pivot!$E$4:$E$30),VLOOKUP(D110,Pivot!$D$4:$E$30,2,0)) -> 11873.55259 | F110: =IF(ISNA(VLOOKUP(D110,Pivot!$F$4:$G$12,2,0)),MIN(Pivot!$F$4:$G$12),VLOOKUP(D110,Pivot!$F$4:$G$12,2,0)) -> 11264.71626 | G110: =IF(ISNA(VLOOKUP(D110,Pivot!$H$4:$I$10,2,0)),MIN(Pivot!$H$4:$I$10),VLOOKUP(D110,Pivot!$H$4:$I$10,2,0)) -> 10382.34181 | K110: =INDEX(E110:I110,1,Control!$C$10) -> 11873.55259
B111: 107 | C111: Mali | D111: MLI | E111: =IF(ISNA(VLOOKUP(D111,Pivot!$D$4:$E$30,2,0)),MIN(Pivot!$E$4:$E$30),VLOOKUP(D111,Pivot!$D$4:$E$30,2,0)) -> 11873.55259 | F111: =IF(ISNA(VLOOKUP(D111,Pivot!$F$4:$G$12,2,0)),MIN(Pivot!$F$4:$G$12),VLOOKUP(D111,Pivot!$F$4:$G$12,2,0)) -> 11264.71626 | G111: =IF(ISNA(VLOOKUP(D111,Pivot!$H$4:$I$10,2,0)),MIN(Pivot!$H$4:$I$10),VLOOKUP(D111,Pivot!$H$4:$I$10,2,0)) -> 10382.34181 | K111: =INDEX(E111:I111,1,Control!$C$10) -> 11873.55259
B112: 108 | C112: Malta | D112: MLT | E112: =IF(ISNA(VLOOKUP(D112,Pivot!$D$4:$E$30,2,0)),MIN(Pivot!$E$4:$E$30),VLOOKUP(D112,Pivot!$D$4:$E$30,2,0)) -> 11873.55259 | F112: =IF(ISNA(VLOOKUP(D112,Pivot!$F$4:$G$12,2,0)),MIN(Pivot!$F$4:$G$12),VLOOKUP(D112,Pivot!$F$4:$G$12,2,0)) -> 11264.71626 | G112: =IF(ISNA(VLOOKUP(D112,Pivot!$H$4:$I$10,2,0)),MIN(Pivot!$H$4:$I$10),VLOOKUP(D112,Pivot!$H$4:$I$10,2,0)) -> 10382.34181 | K112: =INDEX(E112:I112,1,Control!$C$10) -> 11873.55259
B113: 109 | C113: Marshall Islands | D113: MHL | E113: =IF(ISNA(VLOOKUP(D113,Pivot!$D$4:$E$30,2,0)),MIN(Pivot!$E$4:$E$30),VLOOKUP(D113,Pivot!$D$4:$E$30,2,0)) -> 11873.55259 | F113: =IF(ISNA(VLOOKUP(D113,Pivot!$F$4:$G$12,2,0)),MIN(Pivot!$F$4:$G$12),VLOOKUP(D113,Pivot!$F$4:$G$12,2,0)) -> 11264.71626 | G113: =IF(ISNA(VLOOKUP(D113,Pivot!$H$4:$I$10,2,0)),MIN(Pivot!$H$4:$I$10),VLOOKUP(D113,Pivot!$H$4:$I$10,2,0)) -> 10382.34181 | K113: =INDEX(E113:I113,1,Control!$C$10) -> 11873.55259
B114: 110 | C114: Mauritania | D114: MRT | E114: =IF(ISNA(VLOOKUP(D114,Pivot!$D$4:$E$30,2,0)),MIN(Pivot!$E$4:$E$30),VLOOKUP(D114,Pivot!$D$4:$E$30,2,0)) -> 11873.55259 | F114: =IF(ISNA(VLOOKUP(D114,Pivot!$F$4:$G$12,2,0)),MIN(Pivot!$F$4:$G$12),VLOOKUP(D114,Pivot!$F$4:$G$12,2,0)) -> 11264.71626 | G114: =IF(ISNA(VLOOKUP(D114,Pivot!$H$4:$I$10,2,0)),MIN(Pivot!$H$4:$I$10),VLOOKUP(D114,Pivot!$H$4:$I$10,2,0)) -> 10382.34181 | K114: =INDEX(E114:I114,1,Control!$C$10) -> 11873.55259
B115: 111 | C115: Mauritius | D115: MUS | E115: =IF(ISNA(VLOOKUP(D115,Pivot!$D$4:$E$30,2,0)),MIN(Pivot!$E$4:$E$30),VLOOKUP(D115,Pivot!$D$4:$E$30,2,0)) -> 11873.55259 | F115: =IF(ISNA(VLOOKUP(D115,Pivot!$F$4:$G$12,2,0)),MIN(Pivot!$F$4:$G$12),VLOOKUP(D115,Pivot!$F$4:$G$12,2,0)) -> 11264.71626 | G115: =IF(ISNA(VLOOKUP(D115,Pivot!$H$4:$I$10,2,0)),MIN(Pivot!$H$4:$I$10),VLOOKUP(D115,Pivot!$H$4:$I$10,2,0)) -> 10382.34181 | K115: =INDEX(E115:I115,1,Control!$C$10) -> 11873.55259
B116: 112 | C116: Mexico | D116: MEX | E116: =IF(ISNA(VLOOKUP(D116,Pivot!$D$4:$E$30,2,0)),MIN(Pivot!$E$4:$E$30),VLOOKUP(D116,Pivot!$D$4:$E$30,2,0)) -> 32138.49829 | F116: =IF(ISNA(VLOOKUP(D116,Pivot!$F$4:$G$12,2,0)),MIN(Pivot!$F$4:$G$12),VLOOKUP(D116,Pivot!$F$4:$G$12,2,0)) -> 11264.71626 | G116: =IF(ISNA(VLOOKUP(D116,Pivot!$H$4:$I$10,2,0)),MIN(Pivot!$H$4:$I$10),VLOOKUP(D116,Pivot!$H$4:$I$10,2,0)) -> 10382.34181 | K116: =INDEX(E116:I116,1,Control!$C$10) -> 32138.49829
B117: 113 | C117: Micronesia, Federated States of | D117: FSM | E117: =IF(ISNA(VLOOKUP(D117,Pivot!$D$4:$E$30,2,0)),MIN(Pivot!$E$4:$E$30),VLOOKUP(D117,Pivot!$D$4:$E$30,2,0)) -> 11873.55259 | F117: =IF(ISNA(VLOOKUP(D117,Pivot!$F$4:$G$12,2,0)),MIN(Pivot!$F$4:$G$12),VLOOKUP(D117,Pivot!$F$4:$G$12,2,0)) -> 11264.71626 | G117: =IF(ISNA(VLOOKUP(D117,Pivot!$H$4:$I$10,2,0)),MIN(Pivot!$H$4:$I$10),VLOOKUP(D117,Pivot!$H$4:$I$10,2,0)) -> 10382.34181 | K117: =INDEX(E117:I117,1,Control!$C$10) -> 11873.55259
B118: 114 | C118: Moldova | D118: MDA | E118: =IF(ISNA(VLOOKUP(D118,Pivot!$D$4:$E$30,2,0)),MIN(Pivot!$E$4:$E$30),VLOOKUP(D118,Pivot!$D$4:$E$30,2,0)) -> 11873.55259 | F118: =IF(ISNA(VLOOKUP(D118,Pivot!$F$4:$G$12,2,0)),MIN(Pivot!$F$4:$G$12),VLOOKUP(D118,Pivot!$F$4:$G$12,2,0)) -> 11264.71626 | G118: =IF(ISNA(VLOOKUP(D118,Pivot!$H$4:$I$10,2,0)),MIN(Pivot!$H$4:$I$10),VLOOKUP(D118,Pivot!$H$4:$I$10,2,0)) -> 10382.34181 | K118: =INDEX(E118:I118,1,Control!$C$10) -> 11873.55259
B119: 115 | C119: Monaco | D119: MCO | E119: =IF(ISNA(VLOOKUP(D119,Pivot!$D$4:$E$30,2,0)),MIN(Pivot!$E$4:$E$30),VLOOKUP(D119,Pivot!$D$4:$E$30,2,0)) -> 11873.55259 | F119: =IF(ISNA(VLOOKUP(D119,Pivot!$F$4:$G$12,2,0)),MIN(Pivot!$F$4:$G$12),VLOOKUP(D119,Pivot!$F$4:$G$12,2,0)) -> 11264.71626 | G119: =IF(ISNA(VLOOKUP(D119,Pivot!$H$4:$I$10,2,0)),MIN(Pivot!$H$4:$I$10),VLOOKUP(D119,Pivot!$H$4:$I$10,2,0)) -> 10382.34181 | K119: =INDEX(E119:I119,1,Control!$C$10) -> 11873.55259
B120: 116 | C120: Mongolia | D120: MNG | E120: =IF(ISNA(VLOOKUP(D120,Pivot!$D$4:$E$30,2,0)),MIN(Pivot!$E$4:$E$30),VLOOKUP(D120,Pivot!$D$4:$E$30,2,0)) -> 11873.55259 | F120: =IF(ISNA(VLOOKUP(D120,Pivot!$F$4:$G$12,2,0)),MIN(Pivot!$F$4:$G$12),VLOOKUP(D120,Pivot!$F$4:$G$12,2,0)) -> 11264.71626 | G120: =IF(ISNA(VLOOKUP(D120,Pivot!$H$4:$I$10,2,0)),MIN(Pivot!$H$4:$I$10),VLOOKUP(D120,Pivot!$H$4:$I$10,2,0)) -> 10382.34181 | K120: =INDEX(E120:I120,1,Control!$C$10) -> 11873.55259
B121: 117 | C121: Montenegro | D121: CG | E121: =IF(ISNA(VLOOKUP(D121,Pivot!$D$4:$E$30,2,0)),MIN(Pivot!$E$4:$E$30),VLOOKUP(D121,Pivot!$D$4:$E$30,2,0)) -> 11873.55259 | F121: =IF(ISNA(VLOOKUP(D121,Pivot!$F$4:$G$12,2,0)),MIN(Pivot!$F$4:$G$12),VLOOKUP(D121,Pivot!$F$4:$G$12,2,0)) -> 11264.71626 | G121: =IF(ISNA(VLOOKUP(D121,Pivot!$H$4:$I$10,2,0)),MIN(Pivot!$H$4:$I$10),VLOOKUP(D121,Pivot!$H$4:$I$10,2,0)) -> 10382.34181 | K121: =INDEX(E121:I121,1,Control!$C$10) -> 11873.55259
B122: 118 | C122: Morocco | D122: MAR | E122: =IF(ISNA(VLOOKUP(D122,Pivot!$D$4:$E$30,2,0)),MIN(Pivot!$E$4:$E$30),VLOOKUP(D122,Pivot!$D$4:$E$30,2,0)) -> 11873.55259 | F122: =IF(ISNA(VLOOKUP(D122,Pivot!$F$4:$G$12,2,0)),MIN(Pivot!$F$4:$G$12),VLOOKUP(D122,Pivot!$F$4:$G$12,2,0)) -> 11264.71626 | G122: =IF(ISNA(VLOOKUP(D122,Pivot!$H$4:$I$10,2,0)),MIN(Pivot!$H$4:$I$10),VLOOKUP(D122,Pivot!$H$4:$I$10,2,0)) -> 10382.34181 | K122: =INDEX(E122:I122,1,Control!$C$10) -> 11873.55259
B123: 119 | C123: Mozambique | D123: MOZ | E123: =IF(ISNA(VLOOKUP(D123,Pivot!$D$4:$E$30,2,0)),MIN(Pivot!$E$4:$E$30),VLOOKUP(D123,Pivot!$D$4:$E$30,2,0)) -> 11873.55259 | F123: =IF(ISNA(VLOOKUP(D123,Pivot!$F$4:$G$12,2,0)),MIN(Pivot!$F$4:$G$12),VLOOKUP(D123,Pivot!$F$4:$G$12,2,0)) -> 11264.71626 | G123: =IF(ISNA(VLOOKUP(D123,Pivot!$H$4:$I$10,2,0)),MIN(Pivot!$H$4:$I$10),VLOOKUP(D123,Pivot!$H$4:$I$10,2,0)) -> 10382.34181 | K123: =INDEX(E123:I123,1,Control!$C$10) -> 11873.55259
B124: 120 | C124: Namibia | D124: NAM | E124: =IF(ISNA(VLOOKUP(D124,Pivot!$D$4:$E$30,2,0)),MIN(Pivot!$E$4:$E$30),VLOOKUP(D124,Pivot!$D$4:$E$30,2,0)) -> 11873.55259 | F124: =IF(ISNA(VLOOKUP(D124,Pivot!$F$4:$G$12,2,0)),MIN(Pivot!$F$4:$G$12),VLOOKUP(D124,Pivot!$F$4:$G$12,2,0)) -> 11264.71626 | G124: =IF(ISNA(VLOOKUP(D124,Pivot!$H$4:$I$10,2,0)),MIN(Pivot!$H$4:$I$10),VLOOKUP(D124,Pivot!$H$4:$I$10,2,0)) -> 10382.34181 | K124: =INDEX(E124:I124,1,Control!$C$10) -> 11873.55259
B125: 121 | C125: Nauru | D125: NRU | E125: =IF(ISNA(VLOOKUP(D125,Pivot!$D$4:$E$30,2,0)),MIN(Pivot!$E$4:$E$30),VLOOKUP(D125,Pivot!$D$4:$E$30,2,0)) -> 11873.55259 | F125: =IF(ISNA(VLOOKUP(D125,Pivot!$F$4:$G$12,2,0)),MIN(Pivot!$F$4:$G$12),VLOOKUP(D125,Pivot!$F$4:$G$12,2,0)) -> 11264.71626 | G125: =IF(ISNA(VLOOKUP(D125,Pivot!$H$4:$I$10,2,0)),MIN(Pivot!$H$4:$I$10),VLOOKUP(D125,Pivot!$H$4:$I$10,2,0)) -> 10382.34181 | K125: =INDEX(E125:I125,1,Control!$C$10) -> 11873.55259
B126: 122 | C126: Nepal | D126: NPL | E126: =IF(ISNA(VLOOKUP(D126,Pivot!$D$4:$E$30,2,0)),MIN(Pivot!$E$4:$E$30),VLOOKUP(D126,Pivot!$D$4:$E$30,2,0)) -> 11873.55259 | F126: =IF(ISNA(VLOOKUP(D126,Pivot!$F$4:$G$12,2,0)),MIN(Pivot!$F$4:$G$12),VLOOKUP(D126,Pivot!$F$4:$G$12,2,0)) -> 11264.71626 | G126: =IF(ISNA(VLOOKUP(D126,Pivot!$H$4:$I$10,2,0)),MIN(Pivot!$H$4:$I$10),VLOOKUP(D126,Pivot!$H$4:$I$10,2,0)) -> 10382.34181 | K126: =INDEX(E126:I126,1,Control!$C$10) -> 11873.55259
B127: 123 | C127: Netherlands | D127: NLD | E127: =IF(ISNA(VLOOKUP(D127,Pivot!$D$4:$E$30,2,0)),MIN(Pivot!$E$4:$E$30),VLOOKUP(D127,Pivot!$D$4:$E$30,2,0)) -> 73006.4312 | F127: =IF(ISNA(VLOOKUP(D127,Pivot!$F$4:$G$12,2,0)),MIN(Pivot!$F$4:$G$12),VLOOKUP(D127,Pivot!$F$4:$G$12,2,0)) -> 62090.77258 | G127: =IF(ISNA(VLOOKUP(D127,Pivot!$H$4:$I$10,2,0)),MIN(Pivot!$H$4:$I$10),VLOOKUP(D127,Pivot!$H$4:$I$10,2,0)) -> 10382.34181 | K127: =INDEX(E127:I127,1,Control!$C$10) -> 73006.4312
B128: 124 | C128: New Zealand | D128: NZL | E128: =IF(ISNA(VLOOKUP(D128,Pivot!$D$4:$E$30,2,0)),MIN(Pivot!$E$4:$E$30),VLOOKUP(D128,Pivot!$D$4:$E$30,2,0)) -> 70287.55497 | F128: =IF(ISNA(VLOOKUP(D128,Pivot!$F$4:$G$12,2,0)),MIN(Pivot!$F$4:$G$12),VLOOKUP(D128,Pivot!$F$4:$G$12,2,0)) -> 53990.22689 | G128: =IF(ISNA(VLOOKUP(D128,Pivot!$H$4:$I$10,2,0)),MIN(Pivot!$H$4:$I$10),VLOOKUP(D128,Pivot!$H$4:$I$10,2,0)) -> 10382.34181 | K128: =INDEX(E128:I128,1,Control!$C$10) -> 70287.55497
B129: 125 | C129: Nicaragua | D129: NIC | E129: =IF(ISNA(VLOOKUP(D129,Pivot!$D$4:$E$30,2,0)),MIN(Pivot!$E$4:$E$30),VLOOKUP(D129,Pivot!$D$4:$E$30,2,0)) -> 11873.55259 | F129: =IF(ISNA(VLOOKUP(D129,Pivot!$F$4:$G$12,2,0)),MIN(Pivot!$F$4:$G$12),VLOOKUP(D129,Pivot!$F$4:$G$12,2,0)) -> 11264.71626 | G129: =IF(ISNA(VLOOKUP(D129,Pivot!$H$4:$I$10,2,0)),MIN(Pivot!$H$4:$I$10),VLOOKUP(D129,Pivot!$H$4:$I$10,2,0)) -> 10382.34181 | K129: =INDEX(E129:I129,1,Control!$C$10) -> 11873.55259
B130: 126 | C130: Niger | D130: NER | E130: =IF(ISNA(VLOOKUP(D130,Pivot!$D$4:$E$30,2,0)),MIN(Pivot!$E$4:$E$30),VLOOKUP(D130,Pivot!$D$4:$E$30,2,0)) -> 11873.55259 | F130: =IF(ISNA(VLOOKUP(D130,Pivot!$F$4:$G$12,2,0)),MIN(Pivot!$F$4:$G$12),VLOOKUP(D130,Pivot!$F$4:$G$12,2,0)) -> 11264.71626 | G130: =IF(ISNA(VLOOKUP(D130,Pivot!$H$4:$I$10,2,0)),MIN(Pivot!$H$4:$I$10),VLOOKUP(D130,Pivot!$H$4:$I$10,2,0)) -> 10382.34181 | K130: =INDEX(E130:I130,1,Control!$C$10) -> 11873.55259
B131: 127 | C131: Nigeria | D131: NGA | E131: =IF(ISNA(VLOOKUP(D131,Pivot!$D$4:$E$30,2,0)),MIN(Pivot!$E$4:$E$30),VLOOKUP(D131,Pivot!$D$4:$E$30,2,0)) -> 11873.55259 | F131: =IF(ISNA(VLOOKUP(D131,Pivot!$F$4:$G$12,2,0)),MIN(Pivot!$F$4:$G$12),VLOOKUP(D131,Pivot!$F$4:$G$12,2,0)) -> 11264.71626 | G131: =IF(ISNA(VLOOKUP(D131,Pivot!$H$4:$I$10,2,0)),MIN(Pivot!$H$4:$I$10),VLOOKUP(D131,Pivot!$H$4:$I$10,2,0)) -> 10382.34181 | K131: =INDEX(E131:I131,1,Control!$C$10) -> 11873.55259
B132: 128 | C132: Norway | D132: NOR | E132: =IF(ISNA(VLOOKUP(D132,Pivot!$D$4:$E$30,2,0)),MIN(Pivot!$E$4:$E$30),VLOOKUP(D132,Pivot!$D$4:$E$30,2,0)) -> 99016.17437 | F132: =IF(ISNA(VLOOKUP(D132,Pivot!$F$4:$G$12,2,0)),MIN(Pivot!$F$4:$G$12),VLOOKUP(D132,Pivot!$F$4:$G$12,2,0)) -> 11264.71626 | G132: =IF(ISNA(VLOOKUP(D132,Pivot!$H$4:$I$10,2,0)),MIN(Pivot!$H$4:$I$10),VLOOKUP(D132,Pivot!$H$4:$I$10,2,0)) -> 10382.34181 | K132: =INDEX(E132:I132,1,Control!$C$10) -> 99016.17437
B133: 129 | C133: Oman | D133: OMN | E133: =IF(ISNA(VLOOKUP(D133,Pivot!$D$4:$E$30,2,0)),MIN(Pivot!$E$4:$E$30),VLOOKUP(D133,Pivot!$D$4:$E$30,2,0)) -> 11873.55259 | F133: =IF(ISNA(VLOOKUP(D133,Pivot!$F$4:$G$12,2,0)),MIN(Pivot!$F$4:$G$12),VLOOKUP(D133,Pivot!$F$4:$G$12,2,0)) -> 11264.71626 | G133: =IF(ISNA(VLOOKUP(D133,Pivot!$H$4:$I$10,2,0)),MIN(Pivot!$H$4:$I$10),VLOOKUP(D133,Pivot!$H$4:$I$10,2,0)) -> 10382.34181 | K133: =INDEX(E133:I133,1,Control!$C$10) -> 11873.55259
B134: 130 | C134: Pakistan | D134: PAK | E134: =IF(ISNA(VLOOKUP(D134,Pivot!$D$4:$E$30,2,0)),MIN(Pivot!$E$4:$E$30),VLOOKUP(D134,Pivot!$D$4:$E$30,2,0)) -> 11873.55259 | F134: =IF(ISNA(VLOOKUP(D134,Pivot!$F$4:$G$12,2,0)),MIN(Pivot!$F$4:$G$12),VLOOKUP(D134,Pivot!$F$4:$G$12,2,0)) -> 14887 | G134: =IF(ISNA(VLOOKUP(D134,Pivot!$H$4:$I$10,2,0)),MIN(Pivot!$H$4:$I$10),VLOOKUP(D134,Pivot!$H$4:$I$10,2,0)) -> 10382.34181 | K134: =INDEX(E134:I134,1,Control!$C$10) -> 11873.55259
B135: =B134+1 -> 131 | C135: Palau | D135: PLW | E135: =IF(ISNA(VLOOKUP(D135,Pivot!$D$4:$E$30,2,0)),MIN(Pivot!$E$4:$E$30),VLOOKUP(D135,Pivot!$D$4:$E$30,2,0)) -> 11873.55259 | F135: =IF(ISNA(VLOOKUP(D135,Pivot!$F$4:$G$12,2,0)),MIN(Pivot!$F$4:$G$12),VLOOKUP(D135,Pivot!$F$4:$G$12,2,0)) -> 11264.71626 | G135: =IF(ISNA(VLOOKUP(D135,Pivot!$H$4:$I$10,2,0)),MIN(Pivot!$H$4:$I$10),VLOOKUP(D135,Pivot!$H$4:$I$10,2,0)) -> 10382.34181 | K135: =INDEX(E135:I135,1,Control!$C$10) -> 11873.55259
B136: =B135+1 -> 132 | C136: Panama | D136: PAN | E136: =IF(ISNA(VLOOKUP(D136,Pivot!$D$4:$E$30,2,0)),MIN(Pivot!$E$4:$E$30),VLOOKUP(D136,Pivot!$D$4:$E$30,2,0)) -> 11873.55259 | F136: =IF(ISNA(VLOOKUP(D136,Pivot!$F$4:$G$12,2,0)),MIN(Pivot!$F$4:$G$12),VLOOKUP(D136,Pivot!$F$4:$G$12,2,0)) -> 11264.71626 | G136: =IF(ISNA(VLOOKUP(D136,Pivot!$H$4:$I$10,2,0)),MIN(Pivot!$H$4:$I$10),VLOOKUP(D136,Pivot!$H$4:$I$10,2,0)) -> 10382.34181 | K136: =INDEX(E136:I136,1,Control!$C$10) -> 11873.55259
B137: =B136+1 -> 133 | C137: Papua New Guinea | D137: PNG | E137: =IF(ISNA(VLOOKUP(D137,Pivot!$D$4:$E$30,2,0)),MIN(Pivot!$E$4:$E$30),VLOOKUP(D137,Pivot!$D$4:$E$30,2,0)) -> 11873.55259 | F137: =IF(ISNA(VLOOKUP(D137,Pivot!$F$4:$G$12,2,0)),MIN(Pivot!$F$4:$G$12),VLOOKUP(D137,Pivot!$F$4:$G$12,2,0)) -> 11264.71626 | G137: =IF(ISNA(VLOOKUP(D137,Pivot!$H$4:$I$10,2,0)),MIN(Pivot!$H$4:$I$10),VLOOKUP(D137,Pivot!$H$4:$I$10,2,0)) -> 10382.34181 | K137: =INDEX(E137:I137,1,Control!$C$10) -> 11873.55259
B138: =B137+1 -> 134 | C138: Paraguay | D138: PRY | E138: =IF(ISNA(VLOOKUP(D138,Pivot!$D$4:$E$30,2,0)),MIN(Pivot!$E$4:$E$30),VLOOKUP(D138,Pivot!$D$4:$E$30,2,0)) -> 11873.55259 | F138: =IF(ISNA(VLOOKUP(D138,Pivot!$F$4:$G$12,2,0)),MIN(Pivot!$F$4:$G$12),VLOOKUP(D138,Pivot!$F$4:$G$12,2,0)) -> 11264.71626 | G138: =IF(ISNA(VLOOKUP(D138,Pivot!$H$4:$I$10,2,0)),MIN(Pivot!$H$4:$I$10),VLOOKUP(D138,Pivot!$H$4:$I$10,2,0)) -> 10382.34181 | K138: =INDEX(E138:I138,1,Control!$C$10) -> 11873.55259
B139: =B138+1 -> 135 | C139: Peru | D139: PER | E139: =IF(ISNA(VLOOKUP(D139,Pivot!$D$4:$E$30,2,0)),MIN(Pivot!$E$4:$E$30),VLOOKUP(D139,Pivot!$D$4:$E$30,2,0)) -> 11873.55259 | F139: =IF(ISNA(VLOOKUP(D139,Pivot!$F$4:$G$12,2,0)),MIN(Pivot!$F$4:$G$12),VLOOKUP(D139,Pivot!$F$4:$G$12,2,0)) -> 11264.71626 | G139: =IF(ISNA(VLOOKUP(D139,Pivot!$H$4:$I$10,2,0)),MIN(Pivot!$H$4:$I$10),VLOOKUP(D139,Pivot!$H$4:$I$10,2,0)) -> 10382.34181 | K139: =INDEX(E139:I139,1,Control!$C$10) -> 11873.55259
B140: 136 | C140: Philippines | D140: PHL | E140: =IF(ISNA(VLOOKUP(D140,Pivot!$D$4:$E$30,2,0)),MIN(Pivot!$E$4:$E$30),VLOOKUP(D140,Pivot!$D$4:$E$30,2,0)) -> 17479.29236 | F140: =IF(ISNA(VLOOKUP(D140,Pivot!$F$4:$G$12,2,0)),MIN(Pivot!$F$4:$G$12),VLOOKUP(D140,Pivot!$F$4:$G$12,2,0)) -> 11264.71626 | G140: =IF(ISNA(VLOOKUP(D140,Pivot!$H$4:$I$10,2,0)),MIN(Pivot!$H$4:$I$10),VLOOKUP(D140,Pivot!$H$4:$I$10,2,0)) -> 10382.34181 | K140: =INDEX(E140:I140,1,Control!$C$10) -> 17479.29236
B141: 137 | C141: Poland | D141: POL | E141: =IF(ISNA(VLOOKUP(D141,Pivot!$D$4:$E$30,2,0)),MIN(Pivot!$E$4:$E$30),VLOOKUP(D141,Pivot!$D$4:$E$30,2,0)) -> 34210.34538 | F141: =IF(ISNA(VLOOKUP(D141,Pivot!$F$4:$G$12,2,0)),MIN(Pivot!$F$4:$G$12),VLOOKUP(D141,Pivot!$F$4:$G$12,2,0)) -> 11264.71626 | G141: =IF(ISNA(VLOOKUP(D141,Pivot!$H$4:$I$10,2,0)),MIN(Pivot!$H$4:$I$10),VLOOKUP(D141,Pivot!$H$4:$I$10,2,0)) -> 10382.34181 | K141: =INDEX(E141:I141,1,Control!$C$10) -> 34210.34538
B142: 138 | C142: Portugal | D142: PRT | E142: =IF(ISNA(VLOOKUP(D142,Pivot!$D$4:$E$30,2,0)),MIN(Pivot!$E$4:$E$30),VLOOKUP(D142,Pivot!$D$4:$E$30,2,0)) -> 32907.76341 | F142: =IF(ISNA(VLOOKUP(D142,Pivot!$F$4:$G$12,2,0)),MIN(Pivot!$F$4:$G$12),VLOOKUP(D142,Pivot!$F$4:$G$12,2,0)) -> 11264.71626 | G142: =IF(ISNA(VLOOKUP(D142,Pivot!$H$4:$I$10,2,0)),MIN(Pivot!$H$4:$I$10),VLOOKUP(D142,Pivot!$H$4:$I$10,2,0)) -> 10382.34181 | K142: =INDEX(E142:I142,1,Control!$C$10) -> 32907.76341
B143: 139 | C143: Qatar | D143: QAT | E143: =IF(ISNA(VLOOKUP(D143,Pivot!$D$4:$E$30,2,0)),MIN(Pivot!$E$4:$E$30),VLOOKUP(D143,Pivot!$D$4:$E$30,2,0)) -> 11873.55259 | F143: =IF(ISNA(VLOOKUP(D143,Pivot!$F$4:$G$12,2,0)),MIN(Pivot!$F$4:$G$12),VLOOKUP(D143,Pivot!$F$4:$G$12,2,0)) -> 11264.71626 | G143: =IF(ISNA(VLOOKUP(D143,Pivot!$H$4:$I$10,2,0)),MIN(Pivot!$H$4:$I$10),VLOOKUP(D143,Pivot!$H$4:$I$10,2,0)) -> 10382.34181 | K143: =INDEX(E143:I143,1,Control!$C$10) -> 11873.55259
B144: 140 | C144: Romania | D144: ROM | E144: =IF(ISNA(VLOOKUP(D144,Pivot!$D$4:$E$30,2,0)),MIN(Pivot!$E$4:$E$30),VLOOKUP(D144,Pivot!$D$4:$E$30,2,0)) -> 16449.97676 | F144: =IF(ISNA(VLOOKUP(D144,Pivot!$F$4:$G$12,2,0)),MIN(Pivot!$F$4:$G$12),VLOOKUP(D144,Pivot!$F$4:$G$12,2,0)) -> 11264.71626 | G144: =IF(ISNA(VLOOKUP(D144,Pivot!$H$4:$I$10,2,0)),MIN(Pivot!$H$4:$I$10),VLOOKUP(D144,Pivot!$H$4:$I$10,2,0)) -> 10382.34181 | K144: =INDEX(E144:I144,1,Control!$C$10) -> 16449.97676
B145: 141 | C145: Russia | D145: RUS | E145: =IF(ISNA(VLOOKUP(D145,Pivot!$D$4:$E$30,2,0)),MIN(Pivot!$E$4:$E$30),VLOOKUP(D145,Pivot!$D$4:$E$30,2,0)) -> 55905.22222 | F145: =IF(ISNA(VLOOKUP(D145,Pivot!$F$4:$G$12,2,0)),MIN(Pivot!$F$4:$G$12),VLOOKUP(D145,Pivot!$F$4:$G$12,2,0)) -> 11264.71626 | G145: =IF(ISNA(VLOOKUP(D145,Pivot!$H$4:$I$10,2,0)),MIN(Pivot!$H$4:$I$10),VLOOKUP(D145,Pivot!$H$4:$I$10,2,0)) -> 10382.34181 | K145: =INDEX(E145:I145,1,Control!$C$10) -> 55905.22222
B146: 142 | C146: Rwanda | D146: RWA | E146: =IF(ISNA(VLOOKUP(D146,Pivot!$D$4:$E$30,2,0)),MIN(Pivot!$E$4:$E$30),VLOOKUP(D146,Pivot!$D$4:$E$30,2,0)) -> 11873.55259 | F146: =IF(ISNA(VLOOKUP(D146,Pivot!$F$4:$G$12,2,0)),MIN(Pivot!$F$4:$G$12),VLOOKUP(D146,Pivot!$F$4:$G$12,2,0)) -> 11264.71626 | G146: =IF(ISNA(VLOOKUP(D146,Pivot!$H$4:$I$10,2,0)),MIN(Pivot!$H$4:$I$10),VLOOKUP(D146,Pivot!$H$4:$I$10,2,0)) -> 10382.34181 | K146: =INDEX(E146:I146,1,Control!$C$10) -> 11873.55259
B147: 143 | C147: Saint Lucia | D147: LCA | E147: =IF(ISNA(VLOOKUP(D147,Pivot!$D$4:$E$30,2,0)),MIN(Pivot!$E$4:$E$30),VLOOKUP(D147,Pivot!$D$4:$E$30,2,0)) -> 11873.55259 | F147: =IF(ISNA(VLOOKUP(D147,Pivot!$F$4:$G$12,2,0)),MIN(Pivot!$F$4:$G$12),VLOOKUP(D147,Pivot!$F$4:$G$12,2,0)) -> 11264.71626 | G147: =IF(ISNA(VLOOKUP(D147,Pivot!$H$4:$I$10,2,0)),MIN(Pivot!$H$4:$I$10),VLOOKUP(D147,Pivot!$H$4:$I$10,2,0)) -> 10382.34181 | K147: =INDEX(E147:I147,1,Control!$C$10) -> 11873.55259
B148: 144 | C148: Samoa | D148: WSM | E148: =IF(ISNA(VLOOKUP(D148,Pivot!$D$4:$E$30,2,0)),MIN(Pivot!$E$4:$E$30),VLOOKUP(D148,Pivot!$D$4:$E$30,2,0)) -> 11873.55259 | F148: =IF(ISNA(VLOOKUP(D148,Pivot!$F$4:$G$12,2,0)),MIN(Pivot!$F$4:$G$12),VLOOKUP(D148,Pivot!$F$4:$G$12,2,0)) -> 11264.71626 | G148: =IF(ISNA(VLOOKUP(D148,Pivot!$H$4:$I$10,2,0)),MIN(Pivot!$H$4:$I$10),VLOOKUP(D148,Pivot!$H$4:$I$10,2,0)) -> 10382.34181 | K148: =INDEX(E148:I148,1,Control!$C$10) -> 11873.55259
B149: 145 | C149: Saudi Arabia | D149: SAU | E149: =IF(ISNA(VLOOKUP(D149,Pivot!$D$4:$E$30,2,0)),MIN(Pivot!$E$4:$E$30),VLOOKUP(D149,Pivot!$D$4:$E$30,2,0)) -> 35832.12121 | F149: =IF(ISNA(VLOOKUP(D149,Pivot!$F$4:$G$12,2,0)),MIN(Pivot!$F$4:$G$12),VLOOKUP(D149,Pivot!$F$4:$G$12,2,0)) -> 11264.71626 | G149: =IF(ISNA(VLOOKUP(D149,Pivot!$H$4:$I$10,2,0)),MIN(Pivot!$H$4:$I$10),VLOOKUP(D149,Pivot!$H$4:$I$10,2,0)) -> 10382.34181 | K149: =INDEX(E149:I149,1,Control!$C$10) -> 35832.12121
B150: 146 | C150: Senegal | D150: SEN | E150: =IF(ISNA(VLOOKUP(D150,Pivot!$D$4:$E$30,2,0)),MIN(Pivot!$E$4:$E$30),VLOOKUP(D150,Pivot!$D$4:$E$30,2,0)) -> 11873.55259 | F150: =IF(ISNA(VLOOKUP(D150,Pivot!$F$4:$G$12,2,0)),MIN(Pivot!$F$4:$G$12),VLOOKUP(D150,Pivot!$F$4:$G$12,2,0)) -> 11264.71626 | G150: =IF(ISNA(VLOOKUP(D150,Pivot!$H$4:$I$10,2,0)),MIN(Pivot!$H$4:$I$10),VLOOKUP(D150,Pivot!$H$4:$I$10,2,0)) -> 10382.34181 | K150: =INDEX(E150:I150,1,Control!$C$10) -> 11873.55259
B151: 147 | C151: Serbia | D151: SR | E151: =IF(ISNA(VLOOKUP(D151,Pivot!$D$4:$E$30,2,0)),MIN(Pivot!$E$4:$E$30),VLOOKUP(D151,Pivot!$D$4:$E$30,2,0)) -> 11873.55259 | F151: =IF(ISNA(VLOOKUP(D151,Pivot!$F$4:$G$12,2,0)),MIN(Pivot!$F$4:$G$12),VLOOKUP(D151,Pivot!$F$4:$G$12,2,0)) -> 11264.71626 | G151: =IF(ISNA(VLOOKUP(D151,Pivot!$H$4:$I$10,2,0)),MIN(Pivot!$H$4:$I$10),VLOOKUP(D151,Pivot!$H$4:$I$10,2,0)) -> 10382.34181 | K151: =INDEX(E151:I151,1,Control!$C$10) -> 11873.55259
B152: 148 | C152: Seychelles | D152: SYC | E152: =IF(ISNA(VLOOKUP(D152,Pivot!$D$4:$E$30,2,0)),MIN(Pivot!$E$4:$E$30),VLOOKUP(D152,Pivot!$D$4:$E$30,2,0)) -> 11873.55259 | F152: =IF(ISNA(VLOOKUP(D152,Pivot!$F$4:$G$12,2,0)),MIN(Pivot!$F$4:$G$12),VLOOKUP(D152,Pivot!$F$4:$G$12,2,0)) -> 11264.71626 | G152: =IF(ISNA(VLOOKUP(D152,Pivot!$H$4:$I$10,2,0)),MIN(Pivot!$H$4:$I$10),VLOOKUP(D152,Pivot!$H$4:$I$10,2,0)) -> 10382.34181 | K152: =INDEX(E152:I152,1,Control!$C$10) -> 11873.55259
B153: 149 | C153: Sierra Leone | D153: SLE | E153: =IF(ISNA(VLOOKUP(D153,Pivot!$D$4:$E$30,2,0)),MIN(Pivot!$E$4:$E$30),VLOOKUP(D153,Pivot!$D$4:$E$30,2,0)) -> 11873.55259 | F153: =IF(ISNA(VLOOKUP(D153,Pivot!$F$4:$G$12,2,0)),MIN(Pivot!$F$4:$G$12),VLOOKUP(D153,Pivot!$F$4:$G$12,2,0)) -> 11264.71626 | G153: =IF(ISNA(VLOOKUP(D153,Pivot!$H$4:$I$10,2,0)),MIN(Pivot!$H$4:$I$10),VLOOKUP(D153,Pivot!$H$4:$I$10,2,0)) -> 10382.34181 | K153: =INDEX(E153:I153,1,Control!$C$10) -> 11873.55259
B154: 150 | C154: Singapore | D154: SGP | E154: =IF(ISNA(VLOOKUP(D154,Pivot!$D$4:$E$30,2,0)),MIN(Pivot!$E$4:$E$30),VLOOKUP(D154,Pivot!$D$4:$E$30,2,0)) -> 52154.75405 | F154: =IF(ISNA(VLOOKUP(D154,Pivot!$F$4:$G$12,2,0)),MIN(Pivot!$F$4:$G$12),VLOOKUP(D154,Pivot!$F$4:$G$12,2,0)) -> 11264.71626 | G154: =IF(ISNA(VLOOKUP(D154,Pivot!$H$4:$I$10,2,0)),MIN(Pivot!$H$4:$I$10),VLOOKUP(D154,Pivot!$H$4:$I$10,2,0)) -> 10382.34181 | K154: =INDEX(E154:I154,1,Control!$C$10) -> 52154.75405
B155: 151 | C155: Slovakia | D155: SVK | E155: =IF(ISNA(VLOOKUP(D155,Pivot!$D$4:$E$30,2,0)),MIN(Pivot!$E$4:$E$30),VLOOKUP(D155,Pivot!$D$4:$E$30,2,0)) -> 11873.55259 | F155: =IF(ISNA(VLOOKUP(D155,Pivot!$F$4:$G$12,2,0)),MIN(Pivot!$F$4:$G$12),VLOOKUP(D155,Pivot!$F$4:$G$12,2,0)) -> 11264.71626 | G155: =IF(ISNA(VLOOKUP(D155,Pivot!$H$4:$I$10,2,0)),MIN(Pivot!$H$4:$I$10),VLOOKUP(D155,Pivot!$H$4:$I$10,2,0)) -> 10382.34181 | K155: =INDEX(E155:I155,1,Control!$C$10) -> 11873.55259
B156: 152 | C156: Slovenia | D156: SVN | E156: =IF(ISNA(VLOOKUP(D156,Pivot!$D$4:$E$30,2,0)),MIN(Pivot!$E$4:$E$30),VLOOKUP(D156,Pivot!$D$4:$E$30,2,0)) -> 11873.55259 | F156: =IF(ISNA(VLOOKUP(D156,Pivot!$F$4:$G$12,2,0)),MIN(Pivot!$F$4:$G$12),VLOOKUP(D156,Pivot!$F$4:$G$12,2,0)) -> 11264.71626 | G156: =IF(ISNA(VLOOKUP(D156,Pivot!$H$4:$I$10,2,0)),MIN(Pivot!$H$4:$I$10),VLOOKUP(D156,Pivot!$H$4:$I$10,2,0)) -> 10382.34181 | K156: =INDEX(E156:I156,1,Control!$C$10) -> 11873.55259
B157: 153 | C157: Solomon Islands | D157: SLB | E157: =IF(ISNA(VLOOKUP(D157,Pivot!$D$4:$E$30,2,0)),MIN(Pivot!$E$4:$E$30),VLOOKUP(D157,Pivot!$D$4:$E$30,2,0)) -> 11873.55259 | F157: =IF(ISNA(VLOOKUP(D157,Pivot!$F$4:$G$12,2,0)),MIN(Pivot!$F$4:$G$12),VLOOKUP(D157,Pivot!$F$4:$G$12,2,0)) -> 11264.71626 | G157: =IF(ISNA(VLOOKUP(D157,Pivot!$H$4:$I$10,2,0)),MIN(Pivot!$H$4:$I$10),VLOOKUP(D157,Pivot!$H$4:$I$10,2,0)) -> 10382.34181 | K157: =INDEX(E157:I157,1,Control!$C$10) -> 11873.55259
B158: 154 | C158: Somalia | D158: SOM | E158: =IF(ISNA(VLOOKUP(D158,Pivot!$D$4:$E$30,2,0)),MIN(Pivot!$E$4:$E$30),VLOOKUP(D158,Pivot!$D$4:$E$30,2,0)) -> 11873.55259 | F158: =IF(ISNA(VLOOKUP(D158,Pivot!$F$4:$G$12,2,0)),MIN(Pivot!$F$4:$G$12),VLOOKUP(D158,Pivot!$F$4:$G$12,2,0)) -> 11264.71626 | G158: =IF(ISNA(VLOOKUP(D158,Pivot!$H$4:$I$10,2,0)),MIN(Pivot!$H$4:$I$10),VLOOKUP(D158,Pivot!$H$4:$I$10,2,0)) -> 10382.34181 | K158: =INDEX(E158:I158,1,Control!$C$10) -> 11873.55259
B159: 155 | C159: South Africa | D159: ZAF | E159: =IF(ISNA(VLOOKUP(D159,Pivot!$D$4:$E$30,2,0)),MIN(Pivot!$E$4:$E$30),VLOOKUP(D159,Pivot!$D$4:$E$30,2,0)) -> 49555.62499 | F159: =IF(ISNA(VLOOKUP(D159,Pivot!$F$4:$G$12,2,0)),MIN(Pivot!$F$4:$G$12),VLOOKUP(D159,Pivot!$F$4:$G$12,2,0)) -> 11264.71626 | G159: =IF(ISNA(VLOOKUP(D159,Pivot!$H$4:$I$10,2,0)),MIN(Pivot!$H$4:$I$10),VLOOKUP(D159,Pivot!$H$4:$I$10,2,0)) -> 10382.34181 | K159: =INDEX(E159:I159,1,Control!$C$10) -> 49555.62499
B160: 156 | C160: Spain | D160: ESP | E160: =IF(ISNA(VLOOKUP(D160,Pivot!$D$4:$E$30,2,0)),MIN(Pivot!$E$4:$E$30),VLOOKUP(D160,Pivot!$D$4:$E$30,2,0)) -> 46235.66011 | F160: =IF(ISNA(VLOOKUP(D160,Pivot!$F$4:$G$12,2,0)),MIN(Pivot!$F$4:$G$12),VLOOKUP(D160,Pivot!$F$4:$G$12,2,0)) -> 11264.71626 | G160: =IF(ISNA(VLOOKUP(D160,Pivot!$H$4:$I$10,2,0)),MIN(Pivot!$H$4:$I$10),VLOOKUP(D160,Pivot!$H$4:$I$10,2,0)) -> 10382.34181 | K160: =INDEX(E160:I160,1,Control!$C$10) -> 46235.66011
B161: 157 | C161: Sri Lanka | D161: LKA | E161: =IF(ISNA(VLOOKUP(D161,Pivot!$D$4:$E$30,2,0)),MIN(Pivot!$E$4:$E$30),VLOOKUP(D161,Pivot!$D$4:$E$30,2,0)) -> 11873.55259 | F161: =IF(ISNA(VLOOKUP(D161,Pivot!$F$4:$G$12,2,0)),MIN(Pivot!$F$4:$G$12),VLOOKUP(D161,Pivot!$F$4:$G$12,2,0)) -> 11264.71626 | G161: =IF(ISNA(VLOOKUP(D161,Pivot!$H$4:$I$10,2,0)),MIN(Pivot!$H$4:$I$10),VLOOKUP(D161,Pivot!$H$4:$I$10,2,0)) -> 10382.34181 | K161: =INDEX(E161:I161,1,Control!$C$10) -> 11873.55259
B162: 158 | C162: Sudan | D162: SDN | E162: =IF(ISNA(VLOOKUP(D162,Pivot!$D$4:$E$30,2,0)),MIN(Pivot!$E$4:$E$30),VLOOKUP(D162,Pivot!$D$4:$E$30,2,0)) -> 11873.55259 | F162: =IF(ISNA(VLOOKUP(D162,Pivot!$F$4:$G$12,2,0)),MIN(Pivot!$F$4:$G$12),VLOOKUP(D162,Pivot!$F$4:$G$12,2,0)) -> 11264.71626 | G162: =IF(ISNA(VLOOKUP(D162,Pivot!$H$4:$I$10,2,0)),MIN(Pivot!$H$4:$I$10),VLOOKUP(D162,Pivot!$H$4:$I$10,2,0)) -> 10382.34181 | K162: =INDEX(E162:I162,1,Control!$C$10) -> 11873.55259
B163: 159 | C163: Suriname | D163: SUR | E163: =IF(ISNA(VLOOKUP(D163,Pivot!$D$4:$E$30,2,0)),MIN(Pivot!$E$4:$E$30),VLOOKUP(D163,Pivot!$D$4:$E$30,2,0)) -> 11873.55259 | F163: =IF(ISNA(VLOOKUP(D163,Pivot!$F$4:$G$12,2,0)),MIN(Pivot!$F$4:$G$12),VLOOKUP(D163,Pivot!$F$4:$G$12,2,0)) -> 11264.71626 | G163: =IF(ISNA(VLOOKUP(D163,Pivot!$H$4:$I$10,2,0)),MIN(Pivot!$H$4:$I$10),VLOOKUP(D163,Pivot!$H$4:$I$10,2,0)) -> 10382.34181 | K163: =INDEX(E163:I163,1,Control!$C$10) -> 11873.55259
B164: 160 | C164: Swaziland | D164: SWZ | E164: =IF(ISNA(VLOOKUP(D164,Pivot!$D$4:$E$30,2,0)),MIN(Pivot!$E$4:$E$30),VLOOKUP(D164,Pivot!$D$4:$E$30,2,0)) -> 11873.55259 | F164: =IF(ISNA(VLOOKUP(D164,Pivot!$F$4:$G$12,2,0)),MIN(Pivot!$F$4:$G$12),VLOOKUP(D164,Pivot!$F$4:$G$12,2,0)) -> 11264.71626 | G164: =IF(ISNA(VLOOKUP(D164,Pivot!$H$4:$I$10,2,0)),MIN(Pivot!$H$4:$I$10),VLOOKUP(D164,Pivot!$H$4:$I$10,2,0)) -> 10382.34181 | K164: =INDEX(E164:I164,1,Control!$C$10) -> 11873.55259
B165: 161 | C165: Sweden | D165: SWE | E165: =IF(ISNA(VLOOKUP(D165,Pivot!$D$4:$E$30,2,0)),MIN(Pivot!$E$4:$E$30),VLOOKUP(D165,Pivot!$D$4:$E$30,2,0)) -> 11873.55259 | F165: =IF(ISNA(VLOOKUP(D165,Pivot!$F$4:$G$12,2,0)),MIN(Pivot!$F$4:$G$12),VLOOKUP(D165,Pivot!$F$4:$G$12,2,0)) -> 11264.71626 | G165: =IF(ISNA(VLOOKUP(D165,Pivot!$H$4:$I$10,2,0)),MIN(Pivot!$H$4:$I$10),VLOOKUP(D165,Pivot!$H$4:$I$10,2,0)) -> 10382.34181 | K165: =INDEX(E165:I165,1,Control!$C$10) -> 11873.55259
B166: 162 | C166: Switzerland | D166: CHE | E166: =IF(ISNA(VLOOKUP(D166,Pivot!$D$4:$E$30,2,0)),MIN(Pivot!$E$4:$E$30),VLOOKUP(D166,Pivot!$D$4:$E$30,2,0)) -> 11873.55259 | F166: =IF(ISNA(VLOOKUP(D166,Pivot!$F$4:$G$12,2,0)),MIN(Pivot!$F$4:$G$12),VLOOKUP(D166,Pivot!$F$4:$G$12,2,0)) -> 11264.71626 | G166: =IF(ISNA(VLOOKUP(D166,Pivot!$H$4:$I$10,2,0)),MIN(Pivot!$H$4:$I$10),VLOOKUP(D166,Pivot!$H$4:$I$10,2,0)) -> 10382.34181 | K166: =INDEX(E166:I166,1,Control!$C$10) -> 11873.55259
B167: 163 | C167: Syria | D167: SYR | E167: =IF(ISNA(VLOOKUP(D167,Pivot!$D$4:$E$30,2,0)),MIN(Pivot!$E$4:$E$30),VLOOKUP(D167,Pivot!$D$4:$E$30,2,0)) -> 11873.55259 | F167: =IF(ISNA(VLOOKUP(D167,Pivot!$F$4:$G$12,2,0)),MIN(Pivot!$F$4:$G$12),VLOOKUP(D167,Pivot!$F$4:$G$12,2,0)) -> 11264.71626 | G167: =IF(ISNA(VLOOKUP(D167,Pivot!$H$4:$I$10,2,0)),MIN(Pivot!$H$4:$I$10),VLOOKUP(D167,Pivot!$H$4:$I$10,2,0)) -> 10382.34181 | K167: =INDEX(E167:I167,1,Control!$C$10) -> 11873.55259
B168: 164 | C168: Taiwan | D168: TWN | E168: =IF(ISNA(VLOOKUP(D168,Pivot!$D$4:$E$30,2,0)),MIN(Pivot!$E$4:$E$30),VLOOKUP(D168,Pivot!$D$4:$E$30,2,0)) -> 11873.55259 | F168: =IF(ISNA(VLOOKUP(D168,Pivot!$F$4:$G$12,2,0)),MIN(Pivot!$F$4:$G$12),VLOOKUP(D168,Pivot!$F$4:$G$12,2,0)) -> 11264.71626 | G168: =IF(ISNA(VLOOKUP(D168,Pivot!$H$4:$I$10,2,0)),MIN(Pivot!$H$4:$I$10),VLOOKUP(D168,Pivot!$H$4:$I$10,2,0)) -> 10382.34181 | K168: =INDEX(E168:I168,1,Control!$C$10) -> 11873.55259
B169: 165 | C169: Taiwan | D169: TAI | E169: =IF(ISNA(VLOOKUP(D169,Pivot!$D$4:$E$30,2,0)),MIN(Pivot!$E$4:$E$30),VLOOKUP(D169,Pivot!$D$4:$E$30,2,0)) -> 11873.55259 | F169: =IF(ISNA(VLOOKUP(D169,Pivot!$F$4:$G$12,2,0)),MIN(Pivot!$F$4:$G$12),VLOOKUP(D169,Pivot!$F$4:$G$12,2,0)) -> 11264.71626 | G169: =IF(ISNA(VLOOKUP(D169,Pivot!$H$4:$I$10,2,0)),MIN(Pivot!$H$4:$I$10),VLOOKUP(D169,Pivot!$H$4:$I$10,2,0)) -> 10382.34181 | K169: =INDEX(E169:I169,1,Control!$C$10) -> 11873.55259
B170: 166 | C170: Tajikistan | D170: TJK | E170: =IF(ISNA(VLOOKUP(D170,Pivot!$D$4:$E$30,2,0)),MIN(Pivot!$E$4:$E$30),VLOOKUP(D170,Pivot!$D$4:$E$30,2,0)) -> 11873.55259 | F170: =IF(ISNA(VLOOKUP(D170,Pivot!$F$4:$G$12,2,0)),MIN(Pivot!$F$4:$G$12),VLOOKUP(D170,Pivot!$F$4:$G$12,2,0)) -> 11264.71626 | G170: =IF(ISNA(VLOOKUP(D170,Pivot!$H$4:$I$10,2,0)),MIN(Pivot!$H$4:$I$10),VLOOKUP(D170,Pivot!$H$4:$I$10,2,0)) -> 10382.34181 | K170: =INDEX(E170:I170,1,Control!$C$10) -> 11873.55259
B171: 167 | C171: Tanzania | D171: TZA | E171: =IF(ISNA(VLOOKUP(D171,Pivot!$D$4:$E$30,2,0)),MIN(Pivot!$E$4:$E$30),VLOOKUP(D171,Pivot!$D$4:$E$30,2,0)) -> 11873.55259 | F171: =IF(ISNA(VLOOKUP(D171,Pivot!$F$4:$G$12,2,0)),MIN(Pivot!$F$4:$G$12),VLOOKUP(D171,Pivot!$F$4:$G$12,2,0)) -> 11264.71626 | G171: =IF(ISNA(VLOOKUP(D171,Pivot!$H$4:$I$10,2,0)),MIN(Pivot!$H$4:$I$10),VLOOKUP(D171,Pivot!$H$4:$I$10,2,0)) -> 10382.34181 | K171: =INDEX(E171:I171,1,Control!$C$10) -> 11873.55259
B172: 168 | C172: Thailand | D172: THA | E172: =IF(ISNA(VLOOKUP(D172,Pivot!$D$4:$E$30,2,0)),MIN(Pivot!$E$4:$E$30),VLOOKUP(D172,Pivot!$D$4:$E$30,2,0)) -> 11873.55259 | F172: =IF(ISNA(VLOOKUP(D172,Pivot!$F$4:$G$12,2,0)),MIN(Pivot!$F$4:$G$12),VLOOKUP(D172,Pivot!$F$4:$G$12,2,0)) -> 11264.71626 | G172: =IF(ISNA(VLOOKUP(D172,Pivot!$H$4:$I$10,2,0)),MIN(Pivot!$H$4:$I$10),VLOOKUP(D172,Pivot!$H$4:$I$10,2,0)) -> 10382.34181 | K172: =INDEX(E172:I172,1,Control!$C$10) -> 11873.55259
B173: 169 | C173: Timor-Leste | D173: TMP | E173: =IF(ISNA(VLOOKUP(D173,Pivot!$D$4:$E$30,2,0)),MIN(Pivot!$E$4:$E$30),VLOOKUP(D173,Pivot!$D$4:$E$30,2,0)) -> 11873.55259 | F173: =IF(ISNA(VLOOKUP(D173,Pivot!$F$4:$G$12,2,0)),MIN(Pivot!$F$4:$G$12),VLOOKUP(D173,Pivot!$F$4:$G$12,2,0)) -> 11264.71626 | G173: =IF(ISNA(VLOOKUP(D173,Pivot!$H$4:$I$10,2,0)),MIN(Pivot!$H$4:$I$10),VLOOKUP(D173,Pivot!$H$4:$I$10,2,0)) -> 10382.34181 | K173: =INDEX(E173:I173,1,Control!$C$10) -> 11873.55259
B174: 170 | C174: Togo | D174: TGO | E174: =IF(ISNA(VLOOKUP(D174,Pivot!$D$4:$E$30,2,0)),MIN(Pivot!$E$4:$E$30),VLOOKUP(D174,Pivot!$D$4:$E$30,2,0)) -> 11873.55259 | F174: =IF(ISNA(VLOOKUP(D174,Pivot!$F$4:$G$12,2,0)),MIN(Pivot!$F$4:$G$12),VLOOKUP(D174,Pivot!$F$4:$G$12,2,0)) -> 11264.71626 | G174: =IF(ISNA(VLOOKUP(D174,Pivot!$H$4:$I$10,2,0)),MIN(Pivot!$H$4:$I$10),VLOOKUP(D174,Pivot!$H$4:$I$10,2,0)) -> 10382.34181 | K174: =INDEX(E174:I174,1,Control!$C$10) -> 11873.55259
B175: 171 | C175: Tonga | D175: TON | E175: =IF(ISNA(VLOOKUP(D175,Pivot!$D$4:$E$30,2,0)),MIN(Pivot!$E$4:$E$30),VLOOKUP(D175,Pivot!$D$4:$E$30,2,0)) -> 11873.55259 | F175: =IF(ISNA(VLOOKUP(D175,Pivot!$F$4:$G$12,2,0)),MIN(Pivot!$F$4:$G$12),VLOOKUP(D175,Pivot!$F$4:$G$12,2,0)) -> 11264.71626 | G175: =IF(ISNA(VLOOKUP(D175,Pivot!$H$4:$I$10,2,0)),MIN(Pivot!$H$4:$I$10),VLOOKUP(D175,Pivot!$H$4:$I$10,2,0)) -> 10382.34181 | K175: =INDEX(E175:I175,1,Control!$C$10) -> 11873.55259
B176: 172 | C176: Trinidad and Tobago | D176: TTO | E176: =IF(ISNA(VLOOKUP(D176,Pivot!$D$4:$E$30,2,0)),MIN(Pivot!$E$4:$E$30),VLOOKUP(D176,Pivot!$D$4:$E$30,2,0)) -> 11873.55259 | F176: =IF(ISNA(VLOOKUP(D176,Pivot!$F$4:$G$12,2,0)),MIN(Pivot!$F$4:$G$12),VLOOKUP(D176,Pivot!$F$4:$G$12,2,0)) -> 11264.71626 | G176: =IF(ISNA(VLOOKUP(D176,Pivot!$H$4:$I$10,2,0)),MIN(Pivot!$H$4:$I$10),VLOOKUP(D176,Pivot!$H$4:$I$10,2,0)) -> 10382.34181 | K176: =INDEX(E176:I176,1,Control!$C$10) -> 11873.55259
B177: 173 | C177: Tunisia | D177: TUN | E177: =IF(ISNA(VLOOKUP(D177,Pivot!$D$4:$E$30,2,0)),MIN(Pivot!$E$4:$E$30),VLOOKUP(D177,Pivot!$D$4:$E$30,2,0)) -> 11873.55259 | F177: =IF(ISNA(VLOOKUP(D177,Pivot!$F$4:$G$12,2,0)),MIN(Pivot!$F$4:$G$12),VLOOKUP(D177,Pivot!$F$4:$G$12,2,0)) -> 11264.71626 | G177: =IF(ISNA(VLOOKUP(D177,Pivot!$H$4:$I$10,2,0)),MIN(Pivot!$H$4:$I$10),VLOOKUP(D177,Pivot!$H$4:$I$10,2,0)) -> 10382.34181 | K177: =INDEX(E177:I177,1,Control!$C$10) -> 11873.55259
B178: 174 | C178: Turkey | D178: TUR | E178: =IF(ISNA(VLOOKUP(D178,Pivot!$D$4:$E$30,2,0)),MIN(Pivot!$E$4:$E$30),VLOOKUP(D178,Pivot!$D$4:$E$30,2,0)) -> 11873.55259 | F178: =IF(ISNA(VLOOKUP(D178,Pivot!$F$4:$G$12,2,0)),MIN(Pivot!$F$4:$G$12),VLOOKUP(D178,Pivot!$F$4:$G$12,2,0)) -> 11264.71626 | G178: =IF(ISNA(VLOOKUP(D178,Pivot!$H$4:$I$10,2,0)),MIN(Pivot!$H$4:$I$10),VLOOKUP(D178,Pivot!$H$4:$I$10,2,0)) -> 10382.34181 | K178: =INDEX(E178:I178,1,Control!$C$10) -> 11873.55259
B179: 175 | C179: Turkmenistan | D179: TKM | E179: =IF(ISNA(VLOOKUP(D179,Pivot!$D$4:$E$30,2,0)),MIN(Pivot!$E$4:$E$30),VLOOKUP(D179,Pivot!$D$4:$E$30,2,0)) -> 11873.55259 | F179: =IF(ISNA(VLOOKUP(D179,Pivot!$F$4:$G$12,2,0)),MIN(Pivot!$F$4:$G$12),VLOOKUP(D179,Pivot!$F$4:$G$12,2,0)) -> 11264.71626 | G179: =IF(ISNA(VLOOKUP(D179,Pivot!$H$4:$I$10,2,0)),MIN(Pivot!$H$4:$I$10),VLOOKUP(D179,Pivot!$H$4:$I$10,2,0)) -> 10382.34181 | K179: =INDEX(E179:I179,1,Control!$C$10) -> 11873.55259
B180: 176 | C180: Tuvalu | D180: TUV | E180: =IF(ISNA(VLOOKUP(D180,Pivot!$D$4:$E$30,2,0)),MIN(Pivot!$E$4:$E$30),VLOOKUP(D180,Pivot!$D$4:$E$30,2,0)) -> 11873.55259 | F180: =IF(ISNA(VLOOKUP(D180,Pivot!$F$4:$G$12,2,0)),MIN(Pivot!$F$4:$G$12),VLOOKUP(D180,Pivot!$F$4:$G$12,2,0)) -> 11264.71626 | G180: =IF(ISNA(VLOOKUP(D180,Pivot!$H$4:$I$10,2,0)),MIN(Pivot!$H$4:$I$10),VLOOKUP(D180,Pivot!$H$4:$I$10,2,0)) -> 10382.34181 | K180: =INDEX(E180:I180,1,Control!$C$10) -> 11873.55259
B181: 177 | C181: Uganda | D181: UGA | E181: =IF(ISNA(VLOOKUP(D181,Pivot!$D$4:$E$30,2,0)),MIN(Pivot!$E$4:$E$30),VLOOKUP(D181,Pivot!$D$4:$E$30,2,0)) -> 11873.55259 | F181: =IF(ISNA(VLOOKUP(D181,Pivot!$F$4:$G$12,2,0)),MIN(Pivot!$F$4:$G$12),VLOOKUP(D181,Pivot!$F$4:$G$12,2,0)) -> 11264.71626 | G181: =IF(ISNA(VLOOKUP(D181,Pivot!$H$4:$I$10,2,0)),MIN(Pivot!$H$4:$I$10),VLOOKUP(D181,Pivot!$H$4:$I$10,2,0)) -> 10382.34181 | K181: =INDEX(E181:I181,1,Control!$C$10) -> 11873.55259
B182: 178 | C182: Ukraine | D182: UKR | E182: =IF(ISNA(VLOOKUP(D182,Pivot!$D$4:$E$30,2,0)),MIN(Pivot!$E$4:$E$30),VLOOKUP(D182,Pivot!$D$4:$E$30,2,0)) -> 11873.55259 | F182: =IF(ISNA(VLOOKUP(D182,Pivot!$F$4:$G$12,2,0)),MIN(Pivot!$F$4:$G$12),VLOOKUP(D182,Pivot!$F$4:$G$12,2,0)) -> 11264.71626 | G182: =IF(ISNA(VLOOKUP(D182,Pivot!$H$4:$I$10,2,0)),MIN(Pivot!$H$4:$I$10),VLOOKUP(D182,Pivot!$H$4:$I$10,2,0)) -> 10382.34181 | K182: =INDEX(E182:I182,1,Control!$C$10) -> 11873.55259
B183: 179 | C183: United Arab Emirates | D183: ARE | E183: =IF(ISNA(VLOOKUP(D183,Pivot!$D$4:$E$30,2,0)),MIN(Pivot!$E$4:$E$30),VLOOKUP(D183,Pivot!$D$4:$E$30,2,0)) -> 43014.90019 | F183: =IF(ISNA(VLOOKUP(D183,Pivot!$F$4:$G$12,2,0)),MIN(Pivot!$F$4:$G$12),VLOOKUP(D183,Pivot!$F$4:$G$12,2,0)) -> 11264.71626 | G183: =IF(ISNA(VLOOKUP(D183,Pivot!$H$4:$I$10,2,0)),MIN(Pivot!$H$4:$I$10),VLOOKUP(D183,Pivot!$H$4:$I$10,2,0)) -> 50759.03819 | K183: =INDEX(E183:I183,1,Control!$C$10) -> 43014.90019
B184: 180 | C184: United Kingdom | D184: GBR | E184: =IF(ISNA(VLOOKUP(D184,Pivot!$D$4:$E$30,2,0)),MIN(Pivot!$E$4:$E$30),VLOOKUP(D184,Pivot!$D$4:$E$30,2,0)) -> 67240.73011 | F184: =IF(ISNA(VLOOKUP(D184,Pivot!$F$4:$G$12,2,0)),MIN(Pivot!$F$4:$G$12),VLOOKUP(D184,Pivot!$F$4:$G$12,2,0)) -> 57469.44941 | G184: =IF(ISNA(VLOOKUP(D184,Pivot!$H$4:$I$10,2,0)),MIN(Pivot!$H$4:$I$10),VLOOKUP(D184,Pivot!$H$4:$I$10,2,0)) -> 66390.12811 | K184: =INDEX(E184:I184,1,Control!$C$10) -> 67240.73011
B185: 181 | C185: United States | D185: USA | E185: =IF(ISNA(VLOOKUP(D185,Pivot!$D$4:$E$30,2,0)),MIN(Pivot!$E$4:$E$30),VLOOKUP(D185,Pivot!$D$4:$E$30,2,0)) -> 72738.12966 | F185: =IF(ISNA(VLOOKUP(D185,Pivot!$F$4:$G$12,2,0)),MIN(Pivot!$F$4:$G$12),VLOOKUP(D185,Pivot!$F$4:$G$12,2,0)) -> 62583.73737 | G185: =IF(ISNA(VLOOKUP(D185,Pivot!$H$4:$I$10,2,0)),MIN(Pivot!$H$4:$I$10),VLOOKUP(D185,Pivot!$H$4:$I$10,2,0)) -> 77581.71034 | K185: =INDEX(E185:I185,1,Control!$C$10) -> 72738.12966
B186: 182 | C186: Uruguay | D186: URY | E186: =IF(ISNA(VLOOKUP(D186,Pivot!$D$4:$E$30,2,0)),MIN(Pivot!$E$4:$E$30),VLOOKUP(D186,Pivot!$D$4:$E$30,2,0)) -> 11873.55259 | F186: =IF(ISNA(VLOOKUP(D186,Pivot!$F$4:$G$12,2,0)),MIN(Pivot!$F$4:$G$12),VLOOKUP(D186,Pivot!$F$4:$G$12,2,0)) -> 11264.71626 | G186: =IF(ISNA(VLOOKUP(D186,Pivot!$H$4:$I$10,2,0)),MIN(Pivot!$H$4:$I$10),VLOOKUP(D186,Pivot!$H$4:$I$10,2,0)) -> 10382.34181 | K186: =INDEX(E186:I186,1,Control!$C$10) -> 11873.55259
B187: 183 | C187: Uzbekistan | D187: UZB | E187: =IF(ISNA(VLOOKUP(D187,Pivot!$D$4:$E$30,2,0)),MIN(Pivot!$E$4:$E$30),VLOOKUP(D187,Pivot!$D$4:$E$30,2,0)) -> 11873.55259 | F187: =IF(ISNA(VLOOKUP(D187,Pivot!$F$4:$G$12,2,0)),MIN(Pivot!$F$4:$G$12),VLOOKUP(D187,Pivot!$F$4:$G$12,2,0)) -> 11264.71626 | G187: =IF(ISNA(VLOOKUP(D187,Pivot!$H$4:$I$10,2,0)),MIN(Pivot!$H$4:$I$10),VLOOKUP(D187,Pivot!$H$4:$I$10,2,0)) -> 10382.34181 | K187: =INDEX(E187:I187,1,Control!$C$10) -> 11873.55259
B188: 184 | C188: Vanuatu | D188: VUT | E188: =IF(ISNA(VLOOKUP(D188,Pivot!$D$4:$E$30,2,0)),MIN(Pivot!$E$4:$E$30),VLOOKUP(D188,Pivot!$D$4:$E$30,2,0)) -> 11873.55259 | F188: =IF(ISNA(VLOOKUP(D188,Pivot!$F$4:$G$12,2,0)),MIN(Pivot!$F$4:$G$12),VLOOKUP(D188,Pivot!$F$4:$G$12,2,0)) -> 11264.71626 | G188: =IF(ISNA(VLOOKUP(D188,Pivot!$H$4:$I$10,2,0)),MIN(Pivot!$H$4:$I$10),VLOOKUP(D188,Pivot!$H$4:$I$10,2,0)) -> 10382.34181 | K188: =INDEX(E188:I188,1,Control!$C$10) -> 11873.55259
B189: 185 | C189: Venezuela | D189: VEN | E189: =IF(ISNA(VLOOKUP(D189,Pivot!$D$4:$E$30,2,0)),MIN(Pivot!$E$4:$E$30),VLOOKUP(D189,Pivot!$D$4:$E$30,2,0)) -> 11873.55259 | F189: =IF(ISNA(VLOOKUP(D189,Pivot!$F$4:$G$12,2,0)),MIN(Pivot!$F$4:$G$12),VLOOKUP(D189,Pivot!$F$4:$G$12,2,0)) -> 11264.71626 | G189: =IF(ISNA(VLOOKUP(D189,Pivot!$H$4:$I$10,2,0)),MIN(Pivot!$H$4:$I$10),VLOOKUP(D189,Pivot!$H$4:$I$10,2,0)) -> 10382.34181 | K189: =INDEX(E189:I189,1,Control!$C$10) -> 11873.55259
B190: 186 | C190: Vietnam | D190: VNM | E190: =IF(ISNA(VLOOKUP(D190,Pivot!$D$4:$E$30,2,0)),MIN(Pivot!$E$4:$E$30),VLOOKUP(D190,Pivot!$D$4:$E$30,2,0)) -> 11873.55259 | F190: =IF(ISNA(VLOOKUP(D190,Pivot!$F$4:$G$12,2,0)),MIN(Pivot!$F$4:$G$12),VLOOKUP(D190,Pivot!$F$4:$G$12,2,0)) -> 11264.71626 | G190: =IF(ISNA(VLOOKUP(D190,Pivot!$H$4:$I$10,2,0)),MIN(Pivot!$H$4:$I$10),VLOOKUP(D190,Pivot!$H$4:$I$10,2,0)) -> 10382.34181 | K190: =INDEX(E190:I190,1,Control!$C$10) -> 11873.55259
B191: 187 | C191: Western Sahara | D191: ESH | E191: =IF(ISNA(VLOOKUP(D191,Pivot!$D$4:$E$30,2,0)),MIN(Pivot!$E$4:$E$30),VLOOKUP(D191,Pivot!$D$4:$E$30,2,0)) -> 11873.55259 | F191: =IF(ISNA(VLOOKUP(D191,Pivot!$F$4:$G$12,2,0)),MIN(Pivot!$F$4:$G$12),VLOOKUP(D191,Pivot!$F$4:$G$12,2,0)) -> 11264.71626 | G191: =IF(ISNA(VLOOKUP(D191,Pivot!$H$4:$I$10,2,0)),MIN(Pivot!$H$4:$I$10),VLOOKUP(D191,Pivot!$H$4:$I$10,2,0)) -> 10382.34181 | K191: =INDEX(E191:I191,1,Control!$C$10) -> 11873.55259
B192: 188 | C192: Yemen | D192: YEM | E192: =IF(ISNA(VLOOKUP(D192,Pivot!$D$4:$E$30,2,0)),MIN(Pivot!$E$4:$E$30),VLOOKUP(D192,Pivot!$D$4:$E$30,2,0)) -> 11873.55259 | F192: =IF(ISNA(VLOOKUP(D192,Pivot!$F$4:$G$12,2,0)),MIN(Pivot!$F$4:$G$12),VLOOKUP(D192,Pivot!$F$4:$G$12,2,0)) -> 11264.71626 | G192: =IF(ISNA(VLOOKUP(D192,Pivot!$H$4:$I$10,2,0)),MIN(Pivot!$H$4:$I$10),VLOOKUP(D192,Pivot!$H$4:$I$10,2,0)) -> 10382.34181 | K192: =INDEX(E192:I192,1,Control!$C$10) -> 11873.55259
B193: 189 | C193: Zambia | D193: ZWB | E193: =IF(ISNA(VLOOKUP(D193,Pivot!$D$4:$E$30,2,0)),MIN(Pivot!$E$4:$E$30),VLOOKUP(D193,Pivot!$D$4:$E$30,2,0)) -> 11873.55259 | F193: =IF(ISNA(VLOOKUP(D193,Pivot!$F$4:$G$12,2,0)),MIN(Pivot!$F$4:$G$12),VLOOKUP(D193,Pivot!$F$4:$G$12,2,0)) -> 11264.71626 | G193: =IF(ISNA(VLOOKUP(D193,Pivot!$H$4:$I$10,2,0)),MIN(Pivot!$H$4:$I$10),VLOOKUP(D193,Pivot!$H$4:$I$10,2,0)) -> 10382.34181 | K193: =INDEX(E193:I193,1,Control!$C$10) -> 11873.55259
B194: 190 | C194: Zimbabwe | D194: ZWE | E194: =IF(ISNA(VLOOKUP(D194,Pivot!$D$4:$E$30,2,0)),MIN(Pivot!$E$4:$E$30),VLOOKUP(D194,Pivot!$D$4:$E$30,2,0)) -> 11873.55259 | F194: =IF(ISNA(VLOOKUP(D194,Pivot!$F$4:$G$12,2,0)),MIN(Pivot!$F$4:$G$12),VLOOKUP(D194,Pivot!$F$4:$G$12,2,0)) -> 11264.71626 | G194: =IF(ISNA(VLOOKUP(D194,Pivot!$H$4:$I$10,2,0)),MIN(Pivot!$H$4:$I$10),VLOOKUP(D194,Pivot!$H$4:$I$10,2,0)) -> 10382.34181 | K194: =INDEX(E194:I194,1,Control!$C$10) -> 11873.55259

Sheet Control (hidden)
B2: Control
M3: Salary for Analyst
B4: List of metrics | C4: Salary for All | M4: Salary for Mgr
C5: Salary for only Analysts
C6: Salary for only Managers
B10: Selection | C10: 1
B12: Darkness | C12: 5 | D12: the smaller the darker (max: 5,21)
B14: Steps | C14: Threshold | D14: RGB | E14: Min / Max
B15: =B16+$C$12 -> 245 | C15: =E16 -> 11873.55259 | D15: =udf_RGB(MIN(50+B15,245),MIN(100+B15,245),B15) -> 16119285 | E15: =MAX(Data!$K$5:$K$194) -> 99016.17437 | G15: 245-255-250
B16: 240 | C16: =C15+$E$17 -> 13689.02387 | D16: 15791605 | E16: =MIN(Data!$K$5:$K$194) -> 11873.55259
B17: 235 | C17: 15504.49516 | D17: 15463925 | E17: =(E15-E16)/(COUNT($B$15:$B$64)-2) -> 1815.471287
B18: 230 | C18: 17319.96645 | D18: 15136245
B19: 225 | C19: 19135.43774 | D19: 14808565
B20: 220 | C20: 20950.90902 | D20: 14480885
B21: 215 | C21: 22766.38031 | D21: 14153205
B22: 210 | C22: 24581.8516 | D22: 13825525
B23: 205 | C23: 26397.32288 | D23: 13497845
B24: 200 | C24: 28212.79417 | D24: 13170165
B25: 195 | C25: 30028.26546 | D25: 12842485
B26: 190 | C26: 31843.73675 | D26: 12514800 | G26: 211-211-211
B27: 185 | C27: 33659.20803 | D27: 12187115
B28: 180 | C28: 35474.67932 | D28: 11859430
B29: 175 | C29: 37290.15061 | D29: 11531745
B30: 170 | C30: 39105.62189 | D30: 11204060
B31: 165 | C31: 40921.09318 | D31: 10876375
B32: 160 | C32: 42736.56447 | D32: 10548690
B33: 155 | C33: 44552.03576 | D33: 10221005
B34: 150 | C34: 46367.50704 | D34: 9893320
B35: 145 | C35: 48182.97833 | D35: 9565635
B36: 140 | C36: 49998.44962 | D36: 9236670
B37: 135 | C37: 51813.9209 | D37: 8907705
B38: 130 | C38: 53629.39219 | D38: 8578740
B39: 125 | C39: 55444.86348 | D39: 8249775
B40: 120 | C40: 57260.33477 | D40: 7920810
B41: 115 | C41: 59075.80605 | D41: 7591845
B42: 110 | C42: 60891.27734 | D42: 7262880
B43: 105 | C43: 62706.74863 | D43: 6933915
B44: 100 | C44: 64522.21992 | D44: 6604950
B45: 95 | C45: 66337.6912 | D45: 6275985
B46: 90 | C46: 68153.16249 | D46: 5947020
B47: 85 | C47: 69968.63378 | D47: 5618055
B48: 80 | C48: =C47+$E$17 -> 71784.10506 | D48: 5289090
B49: 75 | C49: 73599.57635 | D49: 4960125
B50: 70 | C50: 75415.04764 | D50: 4631160
B51: 65 | C51: 77230.51893 | D51: 4302195
B52: 60 | C52: 79045.99021 | D52: 3973230
B53: 55 | C53: 80861.4615 | D53: 3644265
B54: 50 | C54: 82676.93279 | D54: 3315300
B55: 45 | C55: 84492.40407 | D55: 2986335
B56: 40 | C56: 86307.87536 | D56: 2657370
B57: 35 | C57: 88123.34665 | D57: 2328405
B58: 30 | C58: 89938.81794 | D58: 1999440
B59: 25 | C59: 91754.28922 | D59: 1670475
B60: 20 | C60: 93569.76051 | D60: 1341510
B61: 15 | C61: 95385.2318 | D61: 1012545
B62: 10 | C62: 97200.70308 | D62: 683580
B63: =B64+$C$12 -> 5 | C63: 99016.17437 | D63: 354615
B64: 0 | C64: 100831.6457 | D64: =udf_RGB(MIN(50+B64,245),MIN(100+B64,245),B64) -> 25650 | G64: 34-139-34
B66: Name | C66: Autoshape
B67: D_AFG | C67: S_AFG
B68: D_AGO | C68: S_AGO
B69: D_ALB | C69: S_ALB
B70: D_AND | C70: S_AND
B71: D_ARE | C71: S_ARE
B72: D_ARG | C72: S_ARG
B73: D_ARM | C73: S_ARM
B74: D_ATG | C74: S_ATG
B75: D_AUS | C75: S_AUS
B76: D_AUT | C76: S_AUT
B77: D_AZE | C77: S_AZE
B78: D_BDI | C78: S_BDI
B79: D_BEL | C79: S_BEL
B80: D_BEN | C80: S_BEN
B81: D_BFA | C81: S_BFA
B82: D_BGD | C82: S_BGD
B83: D_BGR | C83: S_BGR
B84: D_BHR | C84: S_BHR
B85: D_BHS | C85: S_BHS
B86: D_BIH | C86: S_BIH
B87: D_BLR | C87: S_BLR
B88: D_BLZ | C88: S_BLZ
B89: D_BOL | C89: S_BOL
B90: D_BRA | C90: S_BRA
B91: D_BRB | C91: S_BRB
B92: D_BTN | C92: S_BTN
B93: D_BWA | C93: S_BWA
B94: D_CAF | C94: S_CAF
B95: D_CAN | C95: S_CAN
B96: D_CG | C96: S_CG
B97: D_CHE | C97: S_CHE
B98: D_CHL | C98: S_CHL
B99: D_CHN | C99: S_CHN
B100: D_CIV | C100: S_CIV
B101: D_CMR | C101: S_CMR
B102: D_COD | C102: S_COD
B103: D_COG | C103: S_COG
B104: D_COL | C104: S_COL
B105: D_COM | C105: S_COM
B106: D_CPV | C106: S_CPV
B107: D_CRI | C107: S_CRI
B108: D_CUB | C108: S_CUB
B109: D_CYP | C109: S_CYP
B110: D_CZE | C110: S_CZE
B111: D_DEU | C111: S_DEU
B112: D_DJI | C112: S_DJI
B113: D_DMA | C113: S_DMA
B114: D_DNK | C114: S_DNK
B115: D_DOM | C115: S_DOM
B116: D_DZA | C116: S_DZA
B117: D_ECU | C117: S_ECU
B118: D_EGY | C118: S_EGY
B119: D_ERI | C119: S_ERI
B120: D_ESH | C120: S_ESH
B121: D_ESP | C121: S_ESP
B122: D_EST | C122: S_EST
B123: D_ETH | C123: S_ETH
B124: D_FIN | C124: S_FIN
B125: D_FJI | C125: S_FJI
B126: D_FRA | C126: S_FRA
B127: D_FSM | C127: S_FSM
B128: D_GAB | C128: S_GAB
B129: D_GBR | C129: S_GBR
B130: D_GEO | C130: S_GEO
B131: D_GHA | C131: S_GHA
B132: D_GIN | C132: S_GIN
B133: D_GMB | C133: S_GMB
B134: D_GNB | C134: S_GNB
B135: D_GNQ | C135: S_GNQ
B136: D_GRC | C136: S_GRC
B137: D_GRD | C137: S_GRD
B138: D_GTM | C138: S_GTM
B139: D_GUY | C139: S_GUY
B140: D_HND | C140: S_HND
B141: D_HRV | C141: S_HRV
B142: D_HTI | C142: S_HTI
B143: D_HUN | C143: S_HUN
B144: D_IDN | C144: S_IDN
B145: D_IND | C145: S_IND
B146: D_IRL | C146: S_IRL
B147: D_IRN | C147: S_IRN
B148: D_IRQ | C148: S_IRQ
B149: D_ISL | C149: S_ISL
B150: D_ISR | C150: S_ISR
B151: D_ITA | C151: S_ITA
B152: D_JAM | C152: S_JAM
B153: D_JOR | C153: S_JOR
B154: D_JPN | C154: S_JPN
B155: D_KAZ | C155: S_KAZ
B156: D_KEN | C156: S_KEN
B157: D_KGZ | C157: S_KGZ
B158: D_KHM | C158: S_KHM
B159: D_KIR | C159: S_KIR
B160: D_KOR | C160: S_KOR
B161: D_KWT | C161: S_KWT
B162: D_LAO | C162: S_LAO
B163: D_LBN | C163: S_LBN
B164: D_LBR | C164: S_LBR
B165: D_LBY | C165: S_LBY
B166: D_LCA | C166: S_LCA
B167: D_LIE | C167: S_LIE
B168: D_LKA | C168: S_LKA
B169: D_LSO | C169: S_LSO
B170: D_LTU | C170: S_LTU
B171: D_LUX | C171: S_LUX
B172: D_LVA | C172: S_LVA
B173: D_MAR | C173: S_MAR
B174: D_MCO | C174: S_MCO
B175: D_MDA | C175: S_MDA
B176: D_MDG | C176: S_MDG
B177: D_MDV | C177: S_MDV
B178: D_MEX | C178: S_MEX
B179: D_MHL | C179: S_MHL
B180: D_MKD | C180: S_MKD
B181: D_MLI | C181: S_MLI
B182: D_MLT | C182: S_MLT
B183: D_MMR | C183: S_MMR
B184: D_MNG | C184: S_MNG
B185: D_MOZ | C185: S_MOZ
B186: D_MRT | C186: S_MRT
B187: D_MUS | C187: S_MUS
B188: D_MWI | C188: S_MWI
B189: D_MYS | C189: S_MYS
B190: D_NAM | C190: S_NAM
B191: D_NER | C191: S_NER
B192: D_NGA | C192: S_NGA
B193: D_NIC | C193: S_NIC
B194: D_NLD | C194: S_NLD
B195: D_NOR | C195: S_NOR
B196: D_NPL | C196: S_NPL
B197: D_NRU | C197: S_NRU
B198: D_NZL | C198: S_NZL
B199: D_OMN | C199: S_OMN
B200: D_PAK | C200: S_PAK
B201: D_PAN | C201: S_PAN
B202: D_PER | C202: S_PER
B203: D_PHL | C203: S_PHL
B204: D_PLW | C204: S_PLW
B205: D_PNG | C205: S_PNG
B206: D_POL | C206: S_POL
B207: D_PRK | C207: S_PRK
... 49 more rows

Sheet Pivot (hidden)
A1: Job Type | B1: (All)
L2: clean Country | M2: (Multiple Items)
A3: Row Labels | B3: Average of Salary in USD | C3: Count of Unique ID | D3: Avg Overall | F3: Avg ANALYST | H3: AVG MANAGER | R3: salary | S3: count | T3: Average of Years of Experience
A4: USA | B4: 72738.12966 | C4: 617 | D4: USA | E4: 72738.12966 | F4: USA | G4: 62583.73737 | H4: IND | I4: 15642.54648 | M4: Values | Q4: Accountant | R4: 56254.20505 | S4: 121 | T4: 9.333333333 | U4: Accountant | AI4: Country | AJ4: Job | AK4: Country | AL4: Salary (USD) | AM4: Job | AN4: Respondants
A5: India | B5: 13529.43089 | C5: 565 | D5: IND | E5: 13529.43089 | F5: IND | G5: 11264.71626 | H5: USA | I5: 77581.71034 | L5: Job Type | M5: Average of Salary in USD | N5: Count of Unique ID | Q5: Analyst | R5: 47076.27158 | S5: 694 | T5: 7.294726166 | U5: Analyst | AD5: NOR | AE5: 99016.17437 | AI5: USA | AJ5: Accountant | AK5: =VLOOKUP(AI5,$AS$17:$AT$43,2,0) -> 1 | AL5: 64737.19048 | AM5: =VLOOKUP(AJ5,$AS$5:$AT$15,2,0) -> 1 | AN5: 42 | AS5: Accountant | AT5: 1
A6: UK | B6: 67240.73011 | C6: 154 | D6: GBR | E6: 67240.73011 | F6: GBR | G6: 57469.44941 | H6: GBR | I6: 66390.12811 | L6: Accountant | M6: 56254.20505 | N6: 121 | Q6: Consultant | R6: 64329.56558 | S6: 84 | T6: 9.245283019 | U6: Consultant | AD6: AUS | AE6: 92857.62985 | AI6: USA | AJ6: Analyst | AK6: =VLOOKUP(AI6,$AS$17:$AT$43,2,0) -> 1 | AL6: 62583.73737 | AM6: =VLOOKUP(AJ6,$AS$5:$AT$15,2,0) -> 2 | AN6: 297 | AS6: Analyst | AT6: 2
A7: Australia | B7: 92857.62985 | C7: 81 | D7: AUS | E7: 92857.62985 | F7: AUS | G7: 86525.3942 | H7: AUS | I7: 95631.0297 | L7: Analyst | M7: 47076.27158 | N7: 694 | Q7: Controller | R7: 66864.48486 | S7: 55 | T7: 11.73333333 | U7: Controller | AD7: CAN | AE7: 89799.52684 | AI7: USA | AJ7: Consultant | AK7: 1 | AL7: 98388.88889 | AM7: 3 | AN7: 18 | AS7: Consultant | AT7: 3
A8: Canada | B8: 89799.52684 | C8: 58 | D8: CAN | E8: 89799.52684 | F8: CAN | G8: 63558.64134 | H8: CAN | I8: 70334.47567 | L8: Consultant | M8: 64329.56558 | N8: 84 | Q8: CXO or Top Mgmt. | R8: 98289.71368 | S8: 71 | T8: 13.60227273 | U8: CXO or Top Mgmt. | AD8: DNK | AE8: 82525.5254 | AI8: USA | AJ8: Controller | AK8: 1 | AL8: 87813.23529 | AM8: 4 | AN8: 17 | AS8: Controller | AT8: 4
A9: Pakistan | B9: 11873.55259 | C9: 29 | D9: PAK | E9: 11873.55259 | F9: NLD | G9: 62090.77258 | H9: PAK | I9: 10382.34181 | L9: Controller | M9: 66864.48486 | N9: 55 | Q9: Engineer | R9: 52679.94136 | S9: 69 | T9: 7.958333333 | U9: Engineer | AD9: DEU | AE9: 79637.14702 | AI9: USA | AJ9: CXO or Top Mgmt. | AK9: 1 | AL9: 125615.3846 | AM9: 5 | AN9: 39 | AS9: CXO or Top Mgmt. | AT9: 5
A10: Netherlands | B10: 73006.4312 | C10: 23 | D10: NLD | E10: 73006.4312 | F10: BRA | G10: 34591.32259 | H10: ARE | I10: 50759.03819 | L10: CXO or Top Mgmt. | M10: 98289.71368 | N10: 71 | Q10: Manager | R10: 46683.10488 | S10: 514 | T10: 9.910249307 | U10: Manager | AD10: NLD | AE10: 73006.4312 | AI10: USA | AJ10: Engineer | AK10: 1 | AL10: 72056.15385 | AM10: 6 | AN10: 26 | AS10: Engineer | AT10: 6
A11: South Africa | B11: 49555.62499 | C11: 19 | D11: ZAF | E11: 49555.62499 | F11: NZL | G11: 53990.22689 | L11: Engineer | M11: 52679.94136 | N11: 69 | Q11: Misc. | R11: 45952.33422 | S11: 7 | T11: 6.166666667 | U11: Misc. | AD11: USA | AE11: 72738.12966 | AI11: USA | AJ11: Manager | AK11: 1 | AL11: 77581.71034 | AM11: 7 | AN11: 145 | AS11: Manager | AT11: 7
A12: UAE | B12: 43014.90019 | C12: 19 | D12: ARE | E12: 43014.90019 | F12: PAK | G12: 14887 | L12: Manager | M12: 46683.10488 | N12: 514 | Q12: Reporting | R12: 19409.10795 | S12: 77 | T12: 5.210606061 | U12: Reporting | AD12: NZL | AE12: 70287.55497 | AI12: USA | AJ12: Misc. | AK12: 1 | AL12: 83820.33333 | AM12: 8 | AN12: 3 | AS12: Misc. | AT12: 8
A13: Germany | B13: 79637.14702 | C13: 17 | D13: DEU | E13: 79637.14702 | L13: Misc. | M13: 45952.33422 | N13: 7 | Q13: Specialist | R13: 61916.56879 | S13: 48 | T13: 9.259259259 | U13: Specialist | AD13: GBR | AE13: 67240.73011 | AI13: USA | AJ13: Reporting | AK13: 1 | AL13: 58200 | AM13: 9 | AN13: 5 | AS13: Reporting | AT13: 9
A14: Brazil | B14: 44287.98421 | C14: 17 | D14: BRA | E14: 44287.98421 | L14: Reporting | M14: 19409.10795 | N14: 77 | AD14: FRA | AE14: 56952.72505 | AI14: USA | AJ14: Specialist | AK14: 1 | AL14: 69800 | AM14: 10 | AN14: 25 | AS14: Specialist | AT14: 10
A15: New Zealand | B15: 70287.55497 | C15: 15 | D15: NZL | E15: 70287.55497 | L15: Specialist | M15: 61916.56879 | N15: 48 | Q15: Analyst | R15: 43819.27661 | S15: 57 | T15: 8.087804878 | U15: 1 or 2 hours a day | AD15: RUS | AE15: 55905.22222 | AI15: India | AJ15: Accountant | AK15: 2 | AL15: 10766.88189 | AM15: 1 | AN15: 29
A16: Singapore | B16: 52154.75405 | C16: 13 | D16: SGP | E16: 52154.75405 | L16: Grand Total | M16: 50549.2448 | N16: 1740 | Q16: Analyst | R16: 48572.5118 | S16: 137 | T16: 7.958415842 | U16: 2 to 3 hours per day | AD16: SGP | AE16: 52154.75405 | AI16: India | AJ16: Analyst | AK16: 2 | AL16: 11264.71626 | AM16: 2 | AN16: 189
A17: Saudi Arabia | B17: 35832.12121 | C17: 11 | D17: SAU | E17: 35832.12121 | Q17: Analyst | R17: 47705.91095 | S17: 329 | T17: 7.402991453 | U17: 4 to 6 hours a day | AD17: ZAF | AE17: 49555.62499 | AI17: India | AJ17: Consultant | AK17: 2 | AL17: 13928.39597 | AM17: 3 | AN17: 20 | AS17: USA | AT17: 1
A18: Philippines | B18: 17479.29236 | C18: 11 | D18: PHL | E18: 17479.29236 | Q18: Analyst | R18: 42953.14149 | S18: 215 | T18: 6.585333333 | U18: All the 8 hours baby, all the 8! | AD18: ITA | AE18: 47258.85913 | AI18: India | AJ18: Controller | AK18: 2 | AL18: 10468.17715 | AM18: 4 | AN18: 7 | AS18: India | AT18: 2
A19: Spain | B19: 46235.66011 | C19: 10 | D19: ESP | E19: 46235.66011 | AD19: ESP | AE19: 46235.66011 | AI19: India | AJ19: CXO or Top Mgmt. | AK19: 2 | AL19: 28659.37181 | AM19: 5 | AN19: 13 | AS19: UK | AT19: 3
A20: Mexico | B20: 32138.49829 | C20: 10 | D20: MEX | E20: 32138.49829 | Q20: Manager | R20: 57523.37251 | S20: 65 | T20: 11.50208333 | U20: 1 or 2 hours a day | AD20: BRA | AE20: 44287.98421 | AI20: India | AJ20: Engineer | AK20: 2 | AL20: 12397.82557 | AM20: 6 | AN20: 22 | AS20: Australia | AT20: 4
A21: Portugal | B21: 32907.76341 | C21: 10 | D21: PRT | E21: 32907.76341 | Q21: Manager | R21: 48023.28191 | S21: 166 | T21: 10.15304348 | U21: 2 to 3 hours per day | AD21: ARE | AE21: 43014.90019 | AI21: India | AJ21: Manager | AK21: 2 | AL21: 15642.54648 | AM21: 7 | AN21: 215 | AS21: Canada | AT21: 5
A22: Russia | B22: 55905.22222 | C22: 9 | D22: RUS | E22: 55905.22222 | Q22: Manager | R22: 47649.8932 | S22: 215 | T22: 9.232876712 | U22: 4 to 6 hours a day | AD22: SAU | AE22: 35832.12121 | AI22: India | AJ22: Misc. | AK22: 2 | AL22: 17551.33488 | AM22: 8 | AN22: 4 | AS22: Pakistan | AT22: 6
A23: Indonesia | B23: 28872.8368 | C23: 8 | D23: IDN | E23: 28872.8368 | Q23: Manager | R23: 35434.79337 | S23: 110 | T23: 9.727710843 | U23: All the 8 hours baby, all the 8! | AD23: POL | AE23: 34210.34538 | AI23: India | AJ23: Reporting | AK23: 2 | AL23: 10314.75139 | AM23: 9 | AN23: 60 | AS23: Netherlands | AT23: 7
A24: malaysia | B24: 24996.13322 | C24: 7 | D24: MYS | E24: 24996.13322 | L24: clean Country | M24: (Multiple Items) | AD24: PRT | AE24: 32907.76341 | AI24: India | AJ24: Specialist | AK24: 2 | AL24: 25575.07224 | AM24: 10 | AN24: 6 | AS24: UAE | AT24: 8
A25: Norway | B25: 99016.17437 | C25: 7 | D25: NOR | E25: 99016.17437 | AD25: MEX | AE25: 32138.49829 | AI25: UK | AJ25: Accountant | AK25: 3 | AL25: 55820.30474 | AM25: 1 | AN25: 17 | AS25: South Africa | AT25: 9
A26: Denmark | B26: 82525.5254 | C26: 6 | D26: DNK | E26: 82525.5254 | M26: Values | AD26: IDN | AE26: 28872.8368 | AI26: UK | AJ26: Analyst | AK26: 3 | AL26: 57469.44941 | AM26: 2 | AN26: 58 | AS26: Germany | AT26: 10
A27: Romania | B27: 16449.97676 | C27: 6 | D27: ROM | E27: 16449.97676 | L27: Job Type | M27: Average of Salary in USD | N27: Count of Unique ID | O27: Sum of Years of Experience | P27: Count of Years of Experience2 | Q27: Average of Years of Experience | AD27: MYS | AE27: 24996.13322 | AI27: UK | AJ27: Consultant | AK27: 3 | AL27: 83902.61294 | AM27: 3 | AN27: 12 | AS27: Brazil | AT27: 11
A28: Poland | B28: 34210.34538 | C28: 6 | D28: POL | E28: 34210.34538 | L28: Accountant | M28: 56254.20505 | N28: 121 | O28: 840 | P28: 90 | Q28: 9.333333333 | R28: =O28/P28 -> 9.333333333 | AD28: PHL | AE28: 17479.29236 | AI28: UK | AJ28: Controller | AK28: 3 | AL28: 109281.6935 | AM28: 4 | AN28: 6 | AS28: New Zealand | AT28: 12
A29: France | B29: 56952.72505 | C29: 6 | D29: FRA | E29: 56952.72505 | L29: Analyst | M29: 47076.27158 | N29: 694 | O29: 3596.3 | P29: 493 | Q29: 7.294726166 | R29: =O29/P29 -> 7.294726166 | AD29: ROM | AE29: 16449.97676 | AI29: UK | AJ29: CXO or Top Mgmt. | AK29: 3 | AL29: 114272.9247 | AM29: 5 | AN29: 6 | AS29: Singapore | AT29: 13
A30: italy | B30: 47258.85913 | C30: 6 | D30: ITA | E30: 47258.85913 | L30: Consultant | M30: 64329.56558 | N30: 84 | O30: 490 | P30: 53 | Q30: 9.245283019 | R30: 9.245283019 | AD30: IND | AE30: 13529.43089 | AI30: UK | AJ30: Engineer | AK30: 3 | AL30: 81372.72518 | AM30: 6 | AN30: 5 | AS30: Saudi Arabia | AT30: 14
A31: Europe | B31: 123889.3533 | C31: 5 | L31: Controller | M31: 66864.48486 | N31: 55 | O31: 528 | P31: 45 | Q31: 11.73333333 | R31: 11.73333333 | AD31: PAK | AE31: 11873.55259 | AI31: UK | AJ31: Manager | AK31: 3 | AL31: 66390.12811 | AM31: 7 | AN31: 41 | AS31: Philippines | AT31: 15
A32: Colombia | B32: 12362 | C32: 5 | L32: CXO or Top Mgmt. | M32: 98289.71368 | N32: 71 | O32: 598.5 | P32: 44 | Q32: 13.60227273 | R32: 13.60227273 | AI32: UK | AJ32: Reporting | AK32: 3 | AL32: 31939.07519 | AM32: 9 | AN32: 4 | AS32: Spain | AT32: 16
A33: Sri Lanka | B33: 22921.15479 | C33: 5 | L33: Engineer | M33: 52679.94136 | N33: 69 | O33: 382 | P33: 48 | Q33: 7.958333333 | R33: 7.958333333 | AI33: UK | AJ33: Specialist | AK33: 3 | AL33: 93624.98936 | AM33: 10 | AN33: 5 | AS33: Portugal | AT33: 17
A34: Hungary | B34: 24716.34725 | C34: 5 | L34: Manager | M34: 46683.10488 | N34: 514 | O34: 3577.6 | P34: 361 | Q34: 9.910249307 | R34: 9.910249307 | AI34: Australia | AJ34: Accountant | AK34: 4 | AL34: 92811.77873 | AM34: 1 | AN34: 6 | AS34: Mexico | AT34: 18
A35: Ireland | B35: 61652.48477 | C35: 5 | L35: Misc. | M35: 45952.33422 | N35: 7 | O35: 37 | P35: 6 | Q35: 6.166666667 | R35: 6.166666667 | AI35: Australia | AJ35: Analyst | AK35: 4 | AL35: 86525.3942 | AM35: 2 | AN35: 38 | AS35: Russia | AT35: 19
A36: Israel | B36: 66840 | C36: 5 | L36: Reporting | M36: 19409.10795 | N36: 77 | O36: 343.9 | P36: 66 | Q36: 5.210606061 | R36: 5.210606061 | AI36: Australia | AJ36: Consultant | AK36: 4 | AL36: 103302.2781 | AM36: 3 | AN36: 7 | AS36: Indonesia | AT36: 20
A37: Switzerland | B37: 137525.5572 | C37: 4 | L37: Specialist | M37: 61916.56879 | N37: 48 | O37: 250 | P37: 27 | Q37: 9.259259259 | R37: 9.259259259 | AI37: Australia | AJ37: Controller | AK37: 4 | AL37: 82952.65205 | AM37: 4 | AN37: 3 | AS37: malaysia | AT37: 21
A38: Belgium | B38: 41707.21358 | C38: 4 | L38: Grand Total | M38: 50549.2448 | N38: 1740 | O38: 10643.3 | P38: 1233 | Q38: 8.632035685 | AI38: Australia | AJ38: CXO or Top Mgmt. | AK38: 4 | AL38: 95191.56793 | AM38: 5 | AN38: 3 | AS38: Norway | AT38: 22
A39: Ukraine | B39: 11650 | C39: 4 | AI39: Australia | AJ39: Engineer | AK39: 4 | AL39: 163695.4999 | AM39: 6 | AN39: 2 | AS39: France | AT39: 23
A40: Dubai | B40: 32166.95919 | C40: 4 | AI40: Australia | AJ40: Manager | AK40: 4 | AL40: 95631.0297 | AM40: 7 | AN40: 19 | AS40: Denmark | AT40: 24
A41: Nigeria | B41: 13494.89625 | C41: 3 | AI41: Australia | AJ41: Reporting | AK41: 4 | AL41: 85000 | AM41: 9 | AN41: 1 | AS41: Poland | AT41: 25
A42: Brasil | B42: 33515 | C42: 3 | AI42: Australia | AJ42: Specialist | AK42: 4 | AL42: 94851.59805 | AM42: 10 | AN42: 2 | AS42: Romania | AT42: 26
A43: Greece | B43: 30066.12006 | C43: 3 | AI43: Canada | AJ43: Accountant | AK43: 5 | AL43: 680486.1739 | AM43: 1 | AN43: 2 | AS43: italy | AT43: 27
A44: Qatar | B44: 53066.66667 | C44: 3 | AI44: Canada | AJ44: Analyst | AK44: 5 | AL44: 63558.64134 | AM44: 2 | AN44: 31
A45: iran | B45: 18000 | C45: 3 | AI45: Canada | AJ45: Consultant | AK45: 5 | AL45: 100958.4497 | AM45: 3 | AN45: 3
A46: Finland | B46: 75389.41554 | C46: 3 | N46: Values | AI46: Canada | AJ46: Controller | AK46: 5 | AL46: 89485.8986 | AM46: 4 | AN46: 2
A47: Croatia | B47: 43489.58654 | C47: 3 | L47: clean Country | M47: Job Type | N47: Average of Salary in USD | O47: Count of Unique ID | AI47: Canada | AJ47: CXO or Top Mgmt. | AK47: 5 | AL47: 98336.1523 | AM47: 5 | AN47: 1
A48: Japan | B48: 67564.77404 | C48: 3 | L48: USA | M48: Accountant | N48: 64737.19048 | O48: 42 | AI48: Canada | AJ48: Engineer | AK48: 5 | AL48: 68835.30661 | AM48: 6 | AN48: 1
A49: Kuwait | B49: 42666.66667 | C49: 3 | L49: USA | M49: Analyst | N49: 62583.73737 | O49: 297 | AI49: Canada | AJ49: Manager | AK49: 5 | AL49: 70334.47567 | AM49: 7 | AN49: 16
A50: Thailand | B50: 73000 | C50: 2 | L50: USA | M50: Consultant | N50: 98388.88889 | O50: 18 | AI50: Canada | AJ50: Specialist | AK50: 5 | AL50: 51356.05554 | AM50: 10 | AN50: 2
A51: Bangladesh | B51: 10299.00865 | C51: 2 | L51: USA | M51: Controller | N51: 87813.23529 | O51: 17 | AI51: Pakistan | AJ51: Accountant | AK51: 6 | AL51: 4633.353712 | AM51: 1 | AN51: 4
A52: Myanmar | B52: 17700 | C52: 2 | L52: USA | M52: CXO or Top Mgmt. | N52: 125615.3846 | O52: 39 | AI52: Pakistan | AJ52: Analyst | AK52: 6 | AL52: 14887 | AM52: 2 | AN52: 6
A53: CEE | B53: 87167.97475 | C53: 2 | L53: USA | M53: Engineer | N53: 72056.15385 | O53: 26 | AI53: Pakistan | AJ53: Consultant | AK53: 6 | AL53: 12899.15767 | AM53: 3 | AN53: 4
A54: Sweden | B54: 84477.26009 | C54: 2 | L54: USA | M54: Manager | N54: 77581.71034 | O54: 145 | AI54: Pakistan | AJ54: Controller | AK54: 6 | AL54: 48000 | AM54: 4 | AN54: 1
A55: china | B55: 17046.0901 | C55: 2 | L55: USA | M55: Misc. | N55: 83820.33333 | O55: 3 | AI55: Pakistan | AJ55: Manager | AK55: 6 | AL55: 10382.34181 | AM55: 7 | AN55: 13
A56: Turkey | B56: 48000 | C56: 2 | L56: USA | M56: Reporting | N56: 58200 | O56: 5 | AI56: Pakistan | AJ56: Reporting | AK56: 6 | AL56: 1910.535969 | AM56: 9 | AN56: 1
A57: Zambia | B57: 13000 | C57: 2 | L57: USA | M57: Specialist | N57: 69800 | O57: 25 | AI57: Netherlands | AJ57: Accountant | AK57: 7 | AL57: 62564.63157 | AM57: 1 | AN57: 1
A58: Panama | B58: 44759.98597 | C58: 2 | L58: Grand Total | N58: 72738.12966 | O58: 617 | AI58: Netherlands | AJ58: Analyst | AK58: 7 | AL58: 62090.77258 | AM58: 2 | AN58: 12
A59: Slovakia | B59: 13000 | C59: 1 | AI59: Netherlands | AJ59: Consultant | AK59: 7 | AL59: 38111.98317 | AM59: 3 | AN59: 1
A60: Vietnam | B60: 10000 | C60: 1 | AI60: Netherlands | AJ60: Controller | AK60: 7 | AL60: 71142.36858 | AM60: 4 | AN60: 2
A61: Albania | B61: 20571 | C61: 1 | AI61: Netherlands | AJ61: Engineer | AK61: 7 | AL61: 64790.37139 | AM61: 6 | AN61: 2
A62: Lithuania | B62: 15000 | C62: 1 | AI62: Netherlands | AJ62: Manager | AK62: 7 | AL62: 76859.16606 | AM62: 7 | AN62: 4
A63: Bermuda | B63: 78000 | C63: 1 | AI63: Netherlands | AJ63: Reporting | AK63: 7 | AL63: 254079.8878 | AM63: 9 | AN63: 1
A64: arabian Gulf | B64: 21000 | C64: 1 | AI64: UAE | AJ64: Accountant | AK64: 8 | AL64: 27000 | AM64: 1 | AN64: 4
A65: Guyana | B65: 6000 | C65: 1 | L65: clean Country | M65: (Multiple Items) | AI65: UAE | AJ65: Analyst | AK65: 8 | AL65: 31677.69953 | AM65: 2 | AN65: 4
A66: Mauritius | B66: 9376.251388 | C66: 1 | AI66: UAE | AJ66: Controller | AK66: 8 | AL66: 70250 | AM66: 4 | AN66: 2
A67: Uganda | B67: 100000 | C67: 1 | N67: Values | AI67: UAE | AJ67: Engineer | AK67: 8 | AL67: 36000 | AM67: 6 | AN67: 1
A68: Costa Rica | B68: 28109.62755 | C68: 1 | L68: Job Type | M68: How many hours of a day you work on Excel | N68: Count of Unique ID | O68: Average of Salary in USD | P68: Average of Years of Experience | AI68: UAE | AJ68: Manager | AK68: 8 | AL68: 50759.03819 | AM68: 7 | AN68: 8
A69: Republica Dominicana | B69: 15404.36457 | C69: 1 | L69: Analyst | M69: 1 or 2 hours a day | N69: 50 | O69: 45021.73568 | P69: 7.6 | AI69: South Africa | AJ69: Accountant | AK69: 9 | AL69: 36957.66144 | AM69: 1 | AN69: 2
A70: Mongolia | B70: 7261.72466 | C70: 1 | M70: 2 to 3 hours per day | N70: 128 | O70: 49847.42988 | P70: 8.082978723 | AI70: South Africa | AJ70: Analyst | AK70: =VLOOKUP(AI70,$AS$17:$AT$43,2,0) -> 9 | AL70: 44070.89405 | AM70: =VLOOKUP(AJ70,$AS$5:$AT$15,2,0) -> 2 | AN70: 5
A71: self-employed | B71: 50000 | C71: 1 | M71: 4 to 6 hours a day | N71: 316 | O71: 47571.59489 | P71: 7.371300448 | AI71: South Africa | AJ71: Consultant | AK71: 9 | AL71: 82000 | AM71: 3 | AN71: 1
A72: Montenegro | B72: 13500 | C72: 1 | M72: All the 8 hours baby, all the 8! | N72: 195 | O72: 44570.7539 | P72: 6.600719424 | AI72: South Africa | AJ72: Controller | AK72: 9 | AL72: 9509.898829 | AM72: 4 | AN72: 1
A73: Somalia | B73: 78000 | C73: 1 | M73: Excel ?!? What Excel? | N73: 5 | O73: 63090.73411 | P73: 1.6 | AI73: South Africa | AJ73: CXO or Top Mgmt. | AK73: 9 | AL73: 69815.30679 | AM73: 5 | AN73: 2
A74: Morocco | B74: 13745.70447 | C74: 1 | L74: Manager | M74: 1 or 2 hours a day | N74: 59 | O74: 58800.18103 | P74: 11.85952381 | AI74: South Africa | AJ74: Manager | AK74: 9 | AL74: 64096.11387 | AM74: 7 | AN74: 5
A75: Central America | B75: 95000 | C75: 1 | M75: 2 to 3 hours per day | N75: 157 | O75: 47650.39266 | P75: 10.22990654 | AI75: South Africa | AJ75: Reporting | AK75: 9 | AL75: 28500 | AM75: 9 | AN75: 2
A76: mozambique | B76: 24000 | C76: 1 | M76: 4 to 6 hours a day | N76: 198 | O76: 48005.84193 | P76: 9.124087591 | AI76: South Africa | AJ76: Specialist | AK76: 9 | AL76: 38666 | AM76: 10 | AN76: 1
A77: Lesotho | B77: 177600 | C77: 1 | M77: All the 8 hours baby, all the 8! | N77: 98 | O77: 35230.98857 | P77: 9.847945205 | AI77: Germany | AJ77: Analyst | AK77: 10 | AL77: 74545.57812 | AM77: 2 | AN77: 4
A78: Kenya | B78: 51497.00599 | C78: 1 | M78: Excel ?!? What Excel? | N78: 2 | O78: 43500 | P78: 8 | AI78: Germany | AJ78: Consultant | AK78: 10 | AL78: 67977.97826 | AM78: 3 | AN78: 4
A79: Libya | B79: 24864 | C79: 1 | L79: Grand Total | N79: 1208 | O79: 46908.98045 | P79: 8.400351288 | AI79: Germany | AJ79: Controller | AK79: 10 | AL79: 60767.43983 | AM79: 4 | AN79: 3
A80: MYS | B80: 12000 | C80: 1 | AI80: Germany | AJ80: Manager | AK80: 10 | AL80: 102501.3987 | AM80: 7 | AN80: 5
A81: Republic of Georgia | B81: 5250 | C81: 1 | AI81: Germany | AJ81: Specialist | AK81: 10 | AL81: 88927.96073 | AM81: 10 | AN81: 1
A82: Austria | B82: 50815.97756 | C82: 1 | AI82: Brazil | AJ82: Analyst | AK82: 11 | AL82: 34591.32259 | AM82: 2 | AN82: 11
A83: Argentina | B83: 24000 | C83: 1 | AI83: Brazil | AJ83: Consultant | AK83: 11 | AL83: 116050 | AM83: 3 | AN83: 2
A84: Czech Republic | B84: 36000 | C84: 1 | AI84: Brazil | AJ84: Controller | AK84: 11 | AL84: 15600 | AM84: 4 | AN84: 1
A85: Bhutan | B85: 4800 | C85: 1 | AI85: Brazil | AJ85: Engineer | AK85: 11 | AL85: 49000 | AM85: 6 | AN85: 2
A86: Azerbaijan | B86: 36000 | C86: 1 | AI86: Brazil | AJ86: Manager | AK86: 11 | AL86: 26691.18301 | AM86: 7 | AN86: 1
A87: Ghana | B87: 18000 | C87: 1 | AI87: New Zealand | AJ87: Accountant | AK87: 12 | AL87: 66465.67447 | AM87: 1 | AN87: 3
A88: Dominican Republic | B88: 6629 | C88: 1 | AI88: New Zealand | AJ88: Analyst | AK88: 12 | AL88: 53990.22689 | AM88: 2 | AN88: 6
A89: Slovenia | B89: 19055.99158 | C89: 1 | AI89: New Zealand | AJ89: Consultant | AK89: 12 | AL89: 72000 | AM89: 3 | AN89: 1
A90: Oman | B90: 100800 | C90: 1 | AI90: New Zealand | AJ90: Engineer | AK90: 12 | AL90: 39879.40468 | AM90: 6 | AN90: 1
A91: Bolivia | B91: 9600 | C91: 1 | AI91: New Zealand | AJ91: Manager | AK91: 12 | AL91: 104773.8838 | AM91: 7 | AN91: 4
A92: Baltic | B92: 8400 | C92: 1 | AI92: Singapore | AJ92: Accountant | AK92: 13 | AL92: 60000 | AM92: 1 | AN92: 1
A93: Hong Kong | B93: 20000 | C93: 1 | AI93: Singapore | AJ93: Analyst | AK93: 13 | AL93: 43550 | AM93: 2 | AN93: 4
A94: Bulgaria | B94: 14400 | C94: 1 | AI94: Singapore | AJ94: Consultant | AK94: 13 | AL94: 63900 | AM94: 3 | AN94: 4
A95: Armenia | B95: 6000 | C95: 1 | AI95: Singapore | AJ95: Engineer | AK95: 13 | AL95: 47500 | AM95: 6 | AN95: 2
A96: Uruguay | B96: 35000 | C96: 1 | AI96: Singapore | AJ96: Manager | AK96: 13 | AL96: 46605.90135 | AM96: 7 | AN96: 2
A97: Tunisia | B97: 11000 | C97: 1 | AI97: Saudi Arabia | AJ97: Accountant | AK97: 14 | AL97: 29750 | AM97: 1 | AN97: 2
A98: Viet Nam | B98: 10000 | C98: 1 | AI98: Saudi Arabia | AJ98: Analyst | AK98: 14 | AL98: 18000 | AM98: 2 | AN98: 1
A99: Iceland | B99: 41731 | C99: 1 | AI99: Saudi Arabia | AJ99: Controller | AK99: 14 | AL99: 28480 | AM99: 4 | AN99: 2
A100: Egypt | B100: 19831.43282 | C100: 1 | AI100: Saudi Arabia | AJ100: Engineer | AK100: 14 | AL100: 57600 | AM100: 6 | AN100: 1
A101: Aruba | B101: 5000 | C101: 1 | AI101: Saudi Arabia | AJ101: Manager | AK101: 14 | AL101: 40418.66667 | AM101: 7 | AN101: 5
A102: Estonia | B102: 12000 | C102: 1 | AI102: Philippines | AJ102: Accountant | AK102: 15 | AL102: 19068 | AM102: 1 | AN102: 1
A103: Ethiopia | B103: 2953.846154 | C103: 1 | AI103: Philippines | AJ103: Analyst | AK103: 15 | AL103: 44991.22439 | AM103: 2 | AN103: 2
A104: Cambodia | B104: 3000 | C104: 1 | AI104: Philippines | AJ104: Manager | AK104: 15 | AL104: 9458.315851 | AM104: 7 | AN104: 4
A105: Paraguay | B105: 20000 | C105: 1 | AI105: Philippines | AJ105: Reporting | AK105: 15 | AL105: 14434.75191 | AM105: 9 | AN105: 2
A106: Asia | B106: 12000 | C106: 1 | AI106: Philippines | AJ106: Specialist | AK106: 15 | AL106: 8259.5 | AM106: 10 | AN106: 2
A107: Peru | B107: 15840 | C107: 1 | AI107: Spain | AJ107: Analyst | AK107: 16 | AL107: 30807.1864 | AM107: 2 | AN107: 4
A108: Zimbabwe | B108: 36400 | C108: 1 | AI108: Spain | AJ108: Consultant | AK108: 16 | AL108: 12000 | AM108: 3 | AN108: 1
A109: Kuwait | B109: 15600 | C109: 1 | AI109: Spain | AJ109: Controller | AK109: 16 | AL109: 35571.18429 | AM109: 4 | AN109: 1
A110: Latin America | B110: 4400 | C110: 1 | AI110: Spain | AJ110: CXO or Top Mgmt. | AK110: 16 | AL110: 127039.9439 | AM110: 5 | AN110: 1
A111: Grand Total | B111: 49814.59826 | C111: 1883 | AI111: Spain | AJ111: Engineer | AK111: 16 | AL111: 52086.377 | AM111: 6 | AN111: 1
AI112: Spain | AJ112: Manager | AK112: 16 | AL112: 56215.17518 | AM112: 7 | AN112: 2
AI113: Portugal | AJ113: Accountant | AK113: 17 | AL113: 36756.89043 | AM113: 1 | AN113: 3
AI114: Portugal | AJ114: Analyst | AK114: 17 | AL114: 26678.38822 | AM114: 2 | AN114: 1
AI115: Portugal | AJ115: Controller | AK115: 17 | AL115: 19818.23125 | AM115: 4 | AN115: 1
AI116: Portugal | AJ116: CXO or Top Mgmt. | AK116: 17 | AL116: 44000 | AM116: 5 | AN116: 1
AI117: Portugal | AJ117: Engineer | AK117: 17 | AL117: 63519.97195 | AM117: 6 | AN117: 1
AI118: Portugal | AJ118: Manager | AK118: 17 | AL118: 24772.78906 | AM118: 7 | AN118: 2
AI119: Portugal | AJ119: Specialist | AK119: 17 | AL119: 15244.79327 | AM119: 10 | AN119: 1
AI120: Mexico | AJ120: Accountant | AK120: 18 | AL120: 15500 | AM120: 1 | AN120: 1
AI121: Mexico | AJ121: Analyst | AK121: 18 | AL121: 24471.24572 | AM121: 2 | AN121: 4
AI122: Mexico | AJ122: CXO or Top Mgmt. | AK122: 18 | AL122: 72500 | AM122: 5 | AN122: 2
AI123: Mexico | AJ123: Manager | AK123: 18 | AL123: 21000 | AM123: 7 | AN123: 3
AI124: Russia | AJ124: Analyst | AK124: 19 | AL124: 69000 | AM124: 2 | AN124: 3
AI125: Russia | AJ125: Consultant | AK125: 19 | AL125: 36000 | AM125: 3 | AN125: 1
AI126: Russia | AJ126: Controller | AK126: 19 | AL126: 24000 | AM126: 4 | AN126: 1
AI127: Russia | AJ127: Manager | AK127: 19 | AL127: 50500 | AM127: 7 | AN127: 2
AI128: Russia | AJ128: Specialist | AK128: 19 | AL128: 67573.5 | AM128: 10 | AN128: 2
AI129: Indonesia | AJ129: Analyst | AK129: 20 | AL129: 8245.673595 | AM129: 2 | AN129: 4
AI130: Indonesia | AJ130: Controller | AK130: 20 | AL130: 30000 | AM130: 4 | AN130: 1
AI131: Indonesia | AJ131: Manager | AK131: 20 | AL131: 56000 | AM131: 7 | AN131: 3
AI132: malaysia | AJ132: Analyst | AK132: 21 | AL132: 30000 | AM132: 2 | AN132: 1
AI133: malaysia | AJ133: CXO or Top Mgmt. | AK133: 21 | AL133: 35000 | AM133: 5 | AN133: 1
AI134: malaysia | AJ134: Engineer | AK134: =VLOOKUP(AI134,$AS$17:$AT$43,2,0) -> 21 | AL134: 11404.82044 | AM134: =VLOOKUP(AJ134,$AS$5:$AT$15,2,0) -> 6 | AN134: 1
AI135: malaysia | AJ135: Manager | AK135: 21 | AL135: 24642.02803 | AM135: 7 | AN135: 4
AI136: Norway | AJ136: Accountant | AK136: 22 | AL136: 110000 | AM136: 1 | AN136: 1
AI137: Norway | AJ137: Analyst | AK137: 22 | AL137: 67700.45258 | AM137: 2 | AN137: 1
AI138: Norway | AJ138: Controller | AK138: 22 | AL138: 105000 | AM138: 4 | AN138: 2
AI139: Norway | AJ139: Manager | AK139: 22 | AL139: 101804.256 | AM139: 7 | AN139: 3
AI140: France | AJ140: Analyst | AK140: 23 | AL140: 41923.18149 | AM140: 2 | AN140: 1
AI141: France | AJ141: Consultant | AK141: 23 | AL141: 67458.21021 | AM141: 3 | AN141: 2
AI142: France | AJ142: Manager | AK142: 23 | AL142: 54958.91613 | AM142: 7 | AN142: 3
AI143: Denmark | AJ143: Analyst | AK143: 24 | AL143: 106000 | AM143: 2 | AN143: 1
AI144: Denmark | AJ144: Consultant | AK144: 24 | AL144: 20000 | AM144: 3 | AN144: 1
AI145: Denmark | AJ145: Controller | AK145: 24 | AL145: 82888.55506 | AM145: 4 | AN145: 1
AI146: Denmark | AJ146: CXO or Top Mgmt. | AK146: 24 | AL146: 76906.90675 | AM146: 5 | AN146: 1
AI147: Denmark | AJ147: Engineer | AK147: 24 | AL147: 102542.5423 | AM147: 6 | AN147: 1
AI148: Denmark | AJ148: Manager | AK148: 24 | AL148: 106815.1483 | AM148: 7 | AN148: 1
AI149: Poland | AJ149: Analyst | AK149: 25 | AL149: 18406.2946 | AM149: 2 | AN149: 3
AI150: Poland | AJ150: Consultant | AK150: 25 | AL150: 96000 | AM150: 3 | AN150: 1
AI151: Poland | AJ151: Manager | AK151: 25 | AL151: 27021.59425 | AM151: 7 | AN151: 2
AI152: Romania | AJ152: Accountant | AK152: 26 | AL152: 8500 | AM152: 1 | AN152: 1
AI153: Romania | AJ153: Analyst | AK153: 26 | AL153: 7500 | AM153: 2 | AN153: 1
AI154: Romania | AJ154: Manager | AK154: 26 | AL154: 17100 | AM154: 7 | AN154: 2
AI155: Romania | AJ155: Reporting | AK155: 26 | AL155: 30000 | AM155: 9 | AN155: 1
AI156: Romania | AJ156: Specialist | AK156: 26 | AL156: 18499.86054 | AM156: 10 | AN156: 1
AI157: italy | AJ157: Accountant | AK157: 27 | AL157: 63519.97195 | AM157: 1 | AN157: 1
AI158: italy | AJ158: Analyst | AK158: 27 | AL158: 50307.81778 | AM158: 2 | AN158: 2
AI159: italy | AJ159: Consultant | AK159: 27 | AL159: 19055.99158 | AM159: 3 | AN159: 1
AI160: italy | AJ160: Controller | AK160: 27 | AL160: 30489.58654 | AM160: 4 | AN160: 1
AI161: italy | AJ161: CXO or Top Mgmt. | AK161: 27 | AL161: 69871.96914 | AM161: 5 | AN161: 1

Sheet Sheet1 (hidden)
A1: Unique ID | B1: Timestamp | C1: clean Salary (in local currency) | D1: Currency | E1: Salary in USD | F1: Your Job Title | G1: Job Type | H1: Where do you work | I1: clean Country | J1: How many hours of a day you work on Excel | K1: Years of Experience
A2: ID0001 | B2: 2012-05-25T03:11:32 | C2: 5846 | D2: USD | E2: =tblSalaries[[#This Row],[clean Salary (in local currency)]]*VLOOKUP(tblSalaries[[#This Row],[Currency]],[1]!tblXrate[#Data],2,FALSE) -> 5846 | F2: MIS Analyst | G2: Analyst | H2: India | I2: =VLOOKUP(tblSalaries[[#This Row],[Where do you work]],[1]!tblCountries[[Actual]:[Mapping]],2,FALSE) -> India | J2: 4 to 6 hours a day
A3: ID0002 | B3: 2012-05-25T03:13:13 | C3: 15000 | D3: USD | E3: =tblSalaries[[#This Row],[clean Salary (in local currency)]]*VLOOKUP(tblSalaries[[#This Row],[Currency]],[1]!tblXrate[#Data],2,FALSE) -> 15000 | F3: cost control | G3: Controller | H3: europe/Croatia | I3: =VLOOKUP(tblSalaries[[#This Row],[Where do you work]],[1]!tblCountries[[Actual]:[Mapping]],2,FALSE) -> Croatia | J3: All the 8 hours baby, all the 8!
A4: ID0003 | B4: 2012-05-25T03:16:26 | C4: 58000 | D4: USD | E4: =tblSalaries[[#This Row],[clean Salary (in local currency)]]*VLOOKUP(tblSalaries[[#This Row],[Currency]],[1]!tblXrate[#Data],2,FALSE) -> 58000 | F4: Financial Analyst | G4: Analyst | H4: USA | I4: =VLOOKUP(tblSalaries[[#This Row],[Where do you work]],[1]!tblCountries[[Actual]:[Mapping]],2,FALSE) -> USA | J4: All the 8 hours baby, all the 8!
A5: ID0004 | B5: 2012-05-25T03:23:42 | C5: 48000 | D5: USD | E5: =tblSalaries[[#This Row],[clean Salary (in local currency)]]*VLOOKUP(tblSalaries[[#This Row],[Currency]],[1]!tblXrate[#Data],2,FALSE) -> 48000 | F5: Quality Control | G5: Controller | H5: Pakistan | I5: =VLOOKUP(tblSalaries[[#This Row],[Where do you work]],[1]!tblCountries[[Actual]:[Mapping]],2,FALSE) -> Pakistan | J5: 2 to 3 hours per day
A6: ID0005 | B6: 2012-05-25T03:27:04 | C6: 54000 | D6: USD | E6: =tblSalaries[[#This Row],[clean Salary (in local currency)]]*VLOOKUP(tblSalaries[[#This Row],[Currency]],[1]!tblXrate[#Data],2,FALSE) -> 54000 | F6: Quality Engineer | G6: Engineer | H6: USA | I6: =VLOOKUP(tblSalaries[[#This Row],[Where do you work]],[1]!tblCountries[[Actual]:[Mapping]],2,FALSE) -> USA | J6: All the 8 hours baby, all the 8!
A7: ID0006 | B7: 2012-05-25T03:28:28 | C7: 41731 | D7: USD | E7: =tblSalaries[[#This Row],[clean Salary (in local currency)]]*VLOOKUP(tblSalaries[[#This Row],[Currency]],[1]!tblXrate[#Data],2,FALSE) -> 41731 | F7: Analyst | G7: Analyst | H7: Iceland | I7: =VLOOKUP(tblSalaries[[#This Row],[Where do you work]],[1]!tblCountries[[Actual]:[Mapping]],2,FALSE) -> Iceland | J7: All the 8 hours baby, all the 8!
A8: ID0007 | B8: 2012-05-25T03:33:51 | C8: 145000 | D8: EUR | E8: =tblSalaries[[#This Row],[clean Salary (in local currency)]]*VLOOKUP(tblSalaries[[#This Row],[Currency]],[1]!tblXrate[#Data],2,FALSE) -> 184207.9187 | F8: senior project manager | G8: Manager | H8: Germany | I8: =VLOOKUP(tblSalaries[[#This Row],[Where do you work]],[1]!tblCountries[[Actual]:[Mapping]],2,FALSE) -> Germany | J8: 1 or 2 hours a day
A9: ID0008 | B9: 2012-05-25T03:36:37 | C9: 12000 | D9: USD | E9: =tblSalaries[[#This Row],[clean Salary (in local currency)]]*VLOOKUP(tblSalaries[[#This Row],[Currency]],[1]!tblXrate[#Data],2,FALSE) -> 12000 | F9: Assistant SP&A | G9: Analyst | H9: Ukraine | I9: =VLOOKUP(tblSalaries[[#This Row],[Where do you work]],[1]!tblCountries[[Actual]:[Mapping]],2,FALSE) -> Ukraine | J9: All the 8 hours baby, all the 8!
A10: ID0009 | B10: 2012-05-25T03:37:17 | C10: 44000 | D10: USD | E10: =tblSalaries[[#This Row],[clean Salary (in local currency)]]*VLOOKUP(tblSalaries[[#This Row],[Currency]],[1]!tblXrate[#Data],2,FALSE) -> 44000 | F10: CFO | G10: CXO or Top Mgmt. | H10: Portugal | I10: =VLOOKUP(tblSalaries[[#This Row],[Where do you work]],[1]!tblCountries[[Actual]:[Mapping]],2,FALSE) -> Portugal | J10: 1 or 2 hours a day
A11: ID0010 | B11: 2012-05-25T03:38:57 | C11: 1152000 | D11: PKR | E11: =tblSalaries[[#This Row],[clean Salary (in local currency)]]*VLOOKUP(tblSalaries[[#This Row],[Currency]],[1]!tblXrate[#Data],2,FALSE) -> 12227.4302 | F11: Audit Trainee | G11: Accountant | H11: Pakistan | I11: =VLOOKUP(tblSalaries[[#This Row],[Where do you work]],[1]!tblCountries[[Actual]:[Mapping]],2,FALSE) -> Pakistan | J11: All the 8 hours baby, all the 8!
A12: ID0011 | B12: 2012-05-25T03:43:45 | C12: 51650 | D12: EUR | E12: =tblSalaries[[#This Row],[clean Salary (in local currency)]]*VLOOKUP(tblSalaries[[#This Row],[Currency]],[1]!tblXrate[#Data],2,FALSE) -> 65616.13102 | F12: Training Specialist | G12: Specialist | H12: Ireland | I12: =VLOOKUP(tblSalaries[[#This Row],[Where do you work]],[1]!tblCountries[[Actual]:[Mapping]],2,FALSE) -> Ireland | J12: 2 to 3 hours per day
A13: ID0012 | B13: 2012-05-25T03:43:56 | C13: 14000 | D13: USD | E13: =tblSalaries[[#This Row],[clean Salary (in local currency)]]*VLOOKUP(tblSalaries[[#This Row],[Currency]],[1]!tblXrate[#Data],2,FALSE) -> 14000 | F13: quality engineer | G13: Engineer | H13: Hungary | I13: =VLOOKUP(tblSalaries[[#This Row],[Where do you work]],[1]!tblCountries[[Actual]:[Mapping]],2,FALSE) -> Hungary | J13: 4 to 6 hours a day
A14: ID0013 | B14: 2012-05-25T03:48:53 | C14: 749000 | D14: INR | E14: =tblSalaries[[#This Row],[clean Salary (in local currency)]]*VLOOKUP(tblSalaries[[#This Row],[Currency]],[1]!tblXrate[#Data],2,FALSE) -> 13338.1296 | F14: Senion Analyst | G14: Analyst | H14: India | I14: =VLOOKUP(tblSalaries[[#This Row],[Where do you work]],[1]!tblCountries[[Actual]:[Mapping]],2,FALSE) -> India | J14: All the 8 hours baby, all the 8!
A15: ID0014 | B15: 2012-05-25T03:50:58 | C15: 49000 | D15: USD | E15: =tblSalaries[[#This Row],[clean Salary (in local currency)]]*VLOOKUP(tblSalaries[[#This Row],[Currency]],[1]!tblXrate[#Data],2,FALSE) -> 49000 | F15: business analyst | G15: Analyst | H15: USA | I15: =VLOOKUP(tblSalaries[[#This Row],[Where do you work]],[1]!tblCountries[[Actual]:[Mapping]],2,FALSE) -> USA | J15: All the 8 hours baby, all the 8!
A16: ID0015 | B16: 2012-05-25T03:53:22 | C16: 85000 | D16: USD | E16: =tblSalaries[[#This Row],[clean Salary (in local currency)]]*VLOOKUP(tblSalaries[[#This Row],[Currency]],[1]!tblXrate[#Data],2,FALSE) -> 85000 | F16: Project Engineer | G16: Engineer | H16: USA | I16: =VLOOKUP(tblSalaries[[#This Row],[Where do you work]],[1]!tblCountries[[Actual]:[Mapping]],2,FALSE) -> USA | J16: 1 or 2 hours a day
A17: ID0016 | B17: 2012-05-25T03:56:40 | C17: 75000 | D17: USD | E17: =tblSalaries[[#This Row],[clean Salary (in local currency)]]*VLOOKUP(tblSalaries[[#This Row],[Currency]],[1]!tblXrate[#Data],2,FALSE) -> 75000 | F17: Sr Project Engineer | G17: Engineer | H17: USA | I17: =VLOOKUP(tblSalaries[[#This Row],[Where do you work]],[1]!tblCountries[[Actual]:[Mapping]],2,FALSE) -> USA | J17: All the 8 hours baby, all the 8!
A18: ID0017 | B18: 2012-05-25T04:10:11 | C18: 107000 | D18: USD | E18: =tblSalaries[[#This Row],[clean Salary (in local currency)]]*VLOOKUP(tblSalaries[[#This Row],[Currency]],[1]!tblXrate[#Data],2,FALSE) -> 107000 | F18: Business Development | G18: Manager | H18: Switzerland | I18: =VLOOKUP(tblSalaries[[#This Row],[Where do you work]],[1]!tblCountries[[Actual]:[Mapping]],2,FALSE) -> Switzerland | J18: 4 to 6 hours a day
A19: ID0018 | B19: 2012-05-25T04:10:44 | C19: 45000 | D19: USD | E19: =tblSalaries[[#This Row],[clean Salary (in local currency)]]*VLOOKUP(tblSalaries[[#This Row],[Currency]],[1]!tblXrate[#Data],2,FALSE) -> 45000 | F19: Excel Report Writer | G19: Reporting | H19: South Africa | I19: =VLOOKUP(tblSalaries[[#This Row],[Where do you work]],[1]!tblCountries[[Actual]:[Mapping]],2,FALSE) -> South Africa | J19: All the 8 hours baby, all the 8!
A20: ID0019 | B20: 2012-05-25T04:16:32 | C20: 550000 | D20: INR | E20: =tblSalaries[[#This Row],[clean Salary (in local currency)]]*VLOOKUP(tblSalaries[[#This Row],[Currency]],[1]!tblXrate[#Data],2,FALSE) -> 9794.354178 | F20: AGM | G20: Manager | H20: India | I20: =VLOOKUP(tblSalaries[[#This Row],[Where do you work]],[1]!tblCountries[[Actual]:[Mapping]],2,FALSE) -> India | J20: 2 to 3 hours per day
A21: ID0020 | B21: 2012-05-25T04:19:22 | C21: 50000 | D21: USD | E21: =tblSalaries[[#This Row],[clean Salary (in local currency)]]*VLOOKUP(tblSalaries[[#This Row],[Currency]],[1]!tblXrate[#Data],2,FALSE) -> 50000 | F21: GM | G21: Manager | H21: India | I21: =VLOOKUP(tblSalaries[[#This Row],[Where do you work]],[1]!tblCountries[[Actual]:[Mapping]],2,FALSE) -> India | J21: 1 or 2 hours a day
A22: ID0021 | B22: 2012-05-25T04:24:01 | C22: 13500 | D22: USD | E22: =tblSalaries[[#This Row],[clean Salary (in local currency)]]*VLOOKUP(tblSalaries[[#This Row],[Currency]],[1]!tblXrate[#Data],2,FALSE) -> 13500 | F22: DSE Co-ordinator | G22: Manager | H22: India | I22: =VLOOKUP(tblSalaries[[#This Row],[Where do you work]],[1]!tblCountries[[Actual]:[Mapping]],2,FALSE) -> India | J22: 4 to 6 hours a day
A23: ID0022 | B23: 2012-05-25T04:24:12 | C23: 96000 | D23: USD | E23: =tblSalaries[[#This Row],[clean Salary (in local currency)]]*VLOOKUP(tblSalaries[[#This Row],[Currency]],[1]!tblXrate[#Data],2,FALSE) -> 96000 | F23: Analyst | G23: Analyst | H23: USA | I23: =VLOOKUP(tblSalaries[[#This Row],[Where do you work]],[1]!tblCountries[[Actual]:[Mapping]],2,FALSE) -> USA | J23: 2 to 3 hours per day
A24: ID0023 | B24: 2012-05-25T04:31:41 | C24: 1000000 | D24: INR | E24: =tblSalaries[[#This Row],[clean Salary (in local currency)]]*VLOOKUP(tblSalaries[[#This Row],[Currency]],[1]!tblXrate[#Data],2,FALSE) -> 17807.91669 | F24: Manager | G24: Manager | H24: India | I24: =VLOOKUP(tblSalaries[[#This Row],[Where do you work]],[1]!tblCountries[[Actual]:[Mapping]],2,FALSE) -> India | J24: 4 to 6 hours a day
A25: ID0024 | B25: 2012-05-25T04:32:49 | C25: 75000 | D25: USD | E25: =tblSalaries[[#This Row],[clean Salary (in local currency)]]*VLOOKUP(tblSalaries[[#This Row],[Currency]],[1]!tblXrate[#Data],2,FALSE) -> 75000 | F25: Marketing Director | G25: CXO or Top Mgmt. | H25: USA | I25: =VLOOKUP(tblSalaries[[#This Row],[Where do you work]],[1]!tblCountries[[Actual]:[Mapping]],2,FALSE) -> USA | J25: 4 to 6 hours a day
A26: ID0025 | B26: 2012-05-25T04:43:51 | C26: 40000 | D26: USD | E26: =tblSalaries[[#This Row],[clean Salary (in local currency)]]*VLOOKUP(tblSalaries[[#This Row],[Currency]],[1]!tblXrate[#Data],2,FALSE) -> 40000 | F26: sales and marketing | G26: Manager | H26: USA | I26: =VLOOKUP(tblSalaries[[#This Row],[Where do you work]],[1]!tblCountries[[Actual]:[Mapping]],2,FALSE) -> USA | J26: 2 to 3 hours per day
A27: ID0026 | B27: 2012-05-25T04:45:01 | C27: 60000 | D27: USD | E27: =tblSalaries[[#This Row],[clean Salary (in local currency)]]*VLOOKUP(tblSalaries[[#This Row],[Currency]],[1]!tblXrate[#Data],2,FALSE) -> 60000 | F27: Analyst II | G27: Analyst | H27: USA | I27: =VLOOKUP(tblSalaries[[#This Row],[Where do you work]],[1]!tblCountries[[Actual]:[Mapping]],2,FALSE) -> USA | J27: All the 8 hours baby, all the 8!
A28: ID0028 | B28: 2012-05-25T04:48:33 | C28: 32400 | D28: EUR | E28: =tblSalaries[[#This Row],[clean Salary (in local currency)]]*VLOOKUP(tblSalaries[[#This Row],[Currency]],[1]!tblXrate[#Data],2,FALSE) -> 41160.94182 | F28: Project Leader | G28: Manager | H28: Belgium | I28: =VLOOKUP(tblSalaries[[#This Row],[Where do you work]],[1]!tblCountries[[Actual]:[Mapping]],2,FALSE) -> Belgium | J28: 4 to 6 hours a day
A29: ID0029 | B29: 2012-05-25T04:52:23 | C29: 900000 | D29: INR | E29: =tblSalaries[[#This Row],[clean Salary (in local currency)]]*VLOOKUP(tblSalaries[[#This Row],[Currency]],[1]!tblXrate[#Data],2,FALSE) -> 16027.12502 | F29: Applications Engineer | G29: Engineer | H29: India | I29: =VLOOKUP(tblSalaries[[#This Row],[Where do you work]],[1]!tblCountries[[Actual]:[Mapping]],2,FALSE) -> India | J29: 1 or 2 hours a day
A30: ID0030 | B30: 2012-05-25T04:55:35 | C30: 600000 | D30: INR | E30: =tblSalaries[[#This Row],[clean Salary (in local currency)]]*VLOOKUP(tblSalaries[[#This Row],[Currency]],[1]!tblXrate[#Data],2,FALSE) -> 10684.75001 | F30: strategy manager | G30: Manager | H30: India | I30: =VLOOKUP(tblSalaries[[#This Row],[Where do you work]],[1]!tblCountries[[Actual]:[Mapping]],2,FALSE) -> India | J30: 4 to 6 hours a day
A31: ID0031 | B31: 2012-05-25T04:55:48 | C31: 41000 | D31: USD | E31: =tblSalaries[[#This Row],[clean Salary (in local currency)]]*VLOOKUP(tblSalaries[[#This Row],[Currency]],[1]!tblXrate[#Data],2,FALSE) -> 41000 | F31: Chief of the department of public budget analisis and forecasting | G31: Manager | H31: Russia | I31: =VLOOKUP(tblSalaries[[#This Row],[Where do you work]],[1]!tblCountries[[Actual]:[Mapping]],2,FALSE) -> Russia | J31: All the 8 hours baby, all the 8!
A32: ID0032 | B32: 2012-05-25T04:57:06 | C32: 360000 | D32: INR | E32: =tblSalaries[[#This Row],[clean Salary (in local currency)]]*VLOOKUP(tblSalaries[[#This Row],[Currency]],[1]!tblXrate[#Data],2,FALSE) -> 6410.850007 | F32: Specialist | G32: Specialist | H32: India | I32: =VLOOKUP(tblSalaries[[#This Row],[Where do you work]],[1]!tblCountries[[Actual]:[Mapping]],2,FALSE) -> India | J32: 4 to 6 hours a day
A33: ID0033 | B33: 2012-05-25T04:58:45 | C33: 35000 | D33: GBP | E33: =tblSalaries[[#This Row],[clean Salary (in local currency)]]*VLOOKUP(tblSalaries[[#This Row],[Currency]],[1]!tblXrate[#Data],2,FALSE) -> 55166.23952 | F33: Management Information Analyst | G33: Analyst | H33: UK | I33: =VLOOKUP(tblSalaries[[#This Row],[Where do you work]],[1]!tblCountries[[Actual]:[Mapping]],2,FALSE) -> UK | J33: All the 8 hours baby, all the 8!
A34: ID0035 | B34: 2012-05-25T05:01:09 | C34: 19200 | D34: USD | E34: =tblSalaries[[#This Row],[clean Salary (in local currency)]]*VLOOKUP(tblSalaries[[#This Row],[Currency]],[1]!tblXrate[#Data],2,FALSE) -> 19200 | F34: Analyst | G34: Analyst | H34: Poland | I34: =VLOOKUP(tblSalaries[[#This Row],[Where do you work]],[1]!tblCountries[[Actual]:[Mapping]],2,FALSE) -> Poland | J34: 2 to 3 hours per day
A35: ID0036 | B35: 2012-05-25T05:04:12 | C35: 500000 | D35: INR | E35: =tblSalaries[[#This Row],[clean Salary (in local currency)]]*VLOOKUP(tblSalaries[[#This Row],[Currency]],[1]!tblXrate[#Data],2,FALSE) -> 8903.958344 | F35: Senior Consultant | G35: Consultant | H35: India | I35: =VLOOKUP(tblSalaries[[#This Row],[Where do you work]],[1]!tblCountries[[Actual]:[Mapping]],2,FALSE) -> India | J35: All the 8 hours baby, all the 8!
A36: ID0037 | B36: 2012-05-25T05:07:31 | C36: 150000 | D36: USD | E36: =tblSalaries[[#This Row],[clean Salary (in local currency)]]*VLOOKUP(tblSalaries[[#This Row],[Currency]],[1]!tblXrate[#Data],2,FALSE) -> 150000 | F36: Portfolio Manager | G36: Manager | H36: USA | I36: =VLOOKUP(tblSalaries[[#This Row],[Where do you work]],[1]!tblCountries[[Actual]:[Mapping]],2,FALSE) -> USA | J36: 2 to 3 hours per day
A37: ID0038 | B37: 2012-05-25T05:10:29 | C37: 69000 | D37: USD | E37: =tblSalaries[[#This Row],[clean Salary (in local currency)]]*VLOOKUP(tblSalaries[[#This Row],[Currency]],[1]!tblXrate[#Data],2,FALSE) -> 69000 | F37: Design Engineer | G37: Engineer | H37: USA | I37: =VLOOKUP(tblSalaries[[#This Row],[Where do you work]],[1]!tblCountries[[Actual]:[Mapping]],2,FALSE) -> USA | J37: 4 to 6 hours a day
A38: ID0039 | B38: 2012-05-25T05:11:37 | C38: 30000 | D38: USD | E38: =tblSalaries[[#This Row],[clean Salary (in local currency)]]*VLOOKUP(tblSalaries[[#This Row],[Currency]],[1]!tblXrate[#Data],2,FALSE) -> 30000 | F38: Academic Advisor | G38: Consultant | H38: USA | I38: =VLOOKUP(tblSalaries[[#This Row],[Where do you work]],[1]!tblCountries[[Actual]:[Mapping]],2,FALSE) -> USA | J38: 2 to 3 hours per day
A39: ID0040 | B39: 2012-05-25T05:13:50 | C39: 400000 | D39: INR | E39: =tblSalaries[[#This Row],[clean Salary (in local currency)]]*VLOOKUP(tblSalaries[[#This Row],[Currency]],[1]!tblXrate[#Data],2,FALSE) -> 7123.166675 | F39: Coordination | G39: Manager | H39: India | I39: =VLOOKUP(tblSalaries[[#This Row],[Where do you work]],[1]!tblCountries[[Actual]:[Mapping]],2,FALSE) -> India | J39: 4 to 6 hours a day
A40: ID0041 | B40: 2012-05-25T05:18:48 | C40: 70000 | D40: AUD | E40: =tblSalaries[[#This Row],[clean Salary (in local currency)]]*VLOOKUP(tblSalaries[[#This Row],[Currency]],[1]!tblXrate[#Data],2,FALSE) -> 71393.67595 | F40: consultant | G40: Consultant | H40: Australia | I40: =VLOOKUP(tblSalaries[[#This Row],[Where do you work]],[1]!tblCountries[[Actual]:[Mapping]],2,FALSE) -> Australia | J40: 2 to 3 hours per day
A41: ID0042 | B41: 2012-05-25T05:20:10 | C41: 14500 | D41: USD | E41: =tblSalaries[[#This Row],[clean Salary (in local currency)]]*VLOOKUP(tblSalaries[[#This Row],[Currency]],[1]!tblXrate[#Data],2,FALSE) -> 14500 | F41: Business Analsyt | G41: Analyst | H41: India | I41: =VLOOKUP(tblSalaries[[#This Row],[Where do you work]],[1]!tblCountries[[Actual]:[Mapping]],2,FALSE) -> India | J41: 4 to 6 hours a day
A42: ID0043 | B42: 2012-05-25T05:30:39 | C42: 70000 | D42: CAD | E42: =tblSalaries[[#This Row],[clean Salary (in local currency)]]*VLOOKUP(tblSalaries[[#This Row],[Currency]],[1]!tblXrate[#Data],2,FALSE) -> 68835.30661 | F42: Product Engineer | G42: Engineer | H42: Canada | I42: =VLOOKUP(tblSalaries[[#This Row],[Where do you work]],[1]!tblCountries[[Actual]:[Mapping]],2,FALSE) -> Canada | J42: 2 to 3 hours per day
A43: ID0044 | B43: 2012-05-25T05:35:28 | C43: 58000 | D43: USD | E43: =tblSalaries[[#This Row],[clean Salary (in local currency)]]*VLOOKUP(tblSalaries[[#This Row],[Currency]],[1]!tblXrate[#Data],2,FALSE) -> 58000 | F43: Senior Accountant | G43: Accountant | H43: USA | I43: =VLOOKUP(tblSalaries[[#This Row],[Where do you work]],[1]!tblCountries[[Actual]:[Mapping]],2,FALSE) -> USA | J43: 4 to 6 hours a day
A44: ID0045 | B44: 2012-05-25T05:45:01 | C44: 90000 | D44: USD | E44: =tblSalaries[[#This Row],[clean Salary (in local currency)]]*VLOOKUP(tblSalaries[[#This Row],[Currency]],[1]!tblXrate[#Data],2,FALSE) -> 90000 | F44: Scientist | G44: Misc. | H44: USA | I44: =VLOOKUP(tblSalaries[[#This Row],[Where do you work]],[1]!tblCountries[[Actual]:[Mapping]],2,FALSE) -> USA | J44: 1 or 2 hours a day
A45: ID0046 | B45: 2012-05-25T05:46:47 | C45: 800000 | D45: INR | E45: =tblSalaries[[#This Row],[clean Salary (in local currency)]]*VLOOKUP(tblSalaries[[#This Row],[Currency]],[1]!tblXrate[#Data],2,FALSE) -> 14246.33335 | F45: Team Lead | G45: Manager | H45: India | I45: =VLOOKUP(tblSalaries[[#This Row],[Where do you work]],[1]!tblCountries[[Actual]:[Mapping]],2,FALSE) -> India | J45: 2 to 3 hours per day
A46: ID0047 | B46: 2012-05-25T05:47:10 | C46: 32000 | D46: GBP | E46: =tblSalaries[[#This Row],[clean Salary (in local currency)]]*VLOOKUP(tblSalaries[[#This Row],[Currency]],[1]!tblXrate[#Data],2,FALSE) -> 50437.70471 | F46: Senior intelligence analyst | G46: Analyst | H46: UK | I46: =VLOOKUP(tblSalaries[[#This Row],[Where do you work]],[1]!tblCountries[[Actual]:[Mapping]],2,FALSE) -> UK | J46: 4 to 6 hours a day
A47: ID0048 | B47: 2012-05-25T05:47:52 | C47: 12000 | D47: USD | E47: =tblSalaries[[#This Row],[clean Salary (in local currency)]]*VLOOKUP(tblSalaries[[#This Row],[Currency]],[1]!tblXrate[#Data],2,FALSE) -> 12000 | F47: Freelance consultant | G47: Consultant | H47: USA | I47: =VLOOKUP(tblSalaries[[#This Row],[Where do you work]],[1]!tblCountries[[Actual]:[Mapping]],2,FALSE) -> USA | J47: 1 or 2 hours a day
A48: ID0049 | B48: 2012-05-25T06:04:42 | C48: 45000 | D48: EUR | E48: =tblSalaries[[#This Row],[clean Salary (in local currency)]]*VLOOKUP(tblSalaries[[#This Row],[Currency]],[1]!tblXrate[#Data],2,FALSE) -> 57167.97475 | F48: Online Traffic Manager / Web Analist | G48: Manager | H48: The Netherlands | I48: =VLOOKUP(tblSalaries[[#This Row],[Where do you work]],[1]!tblCountries[[Actual]:[Mapping]],2,FALSE) -> Netherlands | J48: 4 to 6 hours a day
A49: ID0050 | B49: 2012-05-25T06:04:57 | C49: 100000 | D49: USD | E49: =tblSalaries[[#This Row],[clean Salary (in local currency)]]*VLOOKUP(tblSalaries[[#This Row],[Currency]],[1]!tblXrate[#Data],2,FALSE) -> 100000 | F49: Seinor Financial Analyst | G49: Analyst | H49: Germany | I49: =VLOOKUP(tblSalaries[[#This Row],[Where do you work]],[1]!tblCountries[[Actual]:[Mapping]],2,FALSE) -> Germany | J49: All the 8 hours baby, all the 8!
A50: ID0051 | B50: 2012-05-25T06:05:17 | C50: 57000 | D50: USD | E50: =tblSalaries[[#This Row],[clean Salary (in local currency)]]*VLOOKUP(tblSalaries[[#This Row],[Currency]],[1]!tblXrate[#Data],2,FALSE) -> 57000 | F50: Senior Accounting Supervisor | G50: Accountant | H50: USA | I50: =VLOOKUP(tblSalaries[[#This Row],[Where do you work]],[1]!tblCountries[[Actual]:[Mapping]],2,FALSE) -> USA | J50: 2 to 3 hours per day
A51: ID0052 | B51: 2012-05-25T06:07:15 | C51: 40000 | D51: GBP | E51: =tblSalaries[[#This Row],[clean Salary (in local currency)]]*VLOOKUP(tblSalaries[[#This Row],[Currency]],[1]!tblXrate[#Data],2,FALSE) -> 63047.13088 | F51: Senior Accountant | G51: Accountant | H51: UK | I51: =VLOOKUP(tblSalaries[[#This Row],[Where do you work]],[1]!tblCountries[[Actual]:[Mapping]],2,FALSE) -> UK | J51: 4 to 6 hours a day
A52: ID0053 | B52: 2012-05-25T06:09:44 | C52: 24000 | D52: EUR | E52: =tblSalaries[[#This Row],[clean Salary (in local currency)]]*VLOOKUP(tblSalaries[[#This Row],[Currency]],[1]!tblXrate[#Data],2,FALSE) -> 30489.58654 | F52: PPC Manager | G52: Manager | H52: Germany | I52: =VLOOKUP(tblSalaries[[#This Row],[Where do you work]],[1]!tblCountries[[Actual]:[Mapping]],2,FALSE) -> Germany | J52: All the 8 hours baby, all the 8!
A53: ID0054 | B53: 2012-05-25T06:10:18 | C53: 4320 | D53: USD | E53: =tblSalaries[[#This Row],[clean Salary (in local currency)]]*VLOOKUP(tblSalaries[[#This Row],[Currency]],[1]!tblXrate[#Data],2,FALSE) -> 4320 | F53: Financial Planner | G53: Accountant | H53: India | I53: =VLOOKUP(tblSalaries[[#This Row],[Where do you work]],[1]!tblCountries[[Actual]:[Mapping]],2,FALSE) -> India | J53: 2 to 3 hours per day
A54: ID0055 | B54: 2012-05-25T06:15:42 | C54: 62000 | D54: USD | E54: =tblSalaries[[#This Row],[clean Salary (in local currency)]]*VLOOKUP(tblSalaries[[#This Row],[Currency]],[1]!tblXrate[#Data],2,FALSE) -> 62000 | F54: Analyst | G54: Analyst | H54: USA | I54: =VLOOKUP(tblSalaries[[#This Row],[Where do you work]],[1]!tblCountries[[Actual]:[Mapping]],2,FALSE) -> USA | J54: 4 to 6 hours a day
A55: ID0056 | B55: 2012-05-25T06:26:44 | C55: 7500 | D55: USD | E55: =tblSalaries[[#This Row],[clean Salary (in local currency)]]*VLOOKUP(tblSalaries[[#This Row],[Currency]],[1]!tblXrate[#Data],2,FALSE) -> 7500 | F55: Analyst | G55: Analyst | H55: India | I55: =VLOOKUP(tblSalaries[[#This Row],[Where do you work]],[1]!tblCountries[[Actual]:[Mapping]],2,FALSE) -> India | J55: 4 to 6 hours a day
A56: ID0057 | B56: 2012-05-25T06:27:29 | C56: 18000 | D56: GBP | E56: =tblSalaries[[#This Row],[clean Salary (in local currency)]]*VLOOKUP(tblSalaries[[#This Row],[Currency]],[1]!tblXrate[#Data],2,FALSE) -> 28371.2089 | F56: Building Design and Performance Researcher | G56: Manager | H56: UK | I56: =VLOOKUP(tblSalaries[[#This Row],[Where do you work]],[1]!tblCountries[[Actual]:[Mapping]],2,FALSE) -> UK | J56: 1 or 2 hours a day
A57: ID0058 | B57: 2012-05-25T06:49:25 | C57: 49000 | D57: EUR | E57: =tblSalaries[[#This Row],[clean Salary (in local currency)]]*VLOOKUP(tblSalaries[[#This Row],[Currency]],[1]!tblXrate[#Data],2,FALSE) -> 62249.57251 | F57: Project leader | G57: Manager | H57: France | I57: =VLOOKUP(tblSalaries[[#This Row],[Where do you work]],[1]!tblCountries[[Actual]:[Mapping]],2,FALSE) -> France | J57: 2 to 3 hours per day
A58: ID0059 | B58: 2012-05-25T06:57:52 | C58: 38000 | D58: USD | E58: =tblSalaries[[#This Row],[clean Salary (in local currency)]]*VLOOKUP(tblSalaries[[#This Row],[Currency]],[1]!tblXrate[#Data],2,FALSE) -> 38000 | F58: Senior Analyst | G58: Analyst | H58: USA | I58: =VLOOKUP(tblSalaries[[#This Row],[Where do you work]],[1]!tblCountries[[Actual]:[Mapping]],2,FALSE) -> USA | J58: 4 to 6 hours a day
A59: ID0060 | B59: 2012-05-25T07:00:52 | C59: 41000 | D59: USD | E59: =tblSalaries[[#This Row],[clean Salary (in local currency)]]*VLOOKUP(tblSalaries[[#This Row],[Currency]],[1]!tblXrate[#Data],2,FALSE) -> 41000 | F59: Specialist | G59: Specialist | H59: USA | I59: =VLOOKUP(tblSalaries[[#This Row],[Where do you work]],[1]!tblCountries[[Actual]:[Mapping]],2,FALSE) -> USA | J59: 4 to 6 hours a day
A60: ID0061 | B60: 2012-05-25T07:11:09 | C60: 68000 | D60: USD | E60: =tblSalaries[[#This Row],[clean Salary (in local currency)]]*VLOOKUP(tblSalaries[[#This Row],[Currency]],[1]!tblXrate[#Data],2,FALSE) -> 68000 | F60: Engineering Data Analyst | G60: Analyst | H60: USA | I60: =VLOOKUP(tblSalaries[[#This Row],[Where do you work]],[1]!tblCountries[[Actual]:[Mapping]],2,FALSE) -> USA | J60: All the 8 hours baby, all the 8!
A61: ID0062 | B61: 2012-05-25T07:13:31 | C61: 56000 | D61: CAD | E61: =tblSalaries[[#This Row],[clean Salary (in local currency)]]*VLOOKUP(tblSalaries[[#This Row],[Currency]],[1]!tblXrate[#Data],2,FALSE) -> 55068.24529 | F61: Sales Analyst | G61: Analyst | H61: CANADA | I61: =VLOOKUP(tblSalaries[[#This Row],[Where do you work]],[1]!tblCountries[[Actual]:[Mapping]],2,FALSE) -> Canada | J61: All the 8 hours baby, all the 8!
A62: ID0063 | B62: 2012-05-25T07:15:12 | C62: 61000 | D62: USD | E62: =tblSalaries[[#This Row],[clean Salary (in local currency)]]*VLOOKUP(tblSalaries[[#This Row],[Currency]],[1]!tblXrate[#Data],2,FALSE) -> 61000 | F62: Coordinator Of Costa and Buget | G62: Manager | H62: Brasil | I62: =VLOOKUP(tblSalaries[[#This Row],[Where do you work]],[1]!tblCountries[[Actual]:[Mapping]],2,FALSE) -> Brasil | J62: All the 8 hours baby, all the 8!
A63: ID0064 | B63: 2012-05-25T07:18:53 | C63: 43000 | D63: EUR | E63: =tblSalaries[[#This Row],[clean Salary (in local currency)]]*VLOOKUP(tblSalaries[[#This Row],[Currency]],[1]!tblXrate[#Data],2,FALSE) -> 54627.17588 | F63: SAP consultant | G63: Consultant | H63: FR | I63: =VLOOKUP(tblSalaries[[#This Row],[Where do you work]],[1]!tblCountries[[Actual]:[Mapping]],2,FALSE) -> France | J63: 4 to 6 hours a day
A64: ID0065 | B64: 2012-05-25T07:20:08 | C64: 85000 | D64: USD | E64: =tblSalaries[[#This Row],[clean Salary (in local currency)]]*VLOOKUP(tblSalaries[[#This Row],[Currency]],[1]!tblXrate[#Data],2,FALSE) -> 85000 | F64: Manager | G64: Manager | H64: USA | I64: =VLOOKUP(tblSalaries[[#This Row],[Where do you work]],[1]!tblCountries[[Actual]:[Mapping]],2,FALSE) -> USA | J64: 4 to 6 hours a day
A65: ID0066 | B65: 2012-05-25T07:21:18 | C65: 38000 | D65: EUR | E65: =tblSalaries[[#This Row],[clean Salary (in local currency)]]*VLOOKUP(tblSalaries[[#This Row],[Currency]],[1]!tblXrate[#Data],2,FALSE) -> 48275.17868 | F65: busines analist | G65: Analyst | H65: The Netherlands | I65: =VLOOKUP(tblSalaries[[#This Row],[Where do you work]],[1]!tblCountries[[Actual]:[Mapping]],2,FALSE) -> Netherlands | J65: 1 or 2 hours a day
A66: ID0067 | B66: 2012-05-25T07:25:12 | C66: 85000 | D66: AUD | E66: =tblSalaries[[#This Row],[clean Salary (in local currency)]]*VLOOKUP(tblSalaries[[#This Row],[Currency]],[1]!tblXrate[#Data],2,FALSE) -> 86692.32079 | F66: head of data | G66: CXO or Top Mgmt. | H66: Australia | I66: =VLOOKUP(tblSalaries[[#This Row],[Where do you work]],[1]!tblCountries[[Actual]:[Mapping]],2,FALSE) -> Australia | J66: 4 to 6 hours a day
A67: ID0068 | B67: 2012-05-25T07:29:12 | C67: 85087 | D67: USD | E67: =tblSalaries[[#This Row],[clean Salary (in local currency)]]*VLOOKUP(tblSalaries[[#This Row],[Currency]],[1]!tblXrate[#Data],2,FALSE) -> 85087 | F67: Business Systems Analyst | G67: Analyst | H67: USA | I67: =VLOOKUP(tblSalaries[[#This Row],[Where do you work]],[1]!tblCountries[[Actual]:[Mapping]],2,FALSE) -> USA | J67: 2 to 3 hours per day
A68: ID0069 | B68: 2012-05-25T07:38:22 | C68: 50000 | D68: USD | E68: =tblSalaries[[#This Row],[clean Salary (in local currency)]]*VLOOKUP(tblSalaries[[#This Row],[Currency]],[1]!tblXrate[#Data],2,FALSE) -> 50000 | F68: Financial Analyst II | G68: Analyst | H68: USA | I68: =VLOOKUP(tblSalaries[[#This Row],[Where do you work]],[1]!tblCountries[[Actual]:[Mapping]],2,FALSE) -> USA | J68: All the 8 hours baby, all the 8!
A69: ID0070 | B69: 2012-05-25T07:47:00 | C69: 100000 | D69: USD | E69: =tblSalaries[[#This Row],[clean Salary (in local currency)]]*VLOOKUP(tblSalaries[[#This Row],[Currency]],[1]!tblXrate[#Data],2,FALSE) -> 100000 | F69: Mngr MI | G69: Manager | H69: RSA | I69: =VLOOKUP(tblSalaries[[#This Row],[Where do you work]],[1]!tblCountries[[Actual]:[Mapping]],2,FALSE) -> South Africa | J69: 4 to 6 hours a day
A70: ID0071 | B70: 2012-05-25T22:49:00 | C70: 57000 | D70: USD | E70: =tblSalaries[[#This Row],[clean Salary (in local currency)]]*VLOOKUP(tblSalaries[[#This Row],[Currency]],[1]!tblXrate[#Data],2,FALSE) -> 57000 | F70: sales analyst | G70: Analyst | H70: USA | I70: =VLOOKUP(tblSalaries[[#This Row],[Where do you work]],[1]!tblCountries[[Actual]:[Mapping]],2,FALSE) -> USA | J70: 4 to 6 hours a day
A71: ID0072 | B71: 2012-05-25T22:52:28 | C71: 75000 | D71: USD | E71: =tblSalaries[[#This Row],[clean Salary (in local currency)]]*VLOOKUP(tblSalaries[[#This Row],[Currency]],[1]!tblXrate[#Data],2,FALSE) -> 75000 | F71: Consumer Research Program Manager | G71: Manager | H71: USA | I71: =VLOOKUP(tblSalaries[[#This Row],[Where do you work]],[1]!tblCountries[[Actual]:[Mapping]],2,FALSE) -> USA | J71: All the 8 hours baby, all the 8!
A72: ID0073 | B72: 2012-05-25T22:59:05 | C72: 100000 | D72: AUD | E72: =tblSalaries[[#This Row],[clean Salary (in local currency)]]*VLOOKUP(tblSalaries[[#This Row],[Currency]],[1]!tblXrate[#Data],2,FALSE) -> 101990.9656 | F72: technical trainer | G72: Manager | H72: Australia | I72: =VLOOKUP(tblSalaries[[#This Row],[Where do you work]],[1]!tblCountries[[Actual]:[Mapping]],2,FALSE) -> Australia | J72: 4 to 6 hours a day
A73: ID0074 | B73: 2012-05-25T23:01:20 | C73: 33420 | D73: USD | E73: =tblSalaries[[#This Row],[clean Salary (in local currency)]]*VLOOKUP(tblSalaries[[#This Row],[Currency]],[1]!tblXrate[#Data],2,FALSE) -> 33420 | F73: Process Flow Coordinator | G73: Manager | H73: United Arab Emirates | I73: =VLOOKUP(tblSalaries[[#This Row],[Where do you work]],[1]!tblCountries[[Actual]:[Mapping]],2,FALSE) -> UAE | J73: All the 8 hours baby, all the 8!
A74: ID0075 | B74: 2012-05-25T23:03:00 | C74: 59450 | D74: CAD | E74: =tblSalaries[[#This Row],[clean Salary (in local currency)]]*VLOOKUP(tblSalaries[[#This Row],[Currency]],[1]!tblXrate[#Data],2,FALSE) -> 58460.84254 | F74: Process Improvement Specialist | G74: Specialist | H74: Canada | I74: =VLOOKUP(tblSalaries[[#This Row],[Where do you work]],[1]!tblCountries[[Actual]:[Mapping]],2,FALSE) -> Canada | J74: All the 8 hours baby, all the 8!
A75: ID0076 | B75: 2012-05-25T23:12:29 | C75: 15000 | D75: USD | E75: =tblSalaries[[#This Row],[clean Salary (in local currency)]]*VLOOKUP(tblSalaries[[#This Row],[Currency]],[1]!tblXrate[#Data],2,FALSE) -> 15000 | F75: Excel Programmer Consultant | G75: Consultant | H75: USA | I75: =VLOOKUP(tblSalaries[[#This Row],[Where do you work]],[1]!tblCountries[[Actual]:[Mapping]],2,FALSE) -> USA | J75: All the 8 hours baby, all the 8!
A76: ID0077 | B76: 2012-05-25T23:15:34 | C76: 60000 | D76: USD | E76: =tblSalaries[[#This Row],[clean Salary (in local currency)]]*VLOOKUP(tblSalaries[[#This Row],[Currency]],[1]!tblXrate[#Data],2,FALSE) -> 60000 | F76: Statistical Analyst | G76: Analyst | H76: Canada | I76: =VLOOKUP(tblSalaries[[#This Row],[Where do you work]],[1]!tblCountries[[Actual]:[Mapping]],2,FALSE) -> Canada | J76: 1 or 2 hours a day
A77: ID0078 | B77: 2012-05-25T23:18:45 | C77: 100000 | D77: GBP | E77: =tblSalaries[[#This Row],[clean Salary (in local currency)]]*VLOOKUP(tblSalaries[[#This Row],[Currency]],[1]!tblXrate[#Data],2,FALSE) -> 157617.8272 | F77: Analyst | G77: Analyst | H77: UK | I77: =VLOOKUP(tblSalaries[[#This Row],[Where do you work]],[1]!tblCountries[[Actual]:[Mapping]],2,FALSE) -> UK | J77: 2 to 3 hours per day
A78: ID0079 | B78: 2012-05-25T23:20:46 | C78: 18000 | D78: USD | E78: =tblSalaries[[#This Row],[clean Salary (in local currency)]]*VLOOKUP(tblSalaries[[#This Row],[Currency]],[1]!tblXrate[#Data],2,FALSE) -> 18000 | F78: Operational Analyst | G78: Analyst | H78: Saudi Arabia | I78: =VLOOKUP(tblSalaries[[#This Row],[Where do you work]],[1]!tblCountries[[Actual]:[Mapping]],2,FALSE) -> Saudi Arabia | J78: All the 8 hours baby, all the 8!
A79: ID0080 | B79: 2012-05-25T23:31:16 | C79: 50000 | D79: USD | E79: =tblSalaries[[#This Row],[clean Salary (in local currency)]]*VLOOKUP(tblSalaries[[#This Row],[Currency]],[1]!tblXrate[#Data],2,FALSE) -> 50000 | F79: Exceler | G79: Manager | H79: USA | I79: =VLOOKUP(tblSalaries[[#This Row],[Where do you work]],[1]!tblCountries[[Actual]:[Mapping]],2,FALSE) -> USA | J79: 2 to 3 hours per day
A80: ID0081 | B80: 2012-05-25T23:33:15 | C80: 26000 | D80: USD | E80: =tblSalaries[[#This Row],[clean Salary (in local currency)]]*VLOOKUP(tblSalaries[[#This Row],[Currency]],[1]!tblXrate[#Data],2,FALSE) -> 26000 | F80: Marketing Analyst | G80: Analyst | H80: Panama | I80: =VLOOKUP(tblSalaries[[#This Row],[Where do you work]],[1]!tblCountries[[Actual]:[Mapping]],2,FALSE) -> Panama | J80: All the 8 hours baby, all the 8!
A81: ID0082 | B81: 2012-05-25T23:49:27 | C81: 30000 | D81: GBP | E81: =tblSalaries[[#This Row],[clean Salary (in local currency)]]*VLOOKUP(tblSalaries[[#This Row],[Currency]],[1]!tblXrate[#Data],2,FALSE) -> 47285.34816 | F81: Database Manager | G81: Manager | H81: UK | I81: =VLOOKUP(tblSalaries[[#This Row],[Where do you work]],[1]!tblCountries[[Actual]:[Mapping]],2,FALSE) -> UK | J81: 4 to 6 hours a day
A82: ID0083 | B82: 2012-05-26T00:00:52 | C82: 150000 | D82: USD | E82: =tblSalaries[[#This Row],[clean Salary (in local currency)]]*VLOOKUP(tblSalaries[[#This Row],[Currency]],[1]!tblXrate[#Data],2,FALSE) -> 150000 | F82: Director | G82: CXO or Top Mgmt. | H82: USA | I82: =VLOOKUP(tblSalaries[[#This Row],[Where do you work]],[1]!tblCountries[[Actual]:[Mapping]],2,FALSE) -> USA | J82: All the 8 hours baby, all the 8!
A83: ID0084 | B83: 2012-05-26T00:05:45 | C83: 120000 | D83: USD | E83: =tblSalaries[[#This Row],[clean Salary (in local currency)]]*VLOOKUP(tblSalaries[[#This Row],[Currency]],[1]!tblXrate[#Data],2,FALSE) -> 120000 | F83: Manager, Forecasts & Budgets | G83: Manager | H83: USA | I83: =VLOOKUP(tblSalaries[[#This Row],[Where do you work]],[1]!tblCountries[[Actual]:[Mapping]],2,FALSE) -> USA | J83: 4 to 6 hours a day
A84: ID0085 | B84: 2012-05-26T00:10:17 | C84: 500000 | D84: INR | E84: =tblSalaries[[#This Row],[clean Salary (in local currency)]]*VLOOKUP(tblSalaries[[#This Row],[Currency]],[1]!tblXrate[#Data],2,FALSE) -> 8903.958344 | F84: Senior Consultant | G84: Consultant | H84: India | I84: =VLOOKUP(tblSalaries[[#This Row],[Where do you work]],[1]!tblCountries[[Actual]:[Mapping]],2,FALSE) -> India | J84: All the 8 hours baby, all the 8!
A85: ID0086 | B85: 2012-05-26T00:11:21 | C85: 31330 | D85: USD | E85: =tblSalaries[[#This Row],[clean Salary (in local currency)]]*VLOOKUP(tblSalaries[[#This Row],[Currency]],[1]!tblXrate[#Data],2,FALSE) -> 31330 | F85: VBA Analyst | G85: Analyst | H85: Brazil | I85: =VLOOKUP(tblSalaries[[#This Row],[Where do you work]],[1]!tblCountries[[Actual]:[Mapping]],2,FALSE) -> Brazil | J85: All the 8 hours baby, all the 8!
A86: ID0087 | B86: 2012-05-26T00:15:17 | C86: 110000 | D86: USD | E86: =tblSalaries[[#This Row],[clean Salary (in local currency)]]*VLOOKUP(tblSalaries[[#This Row],[Currency]],[1]!tblXrate[#Data],2,FALSE) -> 110000 | F86: Senior Scheduling Engineer | G86: Engineer | H86: USA | I86: =VLOOKUP(tblSalaries[[#This Row],[Where do you work]],[1]!tblCountries[[Actual]:[Mapping]],2,FALSE) -> USA | J86: 2 to 3 hours per day
A87: ID0088 | B87: 2012-05-26T00:22:49 | C87: 81000 | D87: USD | E87: =tblSalaries[[#This Row],[clean Salary (in local currency)]]*VLOOKUP(tblSalaries[[#This Row],[Currency]],[1]!tblXrate[#Data],2,FALSE) -> 81000 | F87: Strategy Consultant | G87: Consultant | H87: UK | I87: =VLOOKUP(tblSalaries[[#This Row],[Where do you work]],[1]!tblCountries[[Actual]:[Mapping]],2,FALSE) -> UK | J87: 4 to 6 hours a day
A88: ID0089 | B88: 2012-05-26T00:39:04 | C88: 40000 | D88: USD | E88: =tblSalaries[[#This Row],[clean Salary (in local currency)]]*VLOOKUP(tblSalaries[[#This Row],[Currency]],[1]!tblXrate[#Data],2,FALSE) -> 40000 | F88: Admin | G88: Analyst | H88: USA | I88: =VLOOKUP(tblSalaries[[#This Row],[Where do you work]],[1]!tblCountries[[Actual]:[Mapping]],2,FALSE) -> USA | J88: 4 to 6 hours a day
A89: ID0090 | B89: 2012-05-26T00:39:28 | C89: 42000 | D89: CAD | E89: =tblSalaries[[#This Row],[clean Salary (in local currency)]]*VLOOKUP(tblSalaries[[#This Row],[Currency]],[1]!tblXrate[#Data],2,FALSE) -> 41301.18397 | F89: IT Asset Administrator | G89: Analyst | H89: Canada | I89: =VLOOKUP(tblSalaries[[#This Row],[Where do you work]],[1]!tblCountries[[Actual]:[Mapping]],2,FALSE) -> Canada | J89: 4 to 6 hours a day
A90: ID0091 | B90: 2012-05-26T00:39:36 | C90: 125000 | D90: USD | E90: =tblSalaries[[#This Row],[clean Salary (in local currency)]]*VLOOKUP(tblSalaries[[#This Row],[Currency]],[1]!tblXrate[#Data],2,FALSE) -> 125000 | F90: Director of Marketing | G90: CXO or Top Mgmt. | H90: USA | I90: =VLOOKUP(tblSalaries[[#This Row],[Where do you work]],[1]!tblCountries[[Actual]:[Mapping]],2,FALSE) -> USA | J90: 4 to 6 hours a day
A91: ID0092 | B91: 2012-05-26T00:39:38 | C91: 36000 | D91: USD | E91: =tblSalaries[[#This Row],[clean Salary (in local currency)]]*VLOOKUP(tblSalaries[[#This Row],[Currency]],[1]!tblXrate[#Data],2,FALSE) -> 36000 | F91: Graphic Design Manager | G91: Manager | H91: USA | I91: =VLOOKUP(tblSalaries[[#This Row],[Where do you work]],[1]!tblCountries[[Actual]:[Mapping]],2,FALSE) -> USA | J91: 2 to 3 hours per day
A92: ID0093 | B92: 2012-05-26T00:39:54 | C92: 144000 | D92: INR | E92: =tblSalaries[[#This Row],[clean Salary (in local currency)]]*VLOOKUP(tblSalaries[[#This Row],[Currency]],[1]!tblXrate[#Data],2,FALSE) -> 2564.340003 | F92: Financial Consultant | G92: Consultant | H92: India | I92: =VLOOKUP(tblSalaries[[#This Row],[Where do you work]],[1]!tblCountries[[Actual]:[Mapping]],2,FALSE) -> India | J92: 1 or 2 hours a day
A93: ID0094 | B93: 2012-05-26T00:40:00 | C93: 75000 | D93: USD | E93: =tblSalaries[[#This Row],[clean Salary (in local currency)]]*VLOOKUP(tblSalaries[[#This Row],[Currency]],[1]!tblXrate[#Data],2,FALSE) -> 75000 | F93: Data Analyst | G93: Analyst | H93: USA | I93: =VLOOKUP(tblSalaries[[#This Row],[Where do you work]],[1]!tblCountries[[Actual]:[Mapping]],2,FALSE) -> USA | J93: 1 or 2 hours a day
A94: ID0095 | B94: 2012-05-26T00:40:20 | C94: 95000 | D94: USD | E94: =tblSalaries[[#This Row],[clean Salary (in local currency)]]*VLOOKUP(tblSalaries[[#This Row],[Currency]],[1]!tblXrate[#Data],2,FALSE) -> 95000 | F94: CFO | G94: CXO or Top Mgmt. | H94: USA | I94: =VLOOKUP(tblSalaries[[#This Row],[Where do you work]],[1]!tblCountries[[Actual]:[Mapping]],2,FALSE) -> USA | J94: 4 to 6 hours a day
A95: ID0096 | B95: 2012-05-26T00:40:27 | C95: 24000 | D95: USD | E95: =tblSalaries[[#This Row],[clean Salary (in local currency)]]*VLOOKUP(tblSalaries[[#This Row],[Currency]],[1]!tblXrate[#Data],2,FALSE) -> 24000 | F95: Paraeducator | G95: Manager | H95: USA | I95: =VLOOKUP(tblSalaries[[#This Row],[Where do you work]],[1]!tblCountries[[Actual]:[Mapping]],2,FALSE) -> USA | J95: 2 to 3 hours per day
A96: ID0097 | B96: 2012-05-26T00:40:31 | C96: 91000 | D96: USD | E96: =tblSalaries[[#This Row],[clean Salary (in local currency)]]*VLOOKUP(tblSalaries[[#This Row],[Currency]],[1]!tblXrate[#Data],2,FALSE) -> 91000 | F96: Channel Marketing Manager | G96: Manager | H96: USA | I96: =VLOOKUP(tblSalaries[[#This Row],[Where do you work]],[1]!tblCountries[[Actual]:[Mapping]],2,FALSE) -> USA | J96: 1 or 2 hours a day
A97: ID0098 | B97: 2012-05-26T00:40:39 | C97: 40000 | D97: USD | E97: =tblSalaries[[#This Row],[clean Salary (in local currency)]]*VLOOKUP(tblSalaries[[#This Row],[Currency]],[1]!tblXrate[#Data],2,FALSE) -> 40000 | F97: Sales and Marketing Analyst | G97: Analyst | H97: USA | I97: =VLOOKUP(tblSalaries[[#This Row],[Where do you work]],[1]!tblCountries[[Actual]:[Mapping]],2,FALSE) -> USA | J97: 4 to 6 hours a day
A98: ID0099 | B98: 2012-05-26T00:40:40 | C98: 57000 | D98: USD | E98: =tblSalaries[[#This Row],[clean Salary (in local currency)]]*VLOOKUP(tblSalaries[[#This Row],[Currency]],[1]!tblXrate[#Data],2,FALSE) -> 57000 | F98: Production Scheduler | G98: Manager | H98: USA | I98: =VLOOKUP(tblSalaries[[#This Row],[Where do you work]],[1]!tblCountries[[Actual]:[Mapping]],2,FALSE) -> USA | J98: 4 to 6 hours a day
A99: ID0100 | B99: 2012-05-26T00:40:41 | C99: 74000 | D99: USD | E99: =tblSalaries[[#This Row],[clean Salary (in local currency)]]*VLOOKUP(tblSalaries[[#This Row],[Currency]],[1]!tblXrate[#Data],2,FALSE) -> 74000 | F99: Senior Consultant | G99: Consultant | H99: USA | I99: =VLOOKUP(tblSalaries[[#This Row],[Where do you work]],[1]!tblCountries[[Actual]:[Mapping]],2,FALSE) -> USA | J99: 4 to 6 hours a day
A100: ID0101 | B100: 2012-05-26T00:40:42 | C100: 80000 | D100: USD | E100: =tblSalaries[[#This Row],[clean Salary (in local currency)]]*VLOOKUP(tblSalaries[[#This Row],[Currency]],[1]!tblXrate[#Data],2,FALSE) -> 80000 | F100: financial analyst | G100: Analyst | H100: USA | I100: =VLOOKUP(tblSalaries[[#This Row],[Where do you work]],[1]!tblCountries[[Actual]:[Mapping]],2,FALSE) -> USA | J100: 4 to 6 hours a day
A101: ID0102 | B101: 2012-05-26T00:40:46 | C101: 90000 | D101: USD | E101: =tblSalaries[[#This Row],[clean Salary (in local currency)]]*VLOOKUP(tblSalaries[[#This Row],[Currency]],[1]!tblXrate[#Data],2,FALSE) -> 90000 | F101: Product Specialist | G101: Specialist | H101: USA | I101: =VLOOKUP(tblSalaries[[#This Row],[Where do you work]],[1]!tblCountries[[Actual]:[Mapping]],2,FALSE) -> USA | J101: 4 to 6 hours a day
A102: ID0103 | B102: 2012-05-26T00:40:48 | C102: 21000 | D102: USD | E102: =tblSalaries[[#This Row],[clean Salary (in local currency)]]*VLOOKUP(tblSalaries[[#This Row],[Currency]],[1]!tblXrate[#Data],2,FALSE) -> 21000 | F102: IT support | G102: Analyst | H102: arabian Gulf | I102: =VLOOKUP(tblSalaries[[#This Row],[Where do you work]],[1]!tblCountries[[Actual]:[Mapping]],2,FALSE) -> arabian Gulf | J102: 1 or 2 hours a day
A103: ID0104 | B103: 2012-05-26T00:40:50 | C103: 52000 | D103: USD | E103: =tblSalaries[[#This Row],[clean Salary (in local currency)]]*VLOOKUP(tblSalaries[[#This Row],[Currency]],[1]!tblXrate[#Data],2,FALSE) -> 52000 | F103: sr. project coordinator | G103: Manager | H103: USA | I103: =VLOOKUP(tblSalaries[[#This Row],[Where do you work]],[1]!tblCountries[[Actual]:[Mapping]],2,FALSE) -> USA | J103: 4 to 6 hours a day
A104: ID0105 | B104: 2012-05-26T00:40:52 | C104: 19200 | D104: USD | E104: =tblSalaries[[#This Row],[clean Salary (in local currency)]]*VLOOKUP(tblSalaries[[#This Row],[Currency]],[1]!tblXrate[#Data],2,FALSE) -> 19200 | F104: Sr Administrative Assistant | G104: Analyst | H104: Mexico | I104: =VLOOKUP(tblSalaries[[#This Row],[Where do you work]],[1]!tblCountries[[Actual]:[Mapping]],2,FALSE) -> Mexico | J104: 4 to 6 hours a day
A105: ID0106 | B105: 2012-05-26T00:40:57 | C105: 36000 | D105: USD | E105: =tblSalaries[[#This Row],[clean Salary (in local currency)]]*VLOOKUP(tblSalaries[[#This Row],[Currency]],[1]!tblXrate[#Data],2,FALSE) -> 36000 | F105: Analyst | G105: Analyst | H105: USA | I105: =VLOOKUP(tblSalaries[[#This Row],[Where do you work]],[1]!tblCountries[[Actual]:[Mapping]],2,FALSE) -> USA | J105: 4 to 6 hours a day
A106: ID0107 | B106: 2012-05-26T00:41:02 | C106: 57400 | D106: USD | E106: =tblSalaries[[#This Row],[clean Salary (in local currency)]]*VLOOKUP(tblSalaries[[#This Row],[Currency]],[1]!tblXrate[#Data],2,FALSE) -> 57400 | F106: IT Analyst | G106: Analyst | H106: USA | I106: =VLOOKUP(tblSalaries[[#This Row],[Where do you work]],[1]!tblCountries[[Actual]:[Mapping]],2,FALSE) -> USA | J106: 4 to 6 hours a day
A107: ID0108 | B107: 2012-05-26T00:41:03 | C107: 66000 | D107: USD | E107: =tblSalaries[[#This Row],[clean Salary (in local currency)]]*VLOOKUP(tblSalaries[[#This Row],[Currency]],[1]!tblXrate[#Data],2,FALSE) -> 66000 | F107: Analyst | G107: Analyst | H107: USA | I107: =VLOOKUP(tblSalaries[[#This Row],[Where do you work]],[1]!tblCountries[[Actual]:[Mapping]],2,FALSE) -> USA | J107: 2 to 3 hours per day
A108: ID0109 | B108: 2012-05-26T00:41:06 | C108: 35000 | D108: EUR | E108: =tblSalaries[[#This Row],[clean Salary (in local currency)]]*VLOOKUP(tblSalaries[[#This Row],[Currency]],[1]!tblXrate[#Data],2,FALSE) -> 44463.98036 | F108: Project manager | G108: Manager | H108: Greece | I108: =VLOOKUP(tblSalaries[[#This Row],[Where do you work]],[1]!tblCountries[[Actual]:[Mapping]],2,FALSE) -> Greece | J108: 4 to 6 hours a day
A109: ID0111 | B109: 2012-05-26T00:41:16 | C109: 85000 | D109: USD | E109: =tblSalaries[[#This Row],[clean Salary (in local currency)]]*VLOOKUP(tblSalaries[[#This Row],[Currency]],[1]!tblXrate[#Data],2,FALSE) -> 85000 | F109: Strategic Analyst | G109: Analyst | H109: USA | I109: =VLOOKUP(tblSalaries[[#This Row],[Where do you work]],[1]!tblCountries[[Actual]:[Mapping]],2,FALSE) -> USA | J109: 4 to 6 hours a day
A110: ID0112 | B110: 2012-05-26T00:41:22 | C110: 50000 | D110: USD | E110: =tblSalaries[[#This Row],[clean Salary (in local currency)]]*VLOOKUP(tblSalaries[[#This Row],[Currency]],[1]!tblXrate[#Data],2,FALSE) -> 50000 | F110: Transportation Specialist | G110: Specialist | H110: USA | I110: =VLOOKUP(tblSalaries[[#This Row],[Where do you work]],[1]!tblCountries[[Actual]:[Mapping]],2,FALSE) -> USA | J110: 4 to 6 hours a day
A111: ID0113 | B111: 2012-05-26T00:41:27 | C111: 58000 | D111: USD | E111: =tblSalaries[[#This Row],[clean Salary (in local currency)]]*VLOOKUP(tblSalaries[[#This Row],[Currency]],[1]!tblXrate[#Data],2,FALSE) -> 58000 | F111: Operations Programs Support | G111: Manager | H111: USA | I111: =VLOOKUP(tblSalaries[[#This Row],[Where do you work]],[1]!tblCountries[[Actual]:[Mapping]],2,FALSE) -> USA | J111: 4 to 6 hours a day
A112: ID0114 | B112: 2012-05-26T00:41:28 | C112: 37900 | D112: USD | E112: =tblSalaries[[#This Row],[clean Salary (in local currency)]]*VLOOKUP(tblSalaries[[#This Row],[Currency]],[1]!tblXrate[#Data],2,FALSE) -> 37900 | F112: Accounting Coordinator | G112: Accountant | H112: USA | I112: =VLOOKUP(tblSalaries[[#This Row],[Where do you work]],[1]!tblCountries[[Actual]:[Mapping]],2,FALSE) -> USA | J112: All the 8 hours baby, all the 8!
A113: ID0115 | B113: 2012-05-26T00:41:30 | C113: 48000 | D113: USD | E113: =tblSalaries[[#This Row],[clean Salary (in local currency)]]*VLOOKUP(tblSalaries[[#This Row],[Currency]],[1]!tblXrate[#Data],2,FALSE) -> 48000 | F113: Asst.Manager Finance | G113: Manager | H113: UAE | I113: =VLOOKUP(tblSalaries[[#This Row],[Where do you work]],[1]!tblCountries[[Actual]:[Mapping]],2,FALSE) -> UAE | J113: 2 to 3 hours per day
A114: ID0116 | B114: 2012-05-26T00:41:32 | C114: 67000 | D114: USD | E114: =tblSalaries[[#This Row],[clean Salary (in local currency)]]*VLOOKUP(tblSalaries[[#This Row],[Currency]],[1]!tblXrate[#Data],2,FALSE) -> 67000 | F114: Operations Cost Analyst | G114: Analyst | H114: USA | I114: =VLOOKUP(tblSalaries[[#This Row],[Where do you work]],[1]!tblCountries[[Actual]:[Mapping]],2,FALSE) -> USA | J114: 4 to 6 hours a day
A115: ID0117 | B115: 2012-05-26T00:41:35 | C115: 85000 | D115: USD | E115: =tblSalaries[[#This Row],[clean Salary (in local currency)]]*VLOOKUP(tblSalaries[[#This Row],[Currency]],[1]!tblXrate[#Data],2,FALSE) -> 85000 | F115: Financial Controller | G115: Controller | H115: UAE | I115: =VLOOKUP(tblSalaries[[#This Row],[Where do you work]],[1]!tblCountries[[Actual]:[Mapping]],2,FALSE) -> UAE | J115: 4 to 6 hours a day
A116: ID0118 | B116: 2012-05-26T00:41:35 | C116: 56160 | D116: USD | E116: =tblSalaries[[#This Row],[clean Salary (in local currency)]]*VLOOKUP(tblSalaries[[#This Row],[Currency]],[1]!tblXrate[#Data],2,FALSE) -> 56160 | F116: Utilization Analyst | G116: Analyst | H116: USA | I116: =VLOOKUP(tblSalaries[[#This Row],[Where do you work]],[1]!tblCountries[[Actual]:[Mapping]],2,FALSE) -> USA | J116: 4 to 6 hours a day
A117: ID0119 | B117: 2012-05-26T00:41:38 | C117: 24000 | D117: USD | E117: =tblSalaries[[#This Row],[clean Salary (in local currency)]]*VLOOKUP(tblSalaries[[#This Row],[Currency]],[1]!tblXrate[#Data],2,FALSE) -> 24000 | F117: Researcher | G117: Manager | H117: Colombia | I117: =VLOOKUP(tblSalaries[[#This Row],[Where do you work]],[1]!tblCountries[[Actual]:[Mapping]],2,FALSE) -> Colombia | J117: All the 8 hours baby, all the 8!
A118: ID0120 | B118: 2012-05-26T00:41:38 | C118: 52000 | D118: USD | E118: =tblSalaries[[#This Row],[clean Salary (in local currency)]]*VLOOKUP(tblSalaries[[#This Row],[Currency]],[1]!tblXrate[#Data],2,FALSE) -> 52000 | F118: Market Analyst | G118: Analyst | H118: USA | I118: =VLOOKUP(tblSalaries[[#This Row],[Where do you work]],[1]!tblCountries[[Actual]:[Mapping]],2,FALSE) -> USA | J118: Excel ?!? What Excel?
A119: ID0121 | B119: 2012-05-26T00:41:41 | C119: 60000 | D119: CAD | E119: =tblSalaries[[#This Row],[clean Salary (in local currency)]]*VLOOKUP(tblSalaries[[#This Row],[Currency]],[1]!tblXrate[#Data],2,FALSE) -> 59001.69138 | F119: Web Developer | G119: Analyst | H119: Canada | I119: =VLOOKUP(tblSalaries[[#This Row],[Where do you work]],[1]!tblCountries[[Actual]:[Mapping]],2,FALSE) -> Canada | J119: Excel ?!? What Excel?
A120: ID0122 | B120: 2012-05-26T00:41:43 | C120: 70000 | D120: USD | E120: =tblSalaries[[#This Row],[clean Salary (in local currency)]]*VLOOKUP(tblSalaries[[#This Row],[Currency]],[1]!tblXrate[#Data],2,FALSE) -> 70000 | F120: Sr. Acct | G120: Accountant | H120: USA | I120: =VLOOKUP(tblSalaries[[#This Row],[Where do you work]],[1]!tblCountries[[Actual]:[Mapping]],2,FALSE) -> USA | J120: All the 8 hours baby, all the 8!
A121: ID0123 | B121: 2012-05-26T00:41:56 | C121: 50000 | D121: USD | E121: =tblSalaries[[#This Row],[clean Salary (in local currency)]]*VLOOKUP(tblSalaries[[#This Row],[Currency]],[1]!tblXrate[#Data],2,FALSE) -> 50000 | F121: Information Systems Specialist | G121: Specialist | H121: USA | I121: =VLOOKUP(tblSalaries[[#This Row],[Where do you work]],[1]!tblCountries[[Actual]:[Mapping]],2,FALSE) -> USA | J121: 4 to 6 hours a day
A122: ID0124 | B122: 2012-05-26T00:41:58 | C122: 2300000 | D122: INR | E122: =tblSalaries[[#This Row],[clean Salary (in local currency)]]*VLOOKUP(tblSalaries[[#This Row],[Currency]],[1]!tblXrate[#Data],2,FALSE) -> 40958.20838 | F122: Analytics lead | G122: Analyst | H122: India | I122: =VLOOKUP(tblSalaries[[#This Row],[Where do you work]],[1]!tblCountries[[Actual]:[Mapping]],2,FALSE) -> India | J122: 1 or 2 hours a day
A123: ID0125 | B123: 2012-05-26T00:42:00 | C123: 80000 | D123: USD | E123: =tblSalaries[[#This Row],[clean Salary (in local currency)]]*VLOOKUP(tblSalaries[[#This Row],[Currency]],[1]!tblXrate[#Data],2,FALSE) -> 80000 | F123: Financial Analyst | G123: Analyst | H123: USA | I123: =VLOOKUP(tblSalaries[[#This Row],[Where do you work]],[1]!tblCountries[[Actual]:[Mapping]],2,FALSE) -> USA | J123: 4 to 6 hours a day
A124: ID0126 | B124: 2012-05-26T00:42:08 | C124: 128000 | D124: USD | E124: =tblSalaries[[#This Row],[clean Salary (in local currency)]]*VLOOKUP(tblSalaries[[#This Row],[Currency]],[1]!tblXrate[#Data],2,FALSE) -> 128000 | F124: Actuary | G124: Manager | H124: USA | I124: =VLOOKUP(tblSalaries[[#This Row],[Where do you work]],[1]!tblCountries[[Actual]:[Mapping]],2,FALSE) -> USA | J124: All the 8 hours baby, all the 8!
A125: ID0127 | B125: 2012-05-26T00:42:10 | C125: 44000 | D125: USD | E125: =tblSalaries[[#This Row],[clean Salary (in local currency)]]*VLOOKUP(tblSalaries[[#This Row],[Currency]],[1]!tblXrate[#Data],2,FALSE) -> 44000 | F125: School Tech Coordinator | G125: Manager | H125: USA | I125: =VLOOKUP(tblSalaries[[#This Row],[Where do you work]],[1]!tblCountries[[Actual]:[Mapping]],2,FALSE) -> USA | J125: 1 or 2 hours a day
A126: ID0128 | B126: 2012-05-26T00:42:11 | C126: 65000 | D126: USD | E126: =tblSalaries[[#This Row],[clean Salary (in local currency)]]*VLOOKUP(tblSalaries[[#This Row],[Currency]],[1]!tblXrate[#Data],2,FALSE) -> 65000 | F126: sr accountant | G126: Accountant | H126: USA | I126: =VLOOKUP(tblSalaries[[#This Row],[Where do you work]],[1]!tblCountries[[Actual]:[Mapping]],2,FALSE) -> USA | J126: All the 8 hours baby, all the 8!
A127: ID0129 | B127: 2012-05-26T00:42:32 | C127: 36000 | D127: USD | E127: =tblSalaries[[#This Row],[clean Salary (in local currency)]]*VLOOKUP(tblSalaries[[#This Row],[Currency]],[1]!tblXrate[#Data],2,FALSE) -> 36000 | F127: senior accountant | G127: Accountant | H127: Turkey | I127: =VLOOKUP(tblSalaries[[#This Row],[Where do you work]],[1]!tblCountries[[Actual]:[Mapping]],2,FALSE) -> Turkey | J127: 4 to 6 hours a day
A128: ID0130 | B128: 2012-05-26T00:42:34 | C128: 12000 | D128: USD | E128: =tblSalaries[[#This Row],[clean Salary (in local currency)]]*VLOOKUP(tblSalaries[[#This Row],[Currency]],[1]!tblXrate[#Data],2,FALSE) -> 12000 | F128: Freelance | G128: Consultant | H128: Pakistan | I128: =VLOOKUP(tblSalaries[[#This Row],[Where do you work]],[1]!tblCountries[[Actual]:[Mapping]],2,FALSE) -> Pakistan | J128: 1 or 2 hours a day
A129: ID0131 | B129: 2012-05-26T00:42:41 | C129: 28159 | D129: GBP | E129: =tblSalaries[[#This Row],[clean Salary (in local currency)]]*VLOOKUP(tblSalaries[[#This Row],[Currency]],[1]!tblXrate[#Data],2,FALSE) -> 44383.60396 | F129: Data Analyst | G129: Analyst | H129: UK | I129: =VLOOKUP(tblSalaries[[#This Row],[Where do you work]],[1]!tblCountries[[Actual]:[Mapping]],2,FALSE) -> UK | J129: All the 8 hours baby, all the 8!
A130: ID0132 | B130: 2012-05-26T00:42:46 | C130: 45000 | D130: USD | E130: =tblSalaries[[#This Row],[clean Salary (in local currency)]]*VLOOKUP(tblSalaries[[#This Row],[Currency]],[1]!tblXrate[#Data],2,FALSE) -> 45000 | F130: DBA | G130: Analyst | H130: USA | I130: =VLOOKUP(tblSalaries[[#This Row],[Where do you work]],[1]!tblCountries[[Actual]:[Mapping]],2,FALSE) -> USA | J130: 4 to 6 hours a day
A131: ID0133 | B131: 2012-05-26T00:42:58 | C131: 54000 | D131: USD | E131: =tblSalaries[[#This Row],[clean Salary (in local currency)]]*VLOOKUP(tblSalaries[[#This Row],[Currency]],[1]!tblXrate[#Data],2,FALSE) -> 54000 | F131: Research Analyst | G131: Analyst | H131: USA | I131: =VLOOKUP(tblSalaries[[#This Row],[Where do you work]],[1]!tblCountries[[Actual]:[Mapping]],2,FALSE) -> USA | J131: 2 to 3 hours per day
A132: ID0134 | B132: 2012-05-26T00:43:03 | C132: 70000 | D132: GBP | E132: =tblSalaries[[#This Row],[clean Salary (in local currency)]]*VLOOKUP(tblSalaries[[#This Row],[Currency]],[1]!tblXrate[#Data],2,FALSE) -> 110332.479 | F132: Project Manager | G132: Manager | H132: UK | I132: =VLOOKUP(tblSalaries[[#This Row],[Where do you work]],[1]!tblCountries[[Actual]:[Mapping]],2,FALSE) -> UK | J132: 2 to 3 hours per day
A133: ID0135 | B133: 2012-05-26T00:43:07 | C133: 71000 | D133: USD | E133: =tblSalaries[[#This Row],[clean Salary (in local currency)]]*VLOOKUP(tblSalaries[[#This Row],[Currency]],[1]!tblXrate[#Data],2,FALSE) -> 71000 | F133: Market Research Analyst | G133: Analyst | H133: USA | I133: =VLOOKUP(tblSalaries[[#This Row],[Where do you work]],[1]!tblCountries[[Actual]:[Mapping]],2,FALSE) -> USA | J133: 4 to 6 hours a day
A134: ID0136 | B134: 2012-05-26T00:43:08 | C134: 800000 | D134: INR | E134: =tblSalaries[[#This Row],[clean Salary (in local currency)]]*VLOOKUP(tblSalaries[[#This Row],[Currency]],[1]!tblXrate[#Data],2,FALSE) -> 14246.33335 | F134: Manager : Accounts | G134: Manager | H134: India | I134: =VLOOKUP(tblSalaries[[#This Row],[Where do you work]],[1]!tblCountries[[Actual]:[Mapping]],2,FALSE) -> India | J134: 2 to 3 hours per day
A135: ID0137 | B135: 2012-05-26T00:43:17 | C135: 70000 | D135: CAD | E135: =tblSalaries[[#This Row],[clean Salary (in local currency)]]*VLOOKUP(tblSalaries[[#This Row],[Currency]],[1]!tblXrate[#Data],2,FALSE) -> 68835.30661 | F135: project manager | G135: Manager | H135: canada | I135: =VLOOKUP(tblSalaries[[#This Row],[Where do you work]],[1]!tblCountries[[Actual]:[Mapping]],2,FALSE) -> Canada | J135: 4 to 6 hours a day
A136: ID0138 | B136: 2012-05-26T00:43:25 | C136: 50000 | D136: CAD | E136: =tblSalaries[[#This Row],[clean Salary (in local currency)]]*VLOOKUP(tblSalaries[[#This Row],[Currency]],[1]!tblXrate[#Data],2,FALSE) -> 49168.07615 | F136: Inventory manger | G136: Manager | H136: Canada | I136: =VLOOKUP(tblSalaries[[#This Row],[Where do you work]],[1]!tblCountries[[Actual]:[Mapping]],2,FALSE) -> Canada | J136: 4 to 6 hours a day
A137: ID0139 | B137: 2012-05-26T00:43:27 | C137: 40000 | D137: USD | E137: =tblSalaries[[#This Row],[clean Salary (in local currency)]]*VLOOKUP(tblSalaries[[#This Row],[Currency]],[1]!tblXrate[#Data],2,FALSE) -> 40000 | F137: Business Analyst | G137: Analyst | H137: USA | I137: =VLOOKUP(tblSalaries[[#This Row],[Where do you work]],[1]!tblCountries[[Actual]:[Mapping]],2,FALSE) -> USA | J137: 4 to 6 hours a day
A138: ID0140 | B138: 2012-05-26T00:43:34 | C138: 62000 | D138: CAD | E138: =tblSalaries[[#This Row],[clean Salary (in local currency)]]*VLOOKUP(tblSalaries[[#This Row],[Currency]],[1]!tblXrate[#Data],2,FALSE) -> 60968.41443 | F138: Process Technician | G138: Analyst | H138: Canada | I138: =VLOOKUP(tblSalaries[[#This Row],[Where do you work]],[1]!tblCountries[[Actual]:[Mapping]],2,FALSE) -> Canada | J138: 2 to 3 hours per day
A139: ID0141 | B139: 2012-05-26T00:43:36 | C139: 336000 | D139: INR | E139: =tblSalaries[[#This Row],[clean Salary (in local currency)]]*VLOOKUP(tblSalaries[[#This Row],[Currency]],[1]!tblXrate[#Data],2,FALSE) -> 5983.460007 | F139: MIS Team Leader | G139: Reporting | H139: India | I139: =VLOOKUP(tblSalaries[[#This Row],[Where do you work]],[1]!tblCountries[[Actual]:[Mapping]],2,FALSE) -> India | J139: 4 to 6 hours a day
A140: ID0142 | B140: 2012-05-26T00:43:36 | C140: 53000 | D140: USD | E140: =tblSalaries[[#This Row],[clean Salary (in local currency)]]*VLOOKUP(tblSalaries[[#This Row],[Currency]],[1]!tblXrate[#Data],2,FALSE) -> 53000 | F140: Data Analyst | G140: Analyst | H140: USA | I140: =VLOOKUP(tblSalaries[[#This Row],[Where do you work]],[1]!tblCountries[[Actual]:[Mapping]],2,FALSE) -> USA | J140: 4 to 6 hours a day
A141: ID0143 | B141: 2012-05-26T00:43:49 | C141: 104000 | D141: USD | E141: =tblSalaries[[#This Row],[clean Salary (in local currency)]]*VLOOKUP(tblSalaries[[#This Row],[Currency]],[1]!tblXrate[#Data],2,FALSE) -> 104000 | F141: Finance Director | G141: CXO or Top Mgmt. | H141: USA | I141: =VLOOKUP(tblSalaries[[#This Row],[Where do you work]],[1]!tblCountries[[Actual]:[Mapping]],2,FALSE) -> USA | J141: 2 to 3 hours per day
A142: ID0144 | B142: 2012-05-26T00:44:02 | C142: 57000 | D142: USD | E142: =tblSalaries[[#This Row],[clean Salary (in local currency)]]*VLOOKUP(tblSalaries[[#This Row],[Currency]],[1]!tblXrate[#Data],2,FALSE) -> 57000 | F142: Industrial Engineer | G142: Engineer | H142: USA | I142: =VLOOKUP(tblSalaries[[#This Row],[Where do you work]],[1]!tblCountries[[Actual]:[Mapping]],2,FALSE) -> USA | J142: 4 to 6 hours a day
A143: ID0145 | B143: 2012-05-26T00:44:09 | C143: 45000 | D143: USD | E143: =tblSalaries[[#This Row],[clean Salary (in local currency)]]*VLOOKUP(tblSalaries[[#This Row],[Currency]],[1]!tblXrate[#Data],2,FALSE) -> 45000 | F143: data analyst | G143: Analyst | H143: USA | I143: =VLOOKUP(tblSalaries[[#This Row],[Where do you work]],[1]!tblCountries[[Actual]:[Mapping]],2,FALSE) -> USA | J143: 2 to 3 hours per day
A144: ID0146 | B144: 2012-05-26T00:44:15 | C144: 92000 | D144: USD | E144: =tblSalaries[[#This Row],[clean Salary (in local currency)]]*VLOOKUP(tblSalaries[[#This Row],[Currency]],[1]!tblXrate[#Data],2,FALSE) -> 92000 | F144: Senior Financial & Systems Analyst | G144: Analyst | H144: USA | I144: =VLOOKUP(tblSalaries[[#This Row],[Where do you work]],[1]!tblCountries[[Actual]:[Mapping]],2,FALSE) -> USA | J144: 4 to 6 hours a day
A145: ID0147 | B145: 2012-05-26T00:44:18 | C145: 88000 | D145: USD | E145: =tblSalaries[[#This Row],[clean Salary (in local currency)]]*VLOOKUP(tblSalaries[[#This Row],[Currency]],[1]!tblXrate[#Data],2,FALSE) -> 88000 | F145: project manager - metrics | G145: Manager | H145: USA | I145: =VLOOKUP(tblSalaries[[#This Row],[Where do you work]],[1]!tblCountries[[Actual]:[Mapping]],2,FALSE) -> USA | J145: 4 to 6 hours a day
A146: ID0148 | B146: 2012-05-26T00:44:20 | C146: 80000 | D146: USD | E146: =tblSalaries[[#This Row],[clean Salary (in local currency)]]*VLOOKUP(tblSalaries[[#This Row],[Currency]],[1]!tblXrate[#Data],2,FALSE) -> 80000 | F146: Informatics Research Analyst | G146: Analyst | H146: USA | I146: =VLOOKUP(tblSalaries[[#This Row],[Where do you work]],[1]!tblCountries[[Actual]:[Mapping]],2,FALSE) -> USA | J146: 2 to 3 hours per day
A147: ID0149 | B147: 2012-05-26T00:44:22 | C147: 69000 | D147: USD | E147: =tblSalaries[[#This Row],[clean Salary (in local currency)]]*VLOOKUP(tblSalaries[[#This Row],[Currency]],[1]!tblXrate[#Data],2,FALSE) -> 69000 | F147: Business Technical Consultant | G147: Consultant | H147: USA | I147: =VLOOKUP(tblSalaries[[#This Row],[Where do you work]],[1]!tblCountries[[Actual]:[Mapping]],2,FALSE) -> USA | J147: 4 to 6 hours a day
A148: ID0150 | B148: 2012-05-26T00:44:23 | C148: 50000 | D148: USD | E148: =tblSalaries[[#This Row],[clean Salary (in local currency)]]*VLOOKUP(tblSalaries[[#This Row],[Currency]],[1]!tblXrate[#Data],2,FALSE) -> 50000 | F148: Business Operations Reporting Analyst | G148: Analyst | H148: Mexico | I148: =VLOOKUP(tblSalaries[[#This Row],[Where do you work]],[1]!tblCountries[[Actual]:[Mapping]],2,FALSE) -> Mexico | J148: All the 8 hours baby, all the 8!
A149: ID0151 | B149: 2012-05-26T00:44:40 | C149: 35000 | D149: USD | E149: =tblSalaries[[#This Row],[clean Salary (in local currency)]]*VLOOKUP(tblSalaries[[#This Row],[Currency]],[1]!tblXrate[#Data],2,FALSE) -> 35000 | F149: Program Services Coordinator | G149: Manager | H149: USA | I149: =VLOOKUP(tblSalaries[[#This Row],[Where do you work]],[1]!tblCountries[[Actual]:[Mapping]],2,FALSE) -> USA | J149: 2 to 3 hours per day
A150: ID0152 | B150: 2012-05-26T00:44:59 | C150: 96000 | D150: USD | E150: =tblSalaries[[#This Row],[clean Salary (in local currency)]]*VLOOKUP(tblSalaries[[#This Row],[Currency]],[1]!tblXrate[#Data],2,FALSE) -> 96000 | F150: Specialist - Finance Planning and Analysis | G150: Analyst | H150: USA | I150: =VLOOKUP(tblSalaries[[#This Row],[Where do you work]],[1]!tblCountries[[Actual]:[Mapping]],2,FALSE) -> USA | J150: 4 to 6 hours a day
A151: ID0153 | B151: 2012-05-26T00:45:00 | C151: 65000 | D151: USD | E151: =tblSalaries[[#This Row],[clean Salary (in local currency)]]*VLOOKUP(tblSalaries[[#This Row],[Currency]],[1]!tblXrate[#Data],2,FALSE) -> 65000 | F151: Sr Accountant | G151: Accountant | H151: USA | I151: =VLOOKUP(tblSalaries[[#This Row],[Where do you work]],[1]!tblCountries[[Actual]:[Mapping]],2,FALSE) -> USA | J151: All the 8 hours baby, all the 8!
A152: ID0154 | B152: 2012-05-26T00:45:06 | C152: 37440 | D152: USD | E152: =tblSalaries[[#This Row],[clean Salary (in local currency)]]*VLOOKUP(tblSalaries[[#This Row],[Currency]],[1]!tblXrate[#Data],2,FALSE) -> 37440 | F152: sales analyst | G152: Analyst | H152: USA | I152: =VLOOKUP(tblSalaries[[#This Row],[Where do you work]],[1]!tblCountries[[Actual]:[Mapping]],2,FALSE) -> USA | J152: All the 8 hours baby, all the 8!
A153: ID0155 | B153: 2012-05-26T00:45:11 | C153: 15500 | D153: USD | E153: =tblSalaries[[#This Row],[clean Salary (in local currency)]]*VLOOKUP(tblSalaries[[#This Row],[Currency]],[1]!tblXrate[#Data],2,FALSE) -> 15500 | F153: Proces auditor | G153: Accountant | H153: Mexico | I153: =VLOOKUP(tblSalaries[[#This Row],[Where do you work]],[1]!tblCountries[[Actual]:[Mapping]],2,FALSE) -> Mexico | J153: All the 8 hours baby, all the 8!
A154: ID0156 | B154: 2012-05-26T00:45:17 | C154: 90000 | D154: USD | E154: =tblSalaries[[#This Row],[clean Salary (in local currency)]]*VLOOKUP(tblSalaries[[#This Row],[Currency]],[1]!tblXrate[#Data],2,FALSE) -> 90000 | F154: Senior Data Quality Analyst | G154: Analyst | H154: USA | I154: =VLOOKUP(tblSalaries[[#This Row],[Where do you work]],[1]!tblCountries[[Actual]:[Mapping]],2,FALSE) -> USA | J154: 2 to 3 hours per day
A155: ID0157 | B155: 2012-05-26T00:45:46 | C155: 66500 | D155: USD | E155: =tblSalaries[[#This Row],[clean Salary (in local currency)]]*VLOOKUP(tblSalaries[[#This Row],[Currency]],[1]!tblXrate[#Data],2,FALSE) -> 66500 | F155: Sr Business Analyst | G155: Analyst | H155: USA | I155: =VLOOKUP(tblSalaries[[#This Row],[Where do you work]],[1]!tblCountries[[Actual]:[Mapping]],2,FALSE) -> USA | J155: All the 8 hours baby, all the 8!
A156: ID0158 | B156: 2012-05-26T00:45:49 | C156: 100000 | D156: USD | E156: =tblSalaries[[#This Row],[clean Salary (in local currency)]]*VLOOKUP(tblSalaries[[#This Row],[Currency]],[1]!tblXrate[#Data],2,FALSE) -> 100000 | F156: COST ACCOUNTANT | G156: Accountant | H156: USA | I156: =VLOOKUP(tblSalaries[[#This Row],[Where do you work]],[1]!tblCountries[[Actual]:[Mapping]],2,FALSE) -> USA | J156: All the 8 hours baby, all the 8!
A157: ID0159 | B157: 2012-05-26T00:45:51 | C157: 32250 | D157: GBP | E157: =tblSalaries[[#This Row],[clean Salary (in local currency)]]*VLOOKUP(tblSalaries[[#This Row],[Currency]],[1]!tblXrate[#Data],2,FALSE) -> 50831.74927 | F157: project Support | G157: Manager | H157: UK | I157: =VLOOKUP(tblSalaries[[#This Row],[Where do you work]],[1]!tblCountries[[Actual]:[Mapping]],2,FALSE) -> UK | J157: 4 to 6 hours a day
A158: ID0160 | B158: 2012-05-26T00:45:53 | C158: 420000 | D158: INR | E158: =tblSalaries[[#This Row],[clean Salary (in local currency)]]*VLOOKUP(tblSalaries[[#This Row],[Currency]],[1]!tblXrate[#Data],2,FALSE) -> 7479.325009 | F158: managerial | G158: Manager | H158: India | I158: =VLOOKUP(tblSalaries[[#This Row],[Where do you work]],[1]!tblCountries[[Actual]:[Mapping]],2,FALSE) -> India | J158: 1 or 2 hours a day
A159: ID0161 | B159: 2012-05-26T00:46:00 | C159: 75000 | D159: USD | E159: =tblSalaries[[#This Row],[clean Salary (in local currency)]]*VLOOKUP(tblSalaries[[#This Row],[Currency]],[1]!tblXrate[#Data],2,FALSE) -> 75000 | F159: Program Analyst | G159: Analyst | H159: USA | I159: =VLOOKUP(tblSalaries[[#This Row],[Where do you work]],[1]!tblCountries[[Actual]:[Mapping]],2,FALSE) -> USA | J159: 1 or 2 hours a day
A160: ID0162 | B160: 2012-05-26T00:46:25 | C160: 58000 | D160: USD | E160: =tblSalaries[[#This Row],[clean Salary (in local currency)]]*VLOOKUP(tblSalaries[[#This Row],[Currency]],[1]!tblXrate[#Data],2,FALSE) -> 58000 | F160: Team Lead - Computer Discounts | G160: Manager | H160: Canada | I160: =VLOOKUP(tblSalaries[[#This Row],[Where do you work]],[1]!tblCountries[[Actual]:[Mapping]],2,FALSE) -> Canada | J160: 1 or 2 hours a day
A161: ID0163 | B161: 2012-05-26T00:46:29 | C161: 55000 | D161: USD | E161: =tblSalaries[[#This Row],[clean Salary (in local currency)]]*VLOOKUP(tblSalaries[[#This Row],[Currency]],[1]!tblXrate[#Data],2,FALSE) -> 55000 | F161: Change Architect | G161: Manager | H161: USA | I161: =VLOOKUP(tblSalaries[[#This Row],[Where do you work]],[1]!tblCountries[[Actual]:[Mapping]],2,FALSE) -> USA | J161: 2 to 3 hours per day
A162: ID0164 | B162: 2012-05-26T00:47:42 | C162: 60000 | D162: USD | E162: =tblSalaries[[#This Row],[clean Salary (in local currency)]]*VLOOKUP(tblSalaries[[#This Row],[Currency]],[1]!tblXrate[#Data],2,FALSE) -> 60000 | F162: Telecom Technician | G162: Analyst | H162: USA | I162: =VLOOKUP(tblSalaries[[#This Row],[Where do you work]],[1]!tblCountries[[Actual]:[Mapping]],2,FALSE) -> USA | J162: 4 to 6 hours a day
A163: ID0165 | B163: 2012-05-26T00:47:45 | C163: 1300000 | D163: INR | E163: =tblSalaries[[#This Row],[clean Salary (in local currency)]]*VLOOKUP(tblSalaries[[#This Row],[Currency]],[1]!tblXrate[#Data],2,FALSE) -> 23150.29169 | F163: Manager | G163: Manager | H163: India | I163: =VLOOKUP(tblSalaries[[#This Row],[Where do you work]],[1]!tblCountries[[Actual]:[Mapping]],2,FALSE) -> India | J163: 4 to 6 hours a day
A164: ID0166 | B164: 2012-05-26T00:47:50 | C164: 107000 | D164: CAD | E164: =tblSalaries[[#This Row],[clean Salary (in local currency)]]*VLOOKUP(tblSalaries[[#This Row],[Currency]],[1]!tblXrate[#Data],2,FALSE) -> 105219.683 | F164: Manager, Asset Optimization | G164: Manager | H164: Canada | I164: =VLOOKUP(tblSalaries[[#This Row],[Where do you work]],[1]!tblCountries[[Actual]:[Mapping]],2,FALSE) -> Canada | J164: 2 to 3 hours per day
A165: ID0167 | B165: 2012-05-26T00:47:57 | C165: 145000 | D165: USD | E165: =tblSalaries[[#This Row],[clean Salary (in local currency)]]*VLOOKUP(tblSalaries[[#This Row],[Currency]],[1]!tblXrate[#Data],2,FALSE) -> 145000 | F165: Financialcontroller | G165: Controller | H165: Switzerland | I165: =VLOOKUP(tblSalaries[[#This Row],[Where do you work]],[1]!tblCountries[[Actual]:[Mapping]],2,FALSE) -> Switzerland | J165: All the 8 hours baby, all the 8!
A166: ID0168 | B166: 2012-05-26T00:48:04 | C166: 22880 | D166: USD | E166: =tblSalaries[[#This Row],[clean Salary (in local currency)]]*VLOOKUP(tblSalaries[[#This Row],[Currency]],[1]!tblXrate[#Data],2,FALSE) -> 22880 | F166: Accounting | G166: Accountant | H166: USA | I166: =VLOOKUP(tblSalaries[[#This Row],[Where do you work]],[1]!tblCountries[[Actual]:[Mapping]],2,FALSE) -> USA | J166: 4 to 6 hours a day
A167: ID0169 | B167: 2012-05-26T00:48:07 | C167: 80000 | D167: USD | E167: =tblSalaries[[#This Row],[clean Salary (in local currency)]]*VLOOKUP(tblSalaries[[#This Row],[Currency]],[1]!tblXrate[#Data],2,FALSE) -> 80000 | F167: Consultant, HR Services & Governance | G167: Consultant | H167: USA | I167: =VLOOKUP(tblSalaries[[#This Row],[Where do you work]],[1]!tblCountries[[Actual]:[Mapping]],2,FALSE) -> USA | J167: 4 to 6 hours a day
A168: ID0170 | B168: 2012-05-26T00:48:11 | C168: 500000 | D168: INR | E168: =tblSalaries[[#This Row],[clean Salary (in local currency)]]*VLOOKUP(tblSalaries[[#This Row],[Currency]],[1]!tblXrate[#Data],2,FALSE) -> 8903.958344 | F168: QA Executive | G168: Analyst | H168: India | I168: =VLOOKUP(tblSalaries[[#This Row],[Where do you work]],[1]!tblCountries[[Actual]:[Mapping]],2,FALSE) -> India | J168: 2 to 3 hours per day
A169: ID0171 | B169: 2012-05-26T00:48:46 | C169: 90000 | D169: CAD | E169: =tblSalaries[[#This Row],[clean Salary (in local currency)]]*VLOOKUP(tblSalaries[[#This Row],[Currency]],[1]!tblXrate[#Data],2,FALSE) -> 88502.53707 | F169: Senior Actuarial Analyst | G169: Analyst | H169: Canada | I169: =VLOOKUP(tblSalaries[[#This Row],[Where do you work]],[1]!tblCountries[[Actual]:[Mapping]],2,FALSE) -> Canada | J169: 4 to 6 hours a day
A170: ID0172 | B170: 2012-05-26T00:48:48 | C170: 180000 | D170: INR | E170: =tblSalaries[[#This Row],[clean Salary (in local currency)]]*VLOOKUP(tblSalaries[[#This Row],[Currency]],[1]!tblXrate[#Data],2,FALSE) -> 3205.425004 | F170: Sr. Associate | G170: Analyst | H170: India | I170: =VLOOKUP(tblSalaries[[#This Row],[Where do you work]],[1]!tblCountries[[Actual]:[Mapping]],2,FALSE) -> India | J170: 4 to 6 hours a day
A171: ID0173 | B171: 2012-05-26T00:48:48 | C171: 46584 | D171: USD | E171: =tblSalaries[[#This Row],[clean Salary (in local currency)]]*VLOOKUP(tblSalaries[[#This Row],[Currency]],[1]!tblXrate[#Data],2,FALSE) -> 46584 | F171: Budget Analyst | G171: Analyst | H171: USA | I171: =VLOOKUP(tblSalaries[[#This Row],[Where do you work]],[1]!tblCountries[[Actual]:[Mapping]],2,FALSE) -> USA | J171: 4 to 6 hours a day
A172: ID0174 | B172: 2012-05-26T00:48:48 | C172: 67000 | D172: USD | E172: =tblSalaries[[#This Row],[clean Salary (in local currency)]]*VLOOKUP(tblSalaries[[#This Row],[Currency]],[1]!tblXrate[#Data],2,FALSE) -> 67000 | F172: B.I. Data Analyst II | G172: Analyst | H172: USA | I172: =VLOOKUP(tblSalaries[[#This Row],[Where do you work]],[1]!tblCountries[[Actual]:[Mapping]],2,FALSE) -> USA | J172: 4 to 6 hours a day
A173: ID0175 | B173: 2012-05-26T00:48:57 | C173: 1100000 | D173: INR | E173: =tblSalaries[[#This Row],[clean Salary (in local currency)]]*VLOOKUP(tblSalaries[[#This Row],[Currency]],[1]!tblXrate[#Data],2,FALSE) -> 19588.70836 | F173: Asst manager investor relations and business analytics | G173: Manager | H173: India | I173: =VLOOKUP(tblSalaries[[#This Row],[Where do you work]],[1]!tblCountries[[Actual]:[Mapping]],2,FALSE) -> India | J173: 4 to 6 hours a day
A174: ID0176 | B174: 2012-05-26T00:49:18 | C174: 92000 | D174: USD | E174: =tblSalaries[[#This Row],[clean Salary (in local currency)]]*VLOOKUP(tblSalaries[[#This Row],[Currency]],[1]!tblXrate[#Data],2,FALSE) -> 92000 | F174: Industrial Engineer (Fed) | G174: Engineer | H174: USA | I174: =VLOOKUP(tblSalaries[[#This Row],[Where do you work]],[1]!tblCountries[[Actual]:[Mapping]],2,FALSE) -> USA | J174: 4 to 6 hours a day
A175: ID0177 | B175: 2012-05-26T00:49:21 | C175: 75000 | D175: USD | E175: =tblSalaries[[#This Row],[clean Salary (in local currency)]]*VLOOKUP(tblSalaries[[#This Row],[Currency]],[1]!tblXrate[#Data],2,FALSE) -> 75000 | F175: Informatics specialist | G175: Specialist | H175: USA | I175: =VLOOKUP(tblSalaries[[#This Row],[Where do you work]],[1]!tblCountries[[Actual]:[Mapping]],2,FALSE) -> USA | J175: All the 8 hours baby, all the 8!
A176: ID0178 | B176: 2012-05-26T00:49:35 | C176: 180000 | D176: INR | E176: =tblSalaries[[#This Row],[clean Salary (in local currency)]]*VLOOKUP(tblSalaries[[#This Row],[Currency]],[1]!tblXrate[#Data],2,FALSE) -> 3205.425004 | F176: Sr. Associate | G176: Analyst | H176: India | I176: =VLOOKUP(tblSalaries[[#This Row],[Where do you work]],[1]!tblCountries[[Actual]:[Mapping]],2,FALSE) -> India | J176: 4 to 6 hours a day
A177: ID0179 | B177: 2012-05-26T00:49:48 | C177: 18500 | D177: GBP | E177: =tblSalaries[[#This Row],[clean Salary (in local currency)]]*VLOOKUP(tblSalaries[[#This Row],[Currency]],[1]!tblXrate[#Data],2,FALSE) -> 29159.29803 | F177: Trainee Management Accountant | G177: Manager | H177: UK | I177: =VLOOKUP(tblSalaries[[#This Row],[Where do you work]],[1]!tblCountries[[Actual]:[Mapping]],2,FALSE) -> UK | J177: All the 8 hours baby, all the 8!
A178: ID0180 | B178: 2012-05-26T00:49:50 | C178: 40000 | D178: USD | E178: =tblSalaries[[#This Row],[clean Salary (in local currency)]]*VLOOKUP(tblSalaries[[#This Row],[Currency]],[1]!tblXrate[#Data],2,FALSE) -> 40000 | F178: Senior analyst | G178: Analyst | H178: USA | I178: =VLOOKUP(tblSalaries[[#This Row],[Where do you work]],[1]!tblCountries[[Actual]:[Mapping]],2,FALSE) -> USA | J178: All the 8 hours baby, all the 8!
A179: ID0181 | B179: 2012-05-26T00:49:59 | C179: 111680 | D179: USD | E179: =tblSalaries[[#This Row],[clean Salary (in local currency)]]*VLOOKUP(tblSalaries[[#This Row],[Currency]],[1]!tblXrate[#Data],2,FALSE) -> 111680 | F179: Director of Analytics | G179: Analyst | H179: USA | I179: =VLOOKUP(tblSalaries[[#This Row],[Where do you work]],[1]!tblCountries[[Actual]:[Mapping]],2,FALSE) -> USA | J179: 2 to 3 hours per day
A180: ID0182 | B180: 2012-05-26T00:50:11 | C180: 41406 | D180: USD | E180: =tblSalaries[[#This Row],[clean Salary (in local currency)]]*VLOOKUP(tblSalaries[[#This Row],[Currency]],[1]!tblXrate[#Data],2,FALSE) -> 41406 | F180: Executive Assistant | G180: Analyst | H180: Canada | I180: =VLOOKUP(tblSalaries[[#This Row],[Where do you work]],[1]!tblCountries[[Actual]:[Mapping]],2,FALSE) -> Canada | J180: 1 or 2 hours a day
A181: ID0183 | B181: 2012-05-26T00:50:15 | C181: 70000 | D181: USD | E181: =tblSalaries[[#This Row],[clean Salary (in local currency)]]*VLOOKUP(tblSalaries[[#This Row],[Currency]],[1]!tblXrate[#Data],2,FALSE) -> 70000 | F181: Project Speciast | G181: Manager | H181: USA | I181: =VLOOKUP(tblSalaries[[#This Row],[Where do you work]],[1]!tblCountries[[Actual]:[Mapping]],2,FALSE) -> USA | J181: 4 to 6 hours a day
A182: ID0184 | B182: 2012-05-26T00:50:31 | C182: 40700 | D182: USD | E182: =tblSalaries[[#This Row],[clean Salary (in local currency)]]*VLOOKUP(tblSalaries[[#This Row],[Currency]],[1]!tblXrate[#Data],2,FALSE) -> 40700 | F182: Sales Coordinator & Analytical Support | G182: Analyst | H182: USA | I182: =VLOOKUP(tblSalaries[[#This Row],[Where do you work]],[1]!tblCountries[[Actual]:[Mapping]],2,FALSE) -> USA | J182: 1 or 2 hours a day
A183: ID0185 | B183: 2012-05-26T00:50:32 | C183: 40000 | D183: USD | E183: =tblSalaries[[#This Row],[clean Salary (in local currency)]]*VLOOKUP(tblSalaries[[#This Row],[Currency]],[1]!tblXrate[#Data],2,FALSE) -> 40000 | F183: analyst | G183: Analyst | H183: USA | I183: =VLOOKUP(tblSalaries[[#This Row],[Where do you work]],[1]!tblCountries[[Actual]:[Mapping]],2,FALSE) -> USA | J183: 4 to 6 hours a day
A184: ID0186 | B184: 2012-05-26T00:50:38 | C184: 60000 | D184: USD | E184: =tblSalaries[[#This Row],[clean Salary (in local currency)]]*VLOOKUP(tblSalaries[[#This Row],[Currency]],[1]!tblXrate[#Data],2,FALSE) -> 60000 | F184: Senior Staff Accountant | G184: Accountant | H184: USA | I184: =VLOOKUP(tblSalaries[[#This Row],[Where do you work]],[1]!tblCountries[[Actual]:[Mapping]],2,FALSE) -> USA | J184: 4 to 6 hours a day
A185: ID0187 | B185: 2012-05-26T00:50:41 | C185: 92000 | D185: CAD | E185: =tblSalaries[[#This Row],[clean Salary (in local currency)]]*VLOOKUP(tblSalaries[[#This Row],[Currency]],[1]!tblXrate[#Data],2,FALSE) -> 90469.26012 | F185: Consultant - Retail Mkts | G185: Consultant | H185: Canada | I185: =VLOOKUP(tblSalaries[[#This Row],[Where do you work]],[1]!tblCountries[[Actual]:[Mapping]],2,FALSE) -> Canada | J185: All the 8 hours baby, all the 8!
A186: ID0188 | B186: 2012-05-26T00:50:43 | C186: 13636 | D186: USD | E186: =tblSalaries[[#This Row],[clean Salary (in local currency)]]*VLOOKUP(tblSalaries[[#This Row],[Currency]],[1]!tblXrate[#Data],2,FALSE) -> 13636 | F186: Process Manager | G186: Manager | H186: India | I186: =VLOOKUP(tblSalaries[[#This Row],[Where do you work]],[1]!tblCountries[[Actual]:[Mapping]],2,FALSE) -> India | J186: All the 8 hours baby, all the 8!
A187: ID0189 | B187: 2012-05-26T00:50:43 | C187: 80000 | D187: USD | E187: =tblSalaries[[#This Row],[clean Salary (in local currency)]]*VLOOKUP(tblSalaries[[#This Row],[Currency]],[1]!tblXrate[#Data],2,FALSE) -> 80000 | F187: Project Manager (Process Owner) | G187: Manager | H187: USA | I187: =VLOOKUP(tblSalaries[[#This Row],[Where do you work]],[1]!tblCountries[[Actual]:[Mapping]],2,FALSE) -> USA | J187: 2 to 3 hours per day
A188: ID0190 | B188: 2012-05-26T00:51:00 | C188: 60000 | D188: CAD | E188: =tblSalaries[[#This Row],[clean Salary (in local currency)]]*VLOOKUP(tblSalaries[[#This Row],[Currency]],[1]!tblXrate[#Data],2,FALSE) -> 59001.69138 | F188: Demographer | G188: Analyst | H188: Canada | I188: =VLOOKUP(tblSalaries[[#This Row],[Where do you work]],[1]!tblCountries[[Actual]:[Mapping]],2,FALSE) -> Canada | J188: 2 to 3 hours per day
A189: ID0192 | B189: 2012-05-26T00:51:43 | C189: 28000 | D189: USD | E189: =tblSalaries[[#This Row],[clean Salary (in local currency)]]*VLOOKUP(tblSalaries[[#This Row],[Currency]],[1]!tblXrate[#Data],2,FALSE) -> 28000 | F189: Administrative Assistant | G189: Analyst | H189: USA | I189: =VLOOKUP(tblSalaries[[#This Row],[Where do you work]],[1]!tblCountries[[Actual]:[Mapping]],2,FALSE) -> USA | J189: 4 to 6 hours a day
A190: ID0193 | B190: 2012-05-26T00:51:55 | C190: 60000 | D190: USD | E190: =tblSalaries[[#This Row],[clean Salary (in local currency)]]*VLOOKUP(tblSalaries[[#This Row],[Currency]],[1]!tblXrate[#Data],2,FALSE) -> 60000 | F190: Accounting/Financial Analyst | G190: Analyst | H190: USA | I190: =VLOOKUP(tblSalaries[[#This Row],[Where do you work]],[1]!tblCountries[[Actual]:[Mapping]],2,FALSE) -> USA | J190: 4 to 6 hours a day
A191: ID0194 | B191: 2012-05-26T00:51:59 | C191: 96000 | D191: USD | E191: =tblSalaries[[#This Row],[clean Salary (in local currency)]]*VLOOKUP(tblSalaries[[#This Row],[Currency]],[1]!tblXrate[#Data],2,FALSE) -> 96000 | F191: Business Process Specialist | G191: Specialist | H191: USA | I191: =VLOOKUP(tblSalaries[[#This Row],[Where do you work]],[1]!tblCountries[[Actual]:[Mapping]],2,FALSE) -> USA | J191: 2 to 3 hours per day
A192: ID0195 | B192: 2012-05-26T00:52:21 | C192: 67000 | D192: USD | E192: =tblSalaries[[#This Row],[clean Salary (in local currency)]]*VLOOKUP(tblSalaries[[#This Row],[Currency]],[1]!tblXrate[#Data],2,FALSE) -> 67000 | F192: Financial Analyst | G192: Analyst | H192: USA | I192: =VLOOKUP(tblSalaries[[#This Row],[Where do you work]],[1]!tblCountries[[Actual]:[Mapping]],2,FALSE) -> USA | J192: 4 to 6 hours a day
A193: ID0196 | B193: 2012-05-26T00:52:25 | C193: 70000 | D193: USD | E193: =tblSalaries[[#This Row],[clean Salary (in local currency)]]*VLOOKUP(tblSalaries[[#This Row],[Currency]],[1]!tblXrate[#Data],2,FALSE) -> 70000 | F193: Sr Financial Analyst | G193: Analyst | H193: USA | I193: =VLOOKUP(tblSalaries[[#This Row],[Where do you work]],[1]!tblCountries[[Actual]:[Mapping]],2,FALSE) -> USA | J193: 4 to 6 hours a day
A194: ID0197 | B194: 2012-05-26T00:52:30 | C194: 233000 | D194: INR | E194: =tblSalaries[[#This Row],[clean Salary (in local currency)]]*VLOOKUP(tblSalaries[[#This Row],[Currency]],[1]!tblXrate[#Data],2,FALSE) -> 4149.244588 | F194: Asst. Manager (MIS) | G194: Manager | H194: India | I194: =VLOOKUP(tblSalaries[[#This Row],[Where do you work]],[1]!tblCountries[[Actual]:[Mapping]],2,FALSE) -> India | J194: All the 8 hours baby, all the 8!
A195: ID0198 | B195: 2012-05-26T00:52:37 | C195: 99000 | D195: USD | E195: =tblSalaries[[#This Row],[clean Salary (in local currency)]]*VLOOKUP(tblSalaries[[#This Row],[Currency]],[1]!tblXrate[#Data],2,FALSE) -> 99000 | F195: Business Controller | G195: Controller | H195: USA | I195: =VLOOKUP(tblSalaries[[#This Row],[Where do you work]],[1]!tblCountries[[Actual]:[Mapping]],2,FALSE) -> USA | J195: 4 to 6 hours a day
A196: ID0200 | B196: 2012-05-26T00:53:00 | C196: 90000 | D196: USD | E196: =tblSalaries[[#This Row],[clean Salary (in local currency)]]*VLOOKUP(tblSalaries[[#This Row],[Currency]],[1]!tblXrate[#Data],2,FALSE) -> 90000 | F196: Project Manager | G196: Manager | H196: USA | I196: =VLOOKUP(tblSalaries[[#This Row],[Where do you work]],[1]!tblCountries[[Actual]:[Mapping]],2,FALSE) -> USA | J196: 2 to 3 hours per day
A197: ID0201 | B197: 2012-05-26T00:53:02 | C197: 275000 | D197: INR | E197: =tblSalaries[[#This Row],[clean Salary (in local currency)]]*VLOOKUP(tblSalaries[[#This Row],[Currency]],[1]!tblXrate[#Data],2,FALSE) -> 4897.177089 | F197: low level monitoring | G197: Analyst | H197: India | I197: =VLOOKUP(tblSalaries[[#This Row],[Where do you work]],[1]!tblCountries[[Actual]:[Mapping]],2,FALSE) -> India | J197: 2 to 3 hours per day
A198: ID0202 | B198: 2012-05-26T00:53:18 | C198: 192000 | D198: INR | E198: =tblSalaries[[#This Row],[clean Salary (in local currency)]]*VLOOKUP(tblSalaries[[#This Row],[Currency]],[1]!tblXrate[#Data],2,FALSE) -> 3419.120004 | F198: Administrative | G198: Analyst | H198: India | I198: =VLOOKUP(tblSalaries[[#This Row],[Where do you work]],[1]!tblCountries[[Actual]:[Mapping]],2,FALSE) -> India | J198: All the 8 hours baby, all the 8!
A199: ID0203 | B199: 2012-05-26T00:53:37 | C199: 51000 | D199: USD | E199: =tblSalaries[[#This Row],[clean Salary (in local currency)]]*VLOOKUP(tblSalaries[[#This Row],[Currency]],[1]!tblXrate[#Data],2,FALSE) -> 51000 | F199: Service Line Coordinator | G199: Manager | H199: USA | I199: =VLOOKUP(tblSalaries[[#This Row],[Where do you work]],[1]!tblCountries[[Actual]:[Mapping]],2,FALSE) -> USA | J199: 4 to 6 hours a day
A200: ID0204 | B200: 2012-05-26T00:53:42 | C200: 100000 | D200: USD | E200: =tblSalaries[[#This Row],[clean Salary (in local currency)]]*VLOOKUP(tblSalaries[[#This Row],[Currency]],[1]!tblXrate[#Data],2,FALSE) -> 100000 | F200: Strategic Sourcing Manager | G200: Manager | H200: USA | I200: =VLOOKUP(tblSalaries[[#This Row],[Where do you work]],[1]!tblCountries[[Actual]:[Mapping]],2,FALSE) -> USA | J200: All the 8 hours baby, all the 8!
... 1684 more rows
